Workbook

Sheet Summary
B3: Perfil | E3: 1 | F3: 2 | G3: 3 | H3: 4 | I3: 5 | J3: 6 | K3: 7 | L3: 8 | M3: 9 | N3: 10 | O3: 11 | P3: 12 | Q3: 13 | R3: 14
B4: Ratio | E4: ='Points.1_Desv.0.4'!B2 -> 1 | F4: ='Points.1_Desv.0.5'!B2 -> 1 | G4: ='Points.1_Desv.0.6'!B2 -> 1 | H4: ='Points.1_Desv.0.7'!B2 -> 1 | I4: ='Points.4_Desv.0.1'!B2 -> 1 | J4: ='Points.4_Desv.0.2'!B2 -> 1 | K4: ='Points.4_Desv.0.3'!B2 -> 1 | L4: ='Points.4_Desv.0.4'!B2 -> 1 | M4: ='Points.9_Desv.0.1'!B2 -> 1 | N4: ='Points.9_Desv.0.2'!B2 -> 1 | O4: ='Points.9_Desv.0.3'!B2 -> 1 | P4: ='Points.16_Desv.0.1'!B2 -> 1 | Q4: ='Points.16_Desv.0.2'!B2 -> 1 | R4: ='Points.16_Desv.0.3'!B2 -> 1
B5: Aiming_points | E5: ='Points.1_Desv.0.4'!B3 -> 1 | F5: ='Points.1_Desv.0.5'!B3 -> 1 | G5: ='Points.1_Desv.0.6'!B3 -> 1 | H5: ='Points.1_Desv.0.7'!B3 -> 1 | I5: ='Points.4_Desv.0.1'!B3 -> 4 | J5: ='Points.4_Desv.0.2'!B3 -> 4 | K5: ='Points.4_Desv.0.3'!B3 -> 4 | L5: ='Points.4_Desv.0.4'!B3 -> 4 | M5: ='Points.9_Desv.0.1'!B3 -> 9 | N5: ='Points.9_Desv.0.2'!B3 -> 9 | O5: ='Points.9_Desv.0.3'!B3 -> 9 | P5: ='Points.16_Desv.0.1'!B3 -> 16 | Q5: ='Points.16_Desv.0.2'!B3 -> 16 | R5: ='Points.16_Desv.0.3'!B3 -> 16
B6: Combined std dev. | E6: ='Points.1_Desv.0.4'!B4 -> 0.4 | F6: ='Points.1_Desv.0.5'!B4 -> 0.5 | G6: ='Points.1_Desv.0.6'!B4 -> 0.6 | H6: ='Points.1_Desv.0.7'!B4 -> 0.7 | I6: ='Points.4_Desv.0.1'!B4 -> 0.1 | J6: ='Points.4_Desv.0.2'!B4 -> 0.2 | K6: ='Points.4_Desv.0.3'!B4 -> 0.3 | L6: ='Points.4_Desv.0.4'!B4 -> 0.4 | M6: ='Points.9_Desv.0.1'!B4 -> 0.1 | N6: ='Points.9_Desv.0.2'!B4 -> 0.2 | O6: ='Points.9_Desv.0.3'!B4 -> 0.3 | P6: ='Points.16_Desv.0.1'!B4 -> 0.1 | Q6: ='Points.16_Desv.0.2'!B4 -> 0.2 | R6: ='Points.16_Desv.0.3'!B4 -> 0.3
B7: Optical_eff | E7: ='Points.1_Desv.0.4'!B5 -> 0.6501 | F7: ='Points.1_Desv.0.5'!B5 -> 0.6002 | G7: ='Points.1_Desv.0.6'!B5 -> 0.5456 | H7: ='Points.1_Desv.0.7'!B5 -> 0.4767 | I7: ='Points.4_Desv.0.1'!B5 -> 0.5901 | J7: ='Points.4_Desv.0.2'!B5 -> 0.5688 | K7: ='Points.4_Desv.0.3'!B5 -> 0.533 | L7: ='Points.4_Desv.0.4'!B5 -> 0.4909 | M7: ='Points.9_Desv.0.1'!B5 -> 0.5544 | N7: ='Points.9_Desv.0.2'!B5 -> 0.5351 | O7: ='Points.9_Desv.0.3'!B5 -> 0.5057 | P7: ='Points.16_Desv.0.1'!B5 -> 0.5473 | Q7: ='Points.16_Desv.0.2'!B5 -> 0.5344 | R7: ='Points.16_Desv.0.3'!B5 -> 0.5024
B8: Standard_deviation | E8: ='Points.1_Desv.0.4'!B6 -> 0.4 | F8: ='Points.1_Desv.0.5'!B6 -> 0.5 | G8: ='Points.1_Desv.0.6'!B6 -> 0.6 | H8: ='Points.1_Desv.0.7'!B6 -> 0.7 | I8: ='Points.4_Desv.0.1'!B6 -> 0.1 | J8: ='Points.4_Desv.0.2'!B6 -> 0.2 | K8: ='Points.4_Desv.0.3'!B6 -> 0.3 | L8: ='Points.4_Desv.0.4'!B6 -> 0.4 | M8: ='Points.9_Desv.0.1'!B6 -> 0.1 | N8: ='Points.9_Desv.0.2'!B6 -> 0.2 | O8: ='Points.9_Desv.0.3'!B6 -> 0.3 | P8: ='Points.16_Desv.0.1'!B6 -> 0.1 | Q8: ='Points.16_Desv.0.2'!B6 -> 0.2 | R8: ='Points.16_Desv.0.3'!B6 -> 0.3
B9: Spillage | E9: ='Points.1_Desv.0.4'!B7 -> 0.1683 | F9: ='Points.1_Desv.0.5'!B7 -> 0.232 | G9: ='Points.1_Desv.0.6'!B7 -> 0.302 | H9: ='Points.1_Desv.0.7'!B7 -> 0.3901 | I9: ='Points.4_Desv.0.1'!B7 -> 0.2449 | J9: ='Points.4_Desv.0.2'!B7 -> 0.2722 | K9: ='Points.4_Desv.0.3'!B7 -> 0.318 | L9: ='Points.4_Desv.0.4'!B7 -> 0.3719 | M9: ='Points.9_Desv.0.1'!B7 -> 0.2907 | N9: ='Points.9_Desv.0.2'!B7 -> 0.3154 | O9: ='Points.9_Desv.0.3'!B7 -> 0.3529 | P9: ='Points.16_Desv.0.1'!B7 -> 0.2998 | Q9: ='Points.16_Desv.0.2'!B7 -> 0.3163 | R9: ='Points.16_Desv.0.3'!B7 -> 0.3572
B10: Spillage [%] | E10: =E9*100 -> 16.83 | F10: 23.2 | G10: 30.2 | H10: 39.01 | I10: 24.49 | J10: 27.22 | K10: 31.8 | L10: 37.19 | M10: 29.07 | N10: 31.54 | O10: 35.29 | P10: 29.98 | Q10: 31.63 | R10: 35.72
B11: Avg_concentration | E11: ='Points.1_Desv.0.4'!B8 -> 650.0718 | F11: ='Points.1_Desv.0.5'!B8 -> 600.2322 | G11: ='Points.1_Desv.0.6'!B8 -> 545.5525 | H11: ='Points.1_Desv.0.7'!B8 -> 476.6522 | I11: ='Points.4_Desv.0.1'!B8 -> 590.1447 | J11: ='Points.4_Desv.0.2'!B8 -> 568.7958 | K11: ='Points.4_Desv.0.3'!B8 -> 533.0448 | L11: ='Points.4_Desv.0.4'!B8 -> 490.9399 | M11: ='Points.9_Desv.0.1'!B8 -> 554.3577 | N11: ='Points.9_Desv.0.2'!B8 -> 535.0523 | O11: ='Points.9_Desv.0.3'!B8 -> 505.7485 | P11: ='Points.16_Desv.0.1'!B8 -> 547.2514 | Q11: ='Points.16_Desv.0.2'!B8 -> 534.373 | R11: ='Points.16_Desv.0.3'!B8 -> 502.4032
B12: Std_concentration | E12: ='Points.1_Desv.0.4'!B9 -> 351.384 | F12: ='Points.1_Desv.0.5'!B9 -> 270.2707 | G12: ='Points.1_Desv.0.6'!B9 -> 206.4692 | H12: ='Points.1_Desv.0.7'!B9 -> 147.8766 | I12: ='Points.4_Desv.0.1'!B9 -> 157.8033 | J12: ='Points.4_Desv.0.2'!B9 -> 151.2144 | K12: ='Points.4_Desv.0.3'!B9 -> 140.9472 | L12: ='Points.4_Desv.0.4'!B9 -> 122.9735 | M12: ='Points.9_Desv.0.1'!B9 -> 135.4394 | N12: ='Points.9_Desv.0.2'!B9 -> 140.1112 | O12: ='Points.9_Desv.0.3'!B9 -> 130.1876 | P12: ='Points.16_Desv.0.1'!B9 -> 144.9478 | Q12: ='Points.16_Desv.0.2'!B9 -> 145.2591 | R12: ='Points.16_Desv.0.3'!B9 -> 128.315
B13: Avg_concentration mesur.
B14: Max_concentration mesur. | E14: ='Points.1_Desv.0.4'!E10 -> 1560.84 | F14: ='Points.1_Desv.0.5'!E10 -> 1292.566 | G14: ='Points.1_Desv.0.6'!E10 -> 1071.622 | H14: ='Points.1_Desv.0.7'!E10 -> 864.062 | I14: ='Points.4_Desv.0.1'!E10 -> 916.106 | J14: ='Points.4_Desv.0.2'!E10 -> 909.794 | K14: ='Points.4_Desv.0.3'!E10 -> 850.483 | L14: ='Points.4_Desv.0.4'!E10 -> 796.877 | M14: ='Points.9_Desv.0.1'!E10 -> 877.729 | N14: ='Points.9_Desv.0.2'!E10 -> 899.176 | O14: ='Points.9_Desv.0.3'!E10 -> 830.583 | P14: ='Points.16_Desv.0.1'!E10 -> 903.713 | Q14: ='Points.16_Desv.0.2'!E10 -> 889.938 | R14: ='Points.16_Desv.0.3'!E10 -> 818.227
B15: Max Concentrated irradiance-to-electric efficiency per profile | E15: =MAX('Points.1_Desv.0.4'!H12:V12) -> 23.38626633 | F15: =MAX('Points.1_Desv.0.5'!I12:W12) -> 25.35006004 | G15: =MAX('Points.1_Desv.0.6'!J12:X12) -> 24.72186816 | H15: =MAX('Points.1_Desv.0.7'!K12:Y12) -> 23.45107518 | I15: =MAX('Points.4_Desv.0.1'!L12:Z12) -> 30.22870665 | J15: =MAX('Points.4_Desv.0.2'!M12:AA12) -> 26.70095233 | K15: =MAX('Points.4_Desv.0.3'!N12:AB12) -> 25.71641636 | L15: =MAX('Points.4_Desv.0.4'!O12:AC12) -> 23.6841311 | M15: =MAX('Points.9_Desv.0.1'!P12:AD12) -> 30.47903994 | N15: =MAX('Points.9_Desv.0.2'!Q12:AE12) -> 25.26693413 | O15: =MAX('Points.9_Desv.0.3'!R12:AF12) -> 23.89932123 | P15: =MAX('Points.16_Desv.0.1'!S12:AG12) -> 25.3691326 | Q15: =MAX('Points.16_Desv.0.2'!T12:AH12) -> 25.36528775 | R15: =MAX('Points.16_Desv.0.3'!U12:AI12) -> 23.71807925
B16: Max Solar field-to-electric efficiency per profile | E16: =MAX('Points.1_Desv.0.4'!H13:V13) -> 15.20341174 | F16: =MAX('Points.1_Desv.0.5'!I13:W13) -> 15.21510603 | G16: =MAX('Points.1_Desv.0.6'!J13:X13) -> 13.48825127 | H16: =MAX('Points.1_Desv.0.7'!K13:Y13) -> 11.17912754 | I16: =MAX('Points.4_Desv.0.1'!L13:Z13) -> 17.8379598 | J16: =MAX('Points.4_Desv.0.2'!M13:AA13) -> 15.18750168 | K16: =MAX('Points.4_Desv.0.3'!N13:AB13) -> 13.70684992 | L16: =MAX('Points.4_Desv.0.4'!O13:AC13) -> 11.62653996 | M16: =MAX('Points.9_Desv.0.1'!P13:AD13) -> 16.89757974 | N16: =MAX('Points.9_Desv.0.2'!Q13:AE13) -> 13.52033645 | O16: =MAX('Points.9_Desv.0.3'!R13:AF13) -> 12.08588675 | P16: =MAX('Points.16_Desv.0.1'!S13:AG13) -> 13.88452627 | Q16: =MAX('Points.16_Desv.0.2'!T13:AH13) -> 13.55520977 | R16: =MAX('Points.16_Desv.0.3'!U13:AI13) -> 11.91596301
B18: Paràmetres secundaris | V18: La eficiencia se mantiene muy constante a pesar de la variabilidad de los perfiles, lo cual es muy bueno de cara a los claros beneficios del uso de DC/DC converters
B19: Incident irradiance | E19: =1*E11/E7 -> 999.9566221 | F19: 1000.053649 | G19: 999.9129399 | H19: 999.8997273 | I19: 1000.07575 | J19: 999.992616 | K19: 1000.084053 | L19: 1000.081279 | M19: 999.9237013 | N19: 999.9108578 | O19: 1000.095907 | P19: 999.9112004 | Q19: 999.949476 | R19: 1000.006369
B20: Incident irradiance | E20: =1*E13/E7 -> 0 | F20: 0 | G20: 0 | H20: 0 | I20: 0 | J20: 0 | K20: 0 | L20: 0 | M20: 0 | N20: 0 | O20: 0 | P20: 0 | Q20: 0 | R20: 0
B23: 1 Aiming point ; σ: 0.4 - 0.5 - 0.6 - 0.7 (Spillage)
B24: 1 Aiming point ; σ: 0.4 - 0.5 - 0.6 - 0.7 (Irradiance)
B25: 4 Aiming point ; σ: 0.1 - 0.2 - 0.3 - 0.4 (Spillage)
B26: 4 Aiming point ; σ: 0.1 - 0.2 - 0.3 - 0.4 (Irradiance)
B27: 9 Aiming point ; σ: 0.1 - 0.2 - 0.3 (Spillage)
B28: 9 Aiming point ; σ: 0.1 - 0.2 - 0.3 (Irradiance)
B29: 16 Aiming point ; σ: 0.1 - 0.2 - 0.3 (Spillage)
B30: 16 Aiming point ; σ: 0.1 - 0.2 - 0.3 (Irradiance)
B33: 1 Aiming point ; σ: 0.4 - 0.5 - 0.6 - 0.7 (Spillage)
B34: 1 Aiming point ; σ: 0.4 - 0.5 - 0.6 - 0.7 (Efficiency)
B35: 4 Aiming point ; σ: 0.1 - 0.2 - 0.3 - 0.4 (Spillage)
B36: 4 Aiming point ; σ: 0.1 - 0.2 - 0.3 - 0.4 (Efficiency)
B37: 9 Aiming point ; σ: 0.1 - 0.2 - 0.3 (Spillage)
B38: 9 Aiming point ; σ: 0.1 - 0.2 - 0.3 (Efficiency)
B39: 16 Aiming point ; σ: 0.1 - 0.2 - 0.3 (Spillage)
B40: 16 Aiming point ; σ: 0.1 - 0.2 - 0.3 (Efficiency)
B53: 1 Aiming point ; σ: 0.4 - 0.5 - 0.6 - 0.7 (left axis)
B54: 1 Aiming point ; σ: 0.4 - 0.5 - 0.6 - 0.7 (right axis)
B55: 4 Aiming point ; σ: 0.1 - 0.2 - 0.3 - 0.4 (left axis)
B56: 4 Aiming point ; σ: 0.1 - 0.2 - 0.3 - 0.4 (right axis)
B57: 9 Aiming point ; σ: 0.1 - 0.2 - 0.3 (left axis)
B58: 9 Aiming point ; σ: 0.1 - 0.2 - 0.3 (right axis)
B59: 16 Aiming point ; σ: 0.1 - 0.2 - 0.3 (left axis)
B60: 16 Aiming point ; σ: 0.1 - 0.2 - 0.3 (right axis)

Sheet Points.1_Desv.0.4
A1: # Concentration distribution on receiver: rec_CPV_SolarX Reference Heliostat Field
A2: # ratio | B2: 1 | H2: Electric power
A3: # aiming_points | B3: 1 | H3: Cells/module | I3: 5 | J3: 10 | K3: 25 | L3: 50 | M3: 4 | N3: 5 | O3: 10 | P3: 20 | Q3: 5 | R3: 25 | S3: 2 | T3: 4 | U3: 5 | V3: 10 | W3: 20
A4: # combined std dev. | B4: 0.4 | H4: Modules/subconjunto | I4: 200 | J4: 200 | K4: 200 | L4: 200 | M4: 250 | N4: 250 | O4: 250 | P4: 250 | Q4: 400 | R4: 400 | S4: 500 | T4: 500 | U4: 500 | V4: 500 | W4: 500
A5: # optical_eff | B5: 0.6501 | H5: Subconjunto/subreceivers | I5: 10 | J5: 5 | K5: 2 | L5: 1 | M5: 10 | N5: 8 | O5: 4 | P5: 2 | Q5: 5 | R5: 1 | S5: 10 | T5: 5 | U5: 4 | V5: 2 | W5: 1
A6: # standard_deviation | B6: 0.4 | H6: Power/subreceiver 1 | I6: 167795.4969 | J6: 165420.0261 | K6: 156632.5919 | L6: 139898.802 | M6: 168963.4283 | N6: 168506.7054 | O6: 166717.1734 | P6: 164485.3252 | Q6: 164835.8481 | R6: 138142.0914 | S6: 166899.6943 | T6: 164813.3207 | U6: 199160.5171 | V6: 156976.9768 | W6: 137872.6967
A7: # spillage | B7: 0.1683 | E7: Excel calculations | F7: Matlab calculations | H7: Power/subreceiver 2 | I7: 171214.4725 | J7: 168574.5556 | K7: 159347.9937 | L7: 142290.9894 | M7: 170277.2183 | N7: 169407.8063 | O7: 165557.9974 | P7: 152400.3939 | Q7: 168153.0813 | R7: 141395.9079 | S7: 170296.3023 | T7: 167969.4689 | U7: 166422.0787 | V7: 159843.674 | W7: 140643.5405
A8: # avg_concentration | B8: 650 | D8: Avg_concentration mesur. | E8: =MEDIAN(D12:D40011) -> 574.312 | F8: 650.0717916 | H8: Power/subreceiver 3 | I8: 167795.4969 | J8: 165420.0261 | K8: 156632.5919 | L8: 139898.802 | M8: 168963.4283 | N8: 168506.7054 | O8: 166717.1734 | P8: 164485.3252 | Q8: 164835.8481 | R8: 138142.0914 | S8: 166899.6943 | T8: 164813.3207 | U8: 199160.5171 | V8: 156976.9768 | W8: 137872.6967
A9: # std_concentration | B9: 351 | D9: Std_concentration | F9: 351.3883674 | H9: Power/subreceiver 4 | I9: 171214.4725 | J9: 168574.5556 | K9: 159347.9937 | L9: 142290.9894 | M9: 170277.2183 | N9: 169407.8063 | O9: 165557.9974 | P9: 152400.3939 | Q9: 168153.0813 | R9: 141395.9079 | S9: 170296.3023 | T9: 167969.4689 | U9: 166422.0787 | V9: 159843.674 | W9: 140643.5405
A10: # sun_zen=22, sun_azm=0 | D10: Concent. Max | E10: =MAX(D12:D40011) -> 1,560.840 | F10: 1560.84 | H10: Total recevier power [W] | I10: 678019.9388 | J10: 667989.1635 | K10: 631961.1712 | L10: 564379.5828 | M10: 678481.2932 | N10: 675829.0235 | O10: 664550.3416 | P10: 633771.4381 | Q10: 665977.8588 | R10: 559075.9987 | S10: 674391.9932 | T10: 665565.5792 | U10: 731165.1916 | V10: 633641.3015 | W10: 557032.4745
A11: x[m] | B11: y[m] | C11: z[m] | D11: concentration[-] | H11: Receiver efficiency | I11: =I10/($B$8*1000*4) -> 0.2607480969 | J11: =J10/($B$8*1000*4) -> 0.2568905325 | K11: 0.2430351429 | L11: 0.2170450952 | M11: 0.2609255213 | N11: 0.2599055303 | O11: 0.2555680548 | P11: 0.2437313225 | Q11: 0.2561170392 | R11: 0.2150054804 | S11: 0.2593528873 | T11: 0.2559584876 | U11: 0.2811863211 | V11: 0.2436812755 | W11: 0.2142195964
A12: -0.995 | B12: -0.995 | C12: 0 | D12: 102 | H12: Concentrated irradiance-to-electric efficiency | I12: =I10*100/($I$17) -> 21.68641922 | J12: =J10*100/($I$17) -> 21.36558559 | K12: 20.21323283 | L12: 18.05164057 | M12: 21.70117561 | N12: 21.61634295 | O12: 21.25559512 | P12: 20.27113409 | Q12: 21.30125415 | R12: 17.88200581 | S12: 21.57037964 | T12: 21.28806742 | U12: 23.38626633 | V12: 20.26697168 | W12: 17.81664383
A13: -0.985 | B13: -0.995 | C13: 0 | D13: 102 | H13: Solar field-to-electric efficiency | I13: =$B$5*I12 -> 14.09834113 | J13: =$B$5*J12 -> 13.88976719 | K13: 13.14062266 | L13: 11.73537153 | M13: 14.10793426 | N13: 14.05278455 | O13: 13.81826239 | P13: 13.17826427 | Q13: 13.84794532 | R13: 11.62509197 | S13: 14.0229038 | T13: 13.83937263 | U13: 15.20341174 | V13: 13.17555829 | W13: 11.58260016
A14: -0.975 | B14: -0.995 | C14: 0 | D14: 94 | H14: Perfil iluminación
A15: -0.965 | B15: -0.995 | C15: 0 | D15: 104 | H15: Desviacion estándar entre mòdulos [suns] | I15: 347.759888 | J15: 347.7536993 | K15: 347.7958164 | L15: 337.3059544 | M15: 348.4754049 | N15: 348.7909647 | O15: 352.0212993 | P15: 351.8043658 | Q15: 348.7321658 | R15: 353.4823984 | S15: 348.4272406 | T15: 348.881939 | U15: 349.3711905 | V15: 353.0915881 | W15: 355.5729358
A16: -0.955 | B16: -0.995 | C16: 0 | D16: 105
A17: -0.945 | B17: -0.995 | C17: 0 | D17: 146 | H17: Irradiación total [W] | I17: =B8*4*1000/(1-B7) -> 3126472.526
A18: -0.935 | B18: -0.995 | C18: 0 | D18: 94
A19: -0.925 | B19: -0.995 | C19: 0 | D19: 108
A20: -0.915 | B20: -0.995 | C20: 0 | D20: 126
A21: -0.905 | B21: -0.995 | C21: 0 | D21: 117
A22: -0.895 | B22: -0.995 | C22: 0 | D22: 136
A23: -0.885 | B23: -0.995 | C23: 0 | D23: 136
A24: -0.875 | B24: -0.995 | C24: 0 | D24: 114
A25: -0.865 | B25: -0.995 | C25: 0 | D25: 151
A26: -0.855 | B26: -0.995 | C26: 0 | D26: 148
A27: -0.845 | B27: -0.995 | C27: 0 | D27: 140
A28: -0.835 | B28: -0.995 | C28: 0 | D28: 149
A29: -0.825 | B29: -0.995 | C29: 0 | D29: 152
A30: -0.815 | B30: -0.995 | C30: 0 | D30: 158
A31: -0.805 | B31: -0.995 | C31: 0 | D31: 152
A32: -0.795 | B32: -0.995 | C32: 0 | D32: 163
A33: -0.785 | B33: -0.995 | C33: 0 | D33: 151
A34: -0.775 | B34: -0.995 | C34: 0 | D34: 157
A35: -0.765 | B35: -0.995 | C35: 0 | D35: 157
A36: -0.755 | B36: -0.995 | C36: 0 | D36: 204
A37: -0.745 | B37: -0.995 | C37: 0 | D37: 160
A38: -0.735 | B38: -0.995 | C38: 0 | D38: 180
A39: -0.725 | B39: -0.995 | C39: 0 | D39: 169
A40: -0.715 | B40: -0.995 | C40: 0 | D40: 178
A41: -0.705 | B41: -0.995 | C41: 0 | D41: 187
A42: -0.695 | B42: -0.995 | C42: 0 | D42: 186
A43: -0.685 | B43: -0.995 | C43: 0 | D43: 186
A44: -0.675 | B44: -0.995 | C44: 0 | D44: 198
A45: -0.665 | B45: -0.995 | C45: 0 | D45: 238
A46: -0.655 | B46: -0.995 | C46: 0 | D46: 204
A47: -0.645 | B47: -0.995 | C47: 0 | D47: 195
A48: -0.635 | B48: -0.995 | C48: 0 | D48: 201
A49: -0.625 | B49: -0.995 | C49: 0 | D49: 190
A50: -0.615 | B50: -0.995 | C50: 0 | D50: 229
A51: -0.605 | B51: -0.995 | C51: 0 | D51: 204
A52: -0.595 | B52: -0.995 | C52: 0 | D52: 238
A53: -0.585 | B53: -0.995 | C53: 0 | D53: 232
A54: -0.575 | B54: -0.995 | C54: 0 | D54: 232
A55: -0.565 | B55: -0.995 | C55: 0 | D55: 206
A56: -0.555 | B56: -0.995 | C56: 0 | D56: 225
A57: -0.545 | B57: -0.995 | C57: 0 | D57: 244
A58: -0.535 | B58: -0.995 | C58: 0 | D58: 247
A59: -0.525 | B59: -0.995 | C59: 0 | D59: 264
A60: -0.515 | B60: -0.995 | C60: 0 | D60: 276
A61: -0.505 | B61: -0.995 | C61: 0 | D61: 270
A62: -0.495 | B62: -0.995 | C62: 0 | D62: 254
A63: -0.485 | B63: -0.995 | C63: 0 | D63: 296
A64: -0.475 | B64: -0.995 | C64: 0 | D64: 267
A65: -0.465 | B65: -0.995 | C65: 0 | D65: 273
A66: -0.455 | B66: -0.995 | C66: 0 | D66: 245
A67: -0.445 | B67: -0.995 | C67: 0 | D67: 279
A68: -0.435 | B68: -0.995 | C68: 0 | D68: 279
A69: -0.425 | B69: -0.995 | C69: 0 | D69: 279
A70: -0.415 | B70: -0.995 | C70: 0 | D70: 271
A71: -0.405 | B71: -0.995 | C71: 0 | D71: 262
A72: -0.395 | B72: -0.995 | C72: 0 | D72: 270
A73: -0.385 | B73: -0.995 | C73: 0 | D73: 276
A74: -0.375 | B74: -0.995 | C74: 0 | D74: 294
A75: -0.365 | B75: -0.995 | C75: 0 | D75: 305
A76: -0.355 | B76: -0.995 | C76: 0 | D76: 309
A77: -0.345 | B77: -0.995 | C77: 0 | D77: 300
A78: -0.335 | B78: -0.995 | C78: 0 | D78: 335
A79: -0.325 | B79: -0.995 | C79: 0 | D79: 290
A80: -0.315 | B80: -0.995 | C80: 0 | D80: 320
A81: -0.305 | B81: -0.995 | C81: 0 | D81: 286
A82: -0.295 | B82: -0.995 | C82: 0 | D82: 285
A83: -0.285 | B83: -0.995 | C83: 0 | D83: 291
A84: -0.275 | B84: -0.995 | C84: 0 | D84: 299
A85: -0.265 | B85: -0.995 | C85: 0 | D85: 332
A86: -0.255 | B86: -0.995 | C86: 0 | D86: 360
A87: -0.245 | B87: -0.995 | C87: 0 | D87: 344
A88: -0.235 | B88: -0.995 | C88: 0 | D88: 334
A89: -0.225 | B89: -0.995 | C89: 0 | D89: 315
A90: -0.215 | B90: -0.995 | C90: 0 | D90: 378
A91: -0.205 | B91: -0.995 | C91: 0 | D91: 354
A92: -0.195 | B92: -0.995 | C92: 0 | D92: 329
A93: -0.185 | B93: -0.995 | C93: 0 | D93: 332
A94: -0.175 | B94: -0.995 | C94: 0 | D94: 352
A95: -0.165 | B95: -0.995 | C95: 0 | D95: 352
A96: -0.155 | B96: -0.995 | C96: 0 | D96: 331
A97: -0.145 | B97: -0.995 | C97: 0 | D97: 332
A98: -0.135 | B98: -0.995 | C98: 0 | D98: 312
A99: -0.125 | B99: -0.995 | C99: 0 | D99: 343
A100: -0.115 | B100: -0.995 | C100: 0 | D100: 404
A101: -0.105 | B101: -0.995 | C101: 0 | D101: 291
A102: -0.095 | B102: -0.995 | C102: 0 | D102: 349
A103: -0.085 | B103: -0.995 | C103: 0 | D103: 357
A104: -0.075 | B104: -0.995 | C104: 0 | D104: 346
A105: -0.065 | B105: -0.995 | C105: 0 | D105: 332
A106: -0.055 | B106: -0.995 | C106: 0 | D106: 376
A107: -0.045 | B107: -0.995 | C107: 0 | D107: 373
A108: -0.035 | B108: -0.995 | C108: 0 | D108: 334
A109: -0.025 | B109: -0.995 | C109: 0 | D109: 343
A110: -0.015 | B110: -0.995 | C110: 0 | D110: 341
A111: -0.005 | B111: -0.995 | C111: 0 | D111: 381
A112: 0.005 | B112: -0.995 | C112: 0 | D112: 372
A113: 0.015 | B113: -0.995 | C113: 0 | D113: 390
A114: 0.025 | B114: -0.995 | C114: 0 | D114: 366
A115: 0.035 | B115: -0.995 | C115: 0 | D115: 338
A116: 0.045 | B116: -0.995 | C116: 0 | D116: 332
A117: 0.055 | B117: -0.995 | C117: 0 | D117: 329
A118: 0.065 | B118: -0.995 | C118: 0 | D118: 352
A119: 0.075 | B119: -0.995 | C119: 0 | D119: 373
A120: 0.085 | B120: -0.995 | C120: 0 | D120: 382
A121: 0.095 | B121: -0.995 | C121: 0 | D121: 305
A122: 0.105 | B122: -0.995 | C122: 0 | D122: 358
A123: 0.115 | B123: -0.995 | C123: 0 | D123: 373
A124: 0.125 | B124: -0.995 | C124: 0 | D124: 360
A125: 0.135 | B125: -0.995 | C125: 0 | D125: 312
A126: 0.145 | B126: -0.995 | C126: 0 | D126: 352
A127: 0.155 | B127: -0.995 | C127: 0 | D127: 340
A128: 0.165 | B128: -0.995 | C128: 0 | D128: 352
A129: 0.175 | B129: -0.995 | C129: 0 | D129: 347
A130: 0.185 | B130: -0.995 | C130: 0 | D130: 320
A131: 0.195 | B131: -0.995 | C131: 0 | D131: 338
A132: 0.205 | B132: -0.995 | C132: 0 | D132: 352
A133: 0.215 | B133: -0.995 | C133: 0 | D133: 381
A134: 0.225 | B134: -0.995 | C134: 0 | D134: 355
A135: 0.235 | B135: -0.995 | C135: 0 | D135: 314
A136: 0.245 | B136: -0.995 | C136: 0 | D136: 306
A137: 0.255 | B137: -0.995 | C137: 0 | D137: 331
A138: 0.265 | B138: -0.995 | C138: 0 | D138: 335
A139: 0.275 | B139: -0.995 | C139: 0 | D139: 326
A140: 0.285 | B140: -0.995 | C140: 0 | D140: 306
A141: 0.295 | B141: -0.995 | C141: 0 | D141: 279
A142: 0.305 | B142: -0.995 | C142: 0 | D142: 331
A143: 0.315 | B143: -0.995 | C143: 0 | D143: 303
A144: 0.325 | B144: -0.995 | C144: 0 | D144: 300
A145: 0.335 | B145: -0.995 | C145: 0 | D145: 267
A146: 0.345 | B146: -0.995 | C146: 0 | D146: 283
A147: 0.355 | B147: -0.995 | C147: 0 | D147: 280
A148: 0.365 | B148: -0.995 | C148: 0 | D148: 286
A149: 0.375 | B149: -0.995 | C149: 0 | D149: 293
A150: 0.385 | B150: -0.995 | C150: 0 | D150: 288
A151: 0.395 | B151: -0.995 | C151: 0 | D151: 259
A152: 0.405 | B152: -0.995 | C152: 0 | D152: 294
A153: 0.415 | B153: -0.995 | C153: 0 | D153: 271
A154: 0.425 | B154: -0.995 | C154: 0 | D154: 283
A155: 0.435 | B155: -0.995 | C155: 0 | D155: 303
A156: 0.445 | B156: -0.995 | C156: 0 | D156: 288
A157: 0.455 | B157: -0.995 | C157: 0 | D157: 258
A158: 0.465 | B158: -0.995 | C158: 0 | D158: 244
A159: 0.475 | B159: -0.995 | C159: 0 | D159: 250
A160: 0.485 | B160: -0.995 | C160: 0 | D160: 264
A161: 0.495 | B161: -0.995 | C161: 0 | D161: 255
A162: 0.505 | B162: -0.995 | C162: 0 | D162: 247
A163: 0.515 | B163: -0.995 | C163: 0 | D163: 227
A164: 0.525 | B164: -0.995 | C164: 0 | D164: 302
A165: 0.535 | B165: -0.995 | C165: 0 | D165: 229
A166: 0.545 | B166: -0.995 | C166: 0 | D166: 261
A167: 0.555 | B167: -0.995 | C167: 0 | D167: 206
A168: 0.565 | B168: -0.995 | C168: 0 | D168: 245
A169: 0.575 | B169: -0.995 | C169: 0 | D169: 181
A170: 0.585 | B170: -0.995 | C170: 0 | D170: 207
A171: 0.595 | B171: -0.995 | C171: 0 | D171: 258
A172: 0.605 | B172: -0.995 | C172: 0 | D172: 207
A173: 0.615 | B173: -0.995 | C173: 0 | D173: 221
A174: 0.625 | B174: -0.995 | C174: 0 | D174: 212
A175: 0.635 | B175: -0.995 | C175: 0 | D175: 187
A176: 0.645 | B176: -0.995 | C176: 0 | D176: 184
A177: 0.655 | B177: -0.995 | C177: 0 | D177: 200
A178: 0.665 | B178: -0.995 | C178: 0 | D178: 210
A179: 0.675 | B179: -0.995 | C179: 0 | D179: 157
A180: 0.685 | B180: -0.995 | C180: 0 | D180: 172
A181: 0.695 | B181: -0.995 | C181: 0 | D181: 145
A182: 0.705 | B182: -0.995 | C182: 0 | D182: 154
A183: 0.715 | B183: -0.995 | C183: 0 | D183: 187
A184: 0.725 | B184: -0.995 | C184: 0 | D184: 137
A185: 0.735 | B185: -0.995 | C185: 0 | D185: 171
A186: 0.745 | B186: -0.995 | C186: 0 | D186: 168
A187: 0.755 | B187: -0.995 | C187: 0 | D187: 117
A188: 0.765 | B188: -0.995 | C188: 0 | D188: 128
A189: 0.775 | B189: -0.995 | C189: 0 | D189: 125
A190: 0.785 | B190: -0.995 | C190: 0 | D190: 171
A191: 0.795 | B191: -0.995 | C191: 0 | D191: 133
A192: 0.805 | B192: -0.995 | C192: 0 | D192: 136
A193: 0.815 | B193: -0.995 | C193: 0 | D193: 136
A194: 0.825 | B194: -0.995 | C194: 0 | D194: 131
A195: 0.835 | B195: -0.995 | C195: 0 | D195: 131
A196: 0.845 | B196: -0.995 | C196: 0 | D196: 113
A197: 0.855 | B197: -0.995 | C197: 0 | D197: 114
A198: 0.865 | B198: -0.995 | C198: 0 | D198: 133
A199: 0.875 | B199: -0.995 | C199: 0 | D199: 96
A200: 0.885 | B200: -0.995 | C200: 0 | D200: 131
... 4300 more rows

Sheet Points.1_Desv.0.5
A1: # Concentration distribution on receiver: rec_CPV_SolarX Reference Heliostat Field
A2: # ratio | B2: 1 | H2: Electric power
A3: # aiming_points | B3: 1 | H3: Cells/module | I3: 5 | J3: 10 | K3: 25 | L3: 50 | M3: 4 | N3: 5 | O3: 10 | P3: 20 | Q3: 5 | R3: 25 | S3: 2 | T3: 4 | U3: 5 | V3: 10 | W3: 20
A4: # combined std dev. | B4: 0.5 | H4: Modules/subconjunto | I4: 200 | J4: 200 | K4: 200 | L4: 200 | M4: 250 | N4: 250 | O4: 250 | P4: 250 | Q4: 400 | R4: 400 | S4: 500 | T4: 500 | U4: 500 | V4: 500 | W4: 500
A5: # optical_eff | B5: 0.6002 | H5: Subconjunto/subreceivers | I5: 10 | J5: 5 | K5: 2 | L5: 1 | M5: 10 | N5: 8 | O5: 4 | P5: 2 | Q5: 5 | R5: 1 | S5: 10 | T5: 5 | U5: 4 | V5: 2 | W5: 1
A6: # standard_deviation | B6: 0.5 | H6: Power/subreceiver 1 | I6: 182870.9988 | J6: 181048.4427 | K6: 173772.8301 | L6: 154509.2791 | M6: 183699.8542 | N6: 183439.7985 | O6: 181959.8062 | P6: 177914.5546 | Q6: 180817.8156 | R6: 156999.9417 | S6: 182284.7977 | T6: 180764.6665 | U6: 179530.1302 | V6: 173270.7948 | W6: 156837.8053
A7: # spillage | B7: 0.232 | E7: Excel calculations | F7: Matlab calculations | H7: Power/subreceiver 2 | I7: 180177.5674 | J7: 178664.5228 | K7: 171583.8656 | L7: 152807.7602 | M7: 189737.6844 | N7: 178718.4327 | O7: 175373.4403 | P7: 165916.2527 | Q7: 178403.146 | R7: 155187.388 | S7: 179802.1733 | T7: 206564.2037 | U7: 177014.7103 | V7: 222977.182 | W7: 155205.806
A8: # avg_concentration | B8: 600 | D8: Avg_concentration mesur. | E8: =MEDIAN(D12:D40011) -> 554.723 | F8: 600.232236 | H8: Power/subreceiver 3 | I8: 182870.9988 | J8: 181048.4427 | K8: 173772.8301 | L8: 154509.2791 | M8: 183699.8542 | N8: 183439.7985 | O8: 181959.8062 | P8: 177914.5546 | Q8: 180817.8156 | R8: 156999.9417 | S8: 182284.7977 | T8: 180764.6665 | U8: 179530.1302 | V8: 173270.7948 | W8: 156837.8053
A9: # std_concentration | B9: 270 | D9: Std_concentration | F9: 270.2740785 | H9: Power/subreceiver 4 | I9: 180177.5674 | J9: 178664.5228 | K9: 171583.8656 | L9: 152807.7602 | M9: 189737.6844 | N9: 178718.4327 | O9: 175373.4403 | P9: 165916.2527 | Q9: 178403.146 | R9: 155187.388 | S9: 179802.1733 | T9: 206564.2037 | U9: 177014.7103 | V9: 222977.182 | W9: 155205.806
A10: # sun_zen=22, sun_azm=0 | D10: Concent. Max | E10: =MAX(D12:D40011) -> 1,292.566 | F10: 1292.566 | H10: Total recevier power | I10: 726097.1325 | J10: 719425.9311 | K10: 690713.3913 | L10: 614634.0786 | M10: 746875.0772 | N10: 724316.4623 | O10: 714666.4929 | P10: 687661.6146 | Q10: 718441.9233 | R10: 624374.6594 | S10: 724173.9419 | T10: 774657.7404 | U10: 713089.681 | V10: 792495.9535 | W10: 624087.2227
A11: x[m] | B11: y[m] | C11: z[m] | D11: concentration[-] | H11: Receiver efficiency | I11: =I10/($B$8*1000*4) -> 0.302423434 | J11: =J10/($B$8*1000*4) -> 0.2996448421 | K11: 0.2876859119 | L11: 0.2559984614 | M11: 0.3110775618 | N11: 0.3016817751 | O11: 0.29766251 | P11: 0.2864148302 | Q11: 0.2992349974 | R11: 0.2600554666 | S11: 0.3016224146 | T11: 0.3226491933 | U11: 0.2970057592 | V11: 0.3300789067 | W11: 0.2599357476
A12: -0.995 | B12: -0.995 | C12: 0 | D12: 102 | H12: Concentrated irradiance-to-electric efficiency | I12: =I10*100/($I$17) -> 23.22611973 | J12: =J10*100/($I$17) -> 23.01272387 | K12: 22.09427804 | L12: 19.66068183 | M12: 23.89075675 | N12: 23.16916033 | O12: 22.86048077 | P12: 21.99665896 | Q12: 22.9812478 | R12: 19.97225984 | S12: 23.16460144 | T12: 24.77945804 | U12: 22.81004231 | V12: 25.35006004 | W12: 19.96306542
A13: -0.985 | B13: -0.995 | C13: 0 | D13: 120 | H13: Solar field-to-electric efficiency | I13: =$B$5*I12 -> 13.94031706 | J13: =$B$5*J12 -> 13.81223687 | K13: 13.26098568 | L13: 11.80034124 | M13: 14.3392322 | N13: 13.90613003 | O13: 13.72086056 | P13: 13.20239471 | Q13: 13.79334493 | R13: 11.98735035 | S13: 13.90339378 | T13: 14.87263072 | U13: 13.69058739 | V13: 15.21510603 | W13: 11.98183186
A14: -0.975 | B14: -0.995 | C14: 0 | D14: 116 | H14: Perfil iluminación
A15: -0.965 | B15: -0.995 | C15: 0 | D15: 101 | H15: Desviacion estándar entre mòdulos [suns] | I15: 262.6713442 | J15: 262.6528727 | K15: 263.735332 | L15: 252.2067046 | M15: 263.3142454 | N15: 263.5686491 | O15: 266.1926341 | P15: 265.5013889 | Q15: 263.385385 | R15: 264.7152109 | S15: 263.349519 | T15: 263.5361068 | U15: 263.8894484 | V15: 267.4711287 | W15: 266.2372862
A16: -0.955 | B16: -0.995 | C16: 0 | D16: 133
A17: -0.945 | B17: -0.995 | C17: 0 | D17: 120 | H17: Irradiación total | I17: =B8*4*1000/(1-B7) -> 3126209.375
A18: -0.935 | B18: -0.995 | C18: 0 | D18: 137
A19: -0.925 | B19: -0.995 | C19: 0 | D19: 111
A20: -0.915 | B20: -0.995 | C20: 0 | D20: 140
A21: -0.905 | B21: -0.995 | C21: 0 | D21: 117
A22: -0.895 | B22: -0.995 | C22: 0 | D22: 140
A23: -0.885 | B23: -0.995 | C23: 0 | D23: 143
A24: -0.875 | B24: -0.995 | C24: 0 | D24: 146
A25: -0.865 | B25: -0.995 | C25: 0 | D25: 160
A26: -0.855 | B26: -0.995 | C26: 0 | D26: 125
A27: -0.845 | B27: -0.995 | C27: 0 | D27: 143
A28: -0.835 | B28: -0.995 | C28: 0 | D28: 175
A29: -0.825 | B29: -0.995 | C29: 0 | D29: 137
A30: -0.815 | B30: -0.995 | C30: 0 | D30: 168
A31: -0.805 | B31: -0.995 | C31: 0 | D31: 184
A32: -0.795 | B32: -0.995 | C32: 0 | D32: 193
A33: -0.785 | B33: -0.995 | C33: 0 | D33: 180
A34: -0.775 | B34: -0.995 | C34: 0 | D34: 218
A35: -0.765 | B35: -0.995 | C35: 0 | D35: 201
A36: -0.755 | B36: -0.995 | C36: 0 | D36: 197
A37: -0.745 | B37: -0.995 | C37: 0 | D37: 198
A38: -0.735 | B38: -0.995 | C38: 0 | D38: 171
A39: -0.725 | B39: -0.995 | C39: 0 | D39: 227
A40: -0.715 | B40: -0.995 | C40: 0 | D40: 210
A41: -0.705 | B41: -0.995 | C41: 0 | D41: 209
A42: -0.695 | B42: -0.995 | C42: 0 | D42: 203
A43: -0.685 | B43: -0.995 | C43: 0 | D43: 267
A44: -0.675 | B44: -0.995 | C44: 0 | D44: 189
A45: -0.665 | B45: -0.995 | C45: 0 | D45: 216
A46: -0.655 | B46: -0.995 | C46: 0 | D46: 209
A47: -0.645 | B47: -0.995 | C47: 0 | D47: 233
A48: -0.635 | B48: -0.995 | C48: 0 | D48: 238
A49: -0.625 | B49: -0.995 | C49: 0 | D49: 225
A50: -0.615 | B50: -0.995 | C50: 0 | D50: 235
A51: -0.605 | B51: -0.995 | C51: 0 | D51: 244
A52: -0.595 | B52: -0.995 | C52: 0 | D52: 227
A53: -0.585 | B53: -0.995 | C53: 0 | D53: 238
A54: -0.575 | B54: -0.995 | C54: 0 | D54: 251
A55: -0.565 | B55: -0.995 | C55: 0 | D55: 232
A56: -0.555 | B56: -0.995 | C56: 0 | D56: 268
A57: -0.545 | B57: -0.995 | C57: 0 | D57: 261
A58: -0.535 | B58: -0.995 | C58: 0 | D58: 210
A59: -0.525 | B59: -0.995 | C59: 0 | D59: 261
A60: -0.515 | B60: -0.995 | C60: 0 | D60: 239
A61: -0.505 | B61: -0.995 | C61: 0 | D61: 265
A62: -0.495 | B62: -0.995 | C62: 0 | D62: 302
A63: -0.485 | B63: -0.995 | C63: 0 | D63: 253
A64: -0.475 | B64: -0.995 | C64: 0 | D64: 250
A65: -0.465 | B65: -0.995 | C65: 0 | D65: 265
A66: -0.455 | B66: -0.995 | C66: 0 | D66: 248
A67: -0.445 | B67: -0.995 | C67: 0 | D67: 271
A68: -0.435 | B68: -0.995 | C68: 0 | D68: 289
A69: -0.425 | B69: -0.995 | C69: 0 | D69: 297
A70: -0.415 | B70: -0.995 | C70: 0 | D70: 241
A71: -0.405 | B71: -0.995 | C71: 0 | D71: 273
A72: -0.395 | B72: -0.995 | C72: 0 | D72: 280
A73: -0.385 | B73: -0.995 | C73: 0 | D73: 300
A74: -0.375 | B74: -0.995 | C74: 0 | D74: 344
A75: -0.365 | B75: -0.995 | C75: 0 | D75: 274
A76: -0.355 | B76: -0.995 | C76: 0 | D76: 283
A77: -0.345 | B77: -0.995 | C77: 0 | D77: 271
A78: -0.335 | B78: -0.995 | C78: 0 | D78: 302
A79: -0.325 | B79: -0.995 | C79: 0 | D79: 297
A80: -0.315 | B80: -0.995 | C80: 0 | D80: 317
A81: -0.305 | B81: -0.995 | C81: 0 | D81: 323
A82: -0.295 | B82: -0.995 | C82: 0 | D82: 308
A83: -0.285 | B83: -0.995 | C83: 0 | D83: 280
A84: -0.275 | B84: -0.995 | C84: 0 | D84: 329
A85: -0.265 | B85: -0.995 | C85: 0 | D85: 343
A86: -0.255 | B86: -0.995 | C86: 0 | D86: 359
A87: -0.245 | B87: -0.995 | C87: 0 | D87: 300
A88: -0.235 | B88: -0.995 | C88: 0 | D88: 320
A89: -0.225 | B89: -0.995 | C89: 0 | D89: 326
A90: -0.215 | B90: -0.995 | C90: 0 | D90: 318
A91: -0.205 | B91: -0.995 | C91: 0 | D91: 332
A92: -0.195 | B92: -0.995 | C92: 0 | D92: 334
A93: -0.185 | B93: -0.995 | C93: 0 | D93: 349
A94: -0.175 | B94: -0.995 | C94: 0 | D94: 347
A95: -0.165 | B95: -0.995 | C95: 0 | D95: 335
A96: -0.155 | B96: -0.995 | C96: 0 | D96: 341
A97: -0.145 | B97: -0.995 | C97: 0 | D97: 350
A98: -0.135 | B98: -0.995 | C98: 0 | D98: 356
A99: -0.125 | B99: -0.995 | C99: 0 | D99: 282
A100: -0.115 | B100: -0.995 | C100: 0 | D100: 346
A101: -0.105 | B101: -0.995 | C101: 0 | D101: 376
A102: -0.095 | B102: -0.995 | C102: 0 | D102: 329
A103: -0.085 | B103: -0.995 | C103: 0 | D103: 335
A104: -0.075 | B104: -0.995 | C104: 0 | D104: 378
A105: -0.065 | B105: -0.995 | C105: 0 | D105: 357
A106: -0.055 | B106: -0.995 | C106: 0 | D106: 361
A107: -0.045 | B107: -0.995 | C107: 0 | D107: 315
A108: -0.035 | B108: -0.995 | C108: 0 | D108: 340
A109: -0.025 | B109: -0.995 | C109: 0 | D109: 323
A110: -0.015 | B110: -0.995 | C110: 0 | D110: 334
A111: -0.005 | B111: -0.995 | C111: 0 | D111: 303
A112: 0.005 | B112: -0.995 | C112: 0 | D112: 332
A113: 0.015 | B113: -0.995 | C113: 0 | D113: 323
A114: 0.025 | B114: -0.995 | C114: 0 | D114: 346
A115: 0.035 | B115: -0.995 | C115: 0 | D115: 324
A116: 0.045 | B116: -0.995 | C116: 0 | D116: 347
A117: 0.055 | B117: -0.995 | C117: 0 | D117: 359
A118: 0.065 | B118: -0.995 | C118: 0 | D118: 364
A119: 0.075 | B119: -0.995 | C119: 0 | D119: 361
A120: 0.085 | B120: -0.995 | C120: 0 | D120: 312
A121: 0.095 | B121: -0.995 | C121: 0 | D121: 312
A122: 0.105 | B122: -0.995 | C122: 0 | D122: 296
A123: 0.115 | B123: -0.995 | C123: 0 | D123: 318
A124: 0.125 | B124: -0.995 | C124: 0 | D124: 332
A125: 0.135 | B125: -0.995 | C125: 0 | D125: 297
A126: 0.145 | B126: -0.995 | C126: 0 | D126: 347
A127: 0.155 | B127: -0.995 | C127: 0 | D127: 318
A128: 0.165 | B128: -0.995 | C128: 0 | D128: 350
A129: 0.175 | B129: -0.995 | C129: 0 | D129: 324
A130: 0.185 | B130: -0.995 | C130: 0 | D130: 294
A131: 0.195 | B131: -0.995 | C131: 0 | D131: 323
A132: 0.205 | B132: -0.995 | C132: 0 | D132: 327
A133: 0.215 | B133: -0.995 | C133: 0 | D133: 318
A134: 0.225 | B134: -0.995 | C134: 0 | D134: 353
A135: 0.235 | B135: -0.995 | C135: 0 | D135: 289
A136: 0.245 | B136: -0.995 | C136: 0 | D136: 327
A137: 0.255 | B137: -0.995 | C137: 0 | D137: 315
A138: 0.265 | B138: -0.995 | C138: 0 | D138: 323
A139: 0.275 | B139: -0.995 | C139: 0 | D139: 327
A140: 0.285 | B140: -0.995 | C140: 0 | D140: 311
A141: 0.295 | B141: -0.995 | C141: 0 | D141: 291
A142: 0.305 | B142: -0.995 | C142: 0 | D142: 263
A143: 0.315 | B143: -0.995 | C143: 0 | D143: 324
A144: 0.325 | B144: -0.995 | C144: 0 | D144: 330
A145: 0.335 | B145: -0.995 | C145: 0 | D145: 285
A146: 0.345 | B146: -0.995 | C146: 0 | D146: 328
A147: 0.355 | B147: -0.995 | C147: 0 | D147: 274
A148: 0.365 | B148: -0.995 | C148: 0 | D148: 289
A149: 0.375 | B149: -0.995 | C149: 0 | D149: 298
A150: 0.385 | B150: -0.995 | C150: 0 | D150: 292
A151: 0.395 | B151: -0.995 | C151: 0 | D151: 283
A152: 0.405 | B152: -0.995 | C152: 0 | D152: 306
A153: 0.415 | B153: -0.995 | C153: 0 | D153: 304
A154: 0.425 | B154: -0.995 | C154: 0 | D154: 271
A155: 0.435 | B155: -0.995 | C155: 0 | D155: 288
A156: 0.445 | B156: -0.995 | C156: 0 | D156: 268
A157: 0.455 | B157: -0.995 | C157: 0 | D157: 274
A158: 0.465 | B158: -0.995 | C158: 0 | D158: 248
A159: 0.475 | B159: -0.995 | C159: 0 | D159: 262
A160: 0.485 | B160: -0.995 | C160: 0 | D160: 265
A161: 0.495 | B161: -0.995 | C161: 0 | D161: 218
A162: 0.505 | B162: -0.995 | C162: 0 | D162: 250
A163: 0.515 | B163: -0.995 | C163: 0 | D163: 253
A164: 0.525 | B164: -0.995 | C164: 0 | D164: 225
A165: 0.535 | B165: -0.995 | C165: 0 | D165: 264
A166: 0.545 | B166: -0.995 | C166: 0 | D166: 254
A167: 0.555 | B167: -0.995 | C167: 0 | D167: 241
A168: 0.565 | B168: -0.995 | C168: 0 | D168: 264
A169: 0.575 | B169: -0.995 | C169: 0 | D169: 251
A170: 0.585 | B170: -0.995 | C170: 0 | D170: 200
A171: 0.595 | B171: -0.995 | C171: 0 | D171: 228
A172: 0.605 | B172: -0.995 | C172: 0 | D172: 207
A173: 0.615 | B173: -0.995 | C173: 0 | D173: 193
A174: 0.625 | B174: -0.995 | C174: 0 | D174: 259
A175: 0.635 | B175: -0.995 | C175: 0 | D175: 238
A176: 0.645 | B176: -0.995 | C176: 0 | D176: 196
A177: 0.655 | B177: -0.995 | C177: 0 | D177: 216
A178: 0.665 | B178: -0.995 | C178: 0 | D178: 178
A179: 0.675 | B179: -0.995 | C179: 0 | D179: 215
A180: 0.685 | B180: -0.995 | C180: 0 | D180: 201
A181: 0.695 | B181: -0.995 | C181: 0 | D181: 219
A182: 0.705 | B182: -0.995 | C182: 0 | D182: 190
A183: 0.715 | B183: -0.995 | C183: 0 | D183: 212
A184: 0.725 | B184: -0.995 | C184: 0 | D184: 192
A185: 0.735 | B185: -0.995 | C185: 0 | D185: 216
A186: 0.745 | B186: -0.995 | C186: 0 | D186: 200
A187: 0.755 | B187: -0.995 | C187: 0 | D187: 183
A188: 0.765 | B188: -0.995 | C188: 0 | D188: 175
A189: 0.775 | B189: -0.995 | C189: 0 | D189: 206
A190: 0.785 | B190: -0.995 | C190: 0 | D190: 195
A191: 0.795 | B191: -0.995 | C191: 0 | D191: 152
A192: 0.805 | B192: -0.995 | C192: 0 | D192: 187
A193: 0.815 | B193: -0.995 | C193: 0 | D193: 164
A194: 0.825 | B194: -0.995 | C194: 0 | D194: 180
A195: 0.835 | B195: -0.995 | C195: 0 | D195: 183
A196: 0.845 | B196: -0.995 | C196: 0 | D196: 195
A197: 0.855 | B197: -0.995 | C197: 0 | D197: 168
A198: 0.865 | B198: -0.995 | C198: 0 | D198: 169
A199: 0.875 | B199: -0.995 | C199: 0 | D199: 138
A200: 0.885 | B200: -0.995 | C200: 0 | D200: 155
... 4300 more rows

Sheet Points.1_Desv.0.6
A1: # Concentration distribution on receiver: rec_CPV_SolarX Reference Heliostat Field
A2: # ratio | B2: 1 | H2: Electric power
A3: # aiming_points | B3: 1 | H3: Cells/module | I3: 5 | J3: 10 | K3: 25 | L3: 50 | M3: 4 | N3: 5 | O3: 10 | P3: 20 | Q3: 5 | R3: 25 | S3: 2 | T3: 4 | U3: 5 | V3: 10 | W3: 20
A4: # combined std dev. | B4: 0.6 | H4: Modules/subconjunto | I4: 200 | J4: 200 | K4: 200 | L4: 200 | M4: 250 | N4: 250 | O4: 250 | P4: 250 | Q4: 400 | R4: 400 | S4: 500 | T4: 500 | U4: 500 | V4: 500 | W4: 500
A5: # optical_eff | B5: 0.5456 | H5: Subconjunto/subreceivers | I5: 10 | J5: 5 | K5: 2 | L5: 1 | M5: 10 | N5: 8 | O5: 4 | P5: 2 | Q5: 5 | R5: 1 | S5: 10 | T5: 5 | U5: 4 | V5: 2 | W5: 1
A6: # standard_deviation | B6: 0.6 | H6: Power/subreceiver 1 | I6: 193980.8107 | J6: 193125.0611 | K6: 188948.6705 | L6: 173899.293 | M6: 194579.8972 | N6: 194661.7421 | O6: 194084.8745 | P6: 191303.3412 | Q6: 192905.0474 | R6: 176343.3741 | S6: 193178.3963 | T6: 192840.4127 | U6: 192113.7206 | V6: 188482.3637 | W6: 176587.6823
A7: # spillage | B7: 0.302 | E7: Excel calculations | F7: Matlab calculations | H7: Power/subreceiver 2 | I7: 175869.0798 | J7: 175279.2617 | K7: 171507.8375 | L7: 159835.499 | M7: 175208.0814 | N7: 175004.1279 | O7: 173380.8649 | P7: 167688.08 | Q7: 202357.6401 | R7: 160170.1399 | S7: 175165.646 | T7: 174965.319 | U7: 174409.6981 | V7: 171003.7949 | W7: 160394.8093
A8: # avg_concentration | B8: 546 | D8: # avg_concentration | E8: =MEDIAN(D12:D40011) -> 519.864 | F8: 545.5525039 | H8: Power/subreceiver 3 | I8: 192283.2296 | J8: 191351.4173 | K8: 186559.4822 | L8: 172814.1306 | M8: 191579.6239 | N8: 191265.3538 | O8: 188750.6194 | P8: 182924.8325 | Q8: 191091.6997 | R8: 173991.9478 | S8: 191479.6515 | T8: 191067.4938 | U8: 190348.8876 | V8: 186124.903 | W8: 174056.1275
A9: # std_concentration | B9: 206 | D9: # standard_deviation | F9: 206.4717556 | H9: Power/subreceiver 4 | I9: 186179.7839 | J9: 185295.2855 | K9: 181111.1397 | L9: 169028.6734 | M9: 186634.2196 | N9: 186599.0381 | O9: 186437.9998 | P9: 183340.7445 | Q9: 186544.0071 | R9: 169767.0338 | S9: 185279.4424 | T9: 199155.7515 | U9: 184698.9002 | V9: 180666.6712 | W9: 170067.3509
A10: # sun_zen=22, sun_azm=0 | D10: # max_concentration | E10: =MAX(D12:D40011) -> 1,071.622 | F10: 1071.622 | H10: Total recevier power | I10: 748312.904 | J10: 745051.0257 | K10: 728127.13 | L10: 675577.5959 | M10: 748001.8221 | N10: 747530.2618 | O10: 742654.3585 | P10: 725256.9982 | Q10: 772898.3944 | R10: 680272.4956 | S10: 745103.1362 | T10: 758028.9771 | U10: 741571.2065 | V10: 726277.7328 | W10: 681105.9701
A11: x[m] | B11: y[m] | C11: z[m] | D11: concentration[-] | H11: Receiver efficiency | I11: =I10/($B$8*1000*4) -> 0.3429151658 | J11: =J10/($B$8*1000*4) -> 0.3414204067 | K11: 0.3336650139 | L11: 0.3095841353 | M11: 0.3427726122 | N11: 0.3425565192 | O11: 0.3403221315 | P11: 0.332349773 | Q11: 0.3541814923 | R11: 0.311735578 | S11: 0.3414442864 | T11: 0.3473675664 | U11: 0.3398257759 | V11: 0.3328175257 | W11: 0.3121175185
A12: -0.995 | B12: -0.995 | C12: 0 | D12: 139 | H12: Concentrated irradiance-to-electric efficiency | I12: =I10*100/($I$17) -> 23.93547857 | J12: =J10*100/($I$17) -> 23.83114439 | K12: 23.28981797 | L12: 21.60897264 | M12: 23.92552833 | N12: 23.91044504 | O12: 23.75448478 | P12: 23.19801416 | Q12: 24.72186816 | R12: 21.75914334 | S12: 23.83281119 | T12: 24.24625613 | U12: 23.71983916 | V12: 23.2306633 | W12: 21.78580279
A13: -0.985 | B13: -0.995 | C13: 0 | D13: 151 | H13: Solar field-to-electric efficiency | I13: =$B$5*I12 -> 13.05919711 | J13: =$B$5*J12 -> 13.00227238 | K13: 12.70692468 | L13: 11.78985548 | M13: 13.05376826 | N13: 13.04553882 | O13: 12.96044689 | P13: 12.65683652 | Q13: 13.48825127 | R13: 11.87178861 | S13: 13.00318179 | T13: 13.22875735 | U13: 12.94154425 | V13: 12.67464989 | W13: 11.886334
A14: -0.975 | B14: -0.995 | C14: 0 | D14: 136 | H14: Perfil iluminación
A15: -0.965 | B15: -0.995 | C15: 0 | D15: 158 | H15: Desviacion estándar entre mòdulos [suns] | I15: 194.8091884 | J15: 194.7109524 | K15: 195.4475343 | L15: 186.2783719 | M15: 193.717127 | N15: 193.5012886 | O15: 191.910219 | P15: 196.7799963 | Q15: 195.3598932 | R15: 195.9393812 | S15: 195.6138911 | T15: 195.5290928 | U15: 195.6906008 | V15: 198.34773 | W15: 197.1778467
A16: -0.955 | B16: -0.995 | C16: 0 | D16: 175
A17: -0.945 | B17: -0.995 | C17: 0 | D17: 186 | H17: Irradiación total | I17: =B8*4*1000/(1-B7) -> 3126375.358
A18: -0.935 | B18: -0.995 | C18: 0 | D18: 175
A19: -0.925 | B19: -0.995 | C19: 0 | D19: 169
A20: -0.915 | B20: -0.995 | C20: 0 | D20: 181
A21: -0.905 | B21: -0.995 | C21: 0 | D21: 204
A22: -0.895 | B22: -0.995 | C22: 0 | D22: 198
A23: -0.885 | B23: -0.995 | C23: 0 | D23: 207
A24: -0.875 | B24: -0.995 | C24: 0 | D24: 181
A25: -0.865 | B25: -0.995 | C25: 0 | D25: 189
A26: -0.855 | B26: -0.995 | C26: 0 | D26: 152
A27: -0.845 | B27: -0.995 | C27: 0 | D27: 200
A28: -0.835 | B28: -0.995 | C28: 0 | D28: 181
A29: -0.825 | B29: -0.995 | C29: 0 | D29: 184
A30: -0.815 | B30: -0.995 | C30: 0 | D30: 200
A31: -0.805 | B31: -0.995 | C31: 0 | D31: 175
A32: -0.795 | B32: -0.995 | C32: 0 | D32: 254
A33: -0.785 | B33: -0.995 | C33: 0 | D33: 207
A34: -0.775 | B34: -0.995 | C34: 0 | D34: 230
A35: -0.765 | B35: -0.995 | C35: 0 | D35: 241
A36: -0.755 | B36: -0.995 | C36: 0 | D36: 230
A37: -0.745 | B37: -0.995 | C37: 0 | D37: 282
A38: -0.735 | B38: -0.995 | C38: 0 | D38: 230
A39: -0.725 | B39: -0.995 | C39: 0 | D39: 221
A40: -0.715 | B40: -0.995 | C40: 0 | D40: 230
A41: -0.705 | B41: -0.995 | C41: 0 | D41: 235
A42: -0.695 | B42: -0.995 | C42: 0 | D42: 261
A43: -0.685 | B43: -0.995 | C43: 0 | D43: 224
A44: -0.675 | B44: -0.995 | C44: 0 | D44: 238
A45: -0.665 | B45: -0.995 | C45: 0 | D45: 195
A46: -0.655 | B46: -0.995 | C46: 0 | D46: 247
A47: -0.645 | B47: -0.995 | C47: 0 | D47: 271
A48: -0.635 | B48: -0.995 | C48: 0 | D48: 241
A49: -0.625 | B49: -0.995 | C49: 0 | D49: 259
A50: -0.615 | B50: -0.995 | C50: 0 | D50: 267
A51: -0.605 | B51: -0.995 | C51: 0 | D51: 290
A52: -0.595 | B52: -0.995 | C52: 0 | D52: 276
A53: -0.585 | B53: -0.995 | C53: 0 | D53: 276
A54: -0.575 | B54: -0.995 | C54: 0 | D54: 238
A55: -0.565 | B55: -0.995 | C55: 0 | D55: 294
A56: -0.555 | B56: -0.995 | C56: 0 | D56: 302
A57: -0.545 | B57: -0.995 | C57: 0 | D57: 320
A58: -0.535 | B58: -0.995 | C58: 0 | D58: 288
A59: -0.525 | B59: -0.995 | C59: 0 | D59: 311
A60: -0.515 | B60: -0.995 | C60: 0 | D60: 293
A61: -0.505 | B61: -0.995 | C61: 0 | D61: 315
A62: -0.495 | B62: -0.995 | C62: 0 | D62: 296
A63: -0.485 | B63: -0.995 | C63: 0 | D63: 337
A64: -0.475 | B64: -0.995 | C64: 0 | D64: 325
A65: -0.465 | B65: -0.995 | C65: 0 | D65: 300
A66: -0.455 | B66: -0.995 | C66: 0 | D66: 309
A67: -0.445 | B67: -0.995 | C67: 0 | D67: 277
A68: -0.435 | B68: -0.995 | C68: 0 | D68: 328
A69: -0.425 | B69: -0.995 | C69: 0 | D69: 326
A70: -0.415 | B70: -0.995 | C70: 0 | D70: 334
A71: -0.405 | B71: -0.995 | C71: 0 | D71: 326
A72: -0.395 | B72: -0.995 | C72: 0 | D72: 315
A73: -0.385 | B73: -0.995 | C73: 0 | D73: 322
A74: -0.375 | B74: -0.995 | C74: 0 | D74: 357
A75: -0.365 | B75: -0.995 | C75: 0 | D75: 329
A76: -0.355 | B76: -0.995 | C76: 0 | D76: 358
A77: -0.345 | B77: -0.995 | C77: 0 | D77: 323
A78: -0.335 | B78: -0.995 | C78: 0 | D78: 357
A79: -0.325 | B79: -0.995 | C79: 0 | D79: 355
A80: -0.315 | B80: -0.995 | C80: 0 | D80: 355
A81: -0.305 | B81: -0.995 | C81: 0 | D81: 357
A82: -0.295 | B82: -0.995 | C82: 0 | D82: 334
A83: -0.285 | B83: -0.995 | C83: 0 | D83: 385
A84: -0.275 | B84: -0.995 | C84: 0 | D84: 323
A85: -0.265 | B85: -0.995 | C85: 0 | D85: 357
A86: -0.255 | B86: -0.995 | C86: 0 | D86: 380
A87: -0.245 | B87: -0.995 | C87: 0 | D87: 352
A88: -0.235 | B88: -0.995 | C88: 0 | D88: 346
A89: -0.225 | B89: -0.995 | C89: 0 | D89: 351
A90: -0.215 | B90: -0.995 | C90: 0 | D90: 366
A91: -0.205 | B91: -0.995 | C91: 0 | D91: 387
A92: -0.195 | B92: -0.995 | C92: 0 | D92: 431
A93: -0.185 | B93: -0.995 | C93: 0 | D93: 414
A94: -0.175 | B94: -0.995 | C94: 0 | D94: 357
A95: -0.165 | B95: -0.995 | C95: 0 | D95: 331
A96: -0.155 | B96: -0.995 | C96: 0 | D96: 354
A97: -0.145 | B97: -0.995 | C97: 0 | D97: 412
A98: -0.135 | B98: -0.995 | C98: 0 | D98: 380
A99: -0.125 | B99: -0.995 | C99: 0 | D99: 335
A100: -0.115 | B100: -0.995 | C100: 0 | D100: 375
A101: -0.105 | B101: -0.995 | C101: 0 | D101: 337
A102: -0.095 | B102: -0.995 | C102: 0 | D102: 396
A103: -0.085 | B103: -0.995 | C103: 0 | D103: 341
A104: -0.075 | B104: -0.995 | C104: 0 | D104: 366
A105: -0.065 | B105: -0.995 | C105: 0 | D105: 401
A106: -0.055 | B106: -0.995 | C106: 0 | D106: 354
A107: -0.045 | B107: -0.995 | C107: 0 | D107: 354
A108: -0.035 | B108: -0.995 | C108: 0 | D108: 433
A109: -0.025 | B109: -0.995 | C109: 0 | D109: 377
A110: -0.015 | B110: -0.995 | C110: 0 | D110: 354
A111: -0.005 | B111: -0.995 | C111: 0 | D111: 387
A112: 0.005 | B112: -0.995 | C112: 0 | D112: 395
A113: 0.015 | B113: -0.995 | C113: 0 | D113: 378
A114: 0.025 | B114: -0.995 | C114: 0 | D114: 424
A115: 0.035 | B115: -0.995 | C115: 0 | D115: 393
A116: 0.045 | B116: -0.995 | C116: 0 | D116: 341
A117: 0.055 | B117: -0.995 | C117: 0 | D117: 404
A118: 0.065 | B118: -0.995 | C118: 0 | D118: 372
A119: 0.075 | B119: -0.995 | C119: 0 | D119: 352
A120: 0.085 | B120: -0.995 | C120: 0 | D120: 364
A121: 0.095 | B121: -0.995 | C121: 0 | D121: 373
A122: 0.105 | B122: -0.995 | C122: 0 | D122: 360
A123: 0.115 | B123: -0.995 | C123: 0 | D123: 349
A124: 0.125 | B124: -0.995 | C124: 0 | D124: 320
A125: 0.135 | B125: -0.995 | C125: 0 | D125: 402
A126: 0.145 | B126: -0.995 | C126: 0 | D126: 335
A127: 0.155 | B127: -0.995 | C127: 0 | D127: 323
A128: 0.165 | B128: -0.995 | C128: 0 | D128: 357
A129: 0.175 | B129: -0.995 | C129: 0 | D129: 338
A130: 0.185 | B130: -0.995 | C130: 0 | D130: 309
A131: 0.195 | B131: -0.995 | C131: 0 | D131: 393
A132: 0.205 | B132: -0.995 | C132: 0 | D132: 360
A133: 0.215 | B133: -0.995 | C133: 0 | D133: 349
A134: 0.225 | B134: -0.995 | C134: 0 | D134: 364
A135: 0.235 | B135: -0.995 | C135: 0 | D135: 375
A136: 0.245 | B136: -0.995 | C136: 0 | D136: 320
A137: 0.255 | B137: -0.995 | C137: 0 | D137: 319
A138: 0.265 | B138: -0.995 | C138: 0 | D138: 317
A139: 0.275 | B139: -0.995 | C139: 0 | D139: 338
A140: 0.285 | B140: -0.995 | C140: 0 | D140: 357
A141: 0.295 | B141: -0.995 | C141: 0 | D141: 326
A142: 0.305 | B142: -0.995 | C142: 0 | D142: 338
A143: 0.315 | B143: -0.995 | C143: 0 | D143: 317
A144: 0.325 | B144: -0.995 | C144: 0 | D144: 343
A145: 0.335 | B145: -0.995 | C145: 0 | D145: 353
A146: 0.345 | B146: -0.995 | C146: 0 | D146: 314
A147: 0.355 | B147: -0.995 | C147: 0 | D147: 323
A148: 0.365 | B148: -0.995 | C148: 0 | D148: 314
A149: 0.375 | B149: -0.995 | C149: 0 | D149: 297
A150: 0.385 | B150: -0.995 | C150: 0 | D150: 329
A151: 0.395 | B151: -0.995 | C151: 0 | D151: 274
A152: 0.405 | B152: -0.995 | C152: 0 | D152: 315
A153: 0.415 | B153: -0.995 | C153: 0 | D153: 300
A154: 0.425 | B154: -0.995 | C154: 0 | D154: 309
A155: 0.435 | B155: -0.995 | C155: 0 | D155: 277
A156: 0.445 | B156: -0.995 | C156: 0 | D156: 274
A157: 0.455 | B157: -0.995 | C157: 0 | D157: 302
A158: 0.465 | B158: -0.995 | C158: 0 | D158: 264
A159: 0.475 | B159: -0.995 | C159: 0 | D159: 305
A160: 0.485 | B160: -0.995 | C160: 0 | D160: 239
A161: 0.495 | B161: -0.995 | C161: 0 | D161: 277
A162: 0.505 | B162: -0.995 | C162: 0 | D162: 260
A163: 0.515 | B163: -0.995 | C163: 0 | D163: 296
A164: 0.525 | B164: -0.995 | C164: 0 | D164: 271
A165: 0.535 | B165: -0.995 | C165: 0 | D165: 254
A166: 0.545 | B166: -0.995 | C166: 0 | D166: 247
A167: 0.555 | B167: -0.995 | C167: 0 | D167: 282
A168: 0.565 | B168: -0.995 | C168: 0 | D168: 280
A169: 0.575 | B169: -0.995 | C169: 0 | D169: 250
A170: 0.585 | B170: -0.995 | C170: 0 | D170: 235
A171: 0.595 | B171: -0.995 | C171: 0 | D171: 248
A172: 0.605 | B172: -0.995 | C172: 0 | D172: 280
A173: 0.615 | B173: -0.995 | C173: 0 | D173: 236
A174: 0.625 | B174: -0.995 | C174: 0 | D174: 227
A175: 0.635 | B175: -0.995 | C175: 0 | D175: 244
A176: 0.645 | B176: -0.995 | C176: 0 | D176: 235
A177: 0.655 | B177: -0.995 | C177: 0 | D177: 209
A178: 0.665 | B178: -0.995 | C178: 0 | D178: 222
A179: 0.675 | B179: -0.995 | C179: 0 | D179: 218
A180: 0.685 | B180: -0.995 | C180: 0 | D180: 248
A181: 0.695 | B181: -0.995 | C181: 0 | D181: 242
A182: 0.705 | B182: -0.995 | C182: 0 | D182: 197
A183: 0.715 | B183: -0.995 | C183: 0 | D183: 204
A184: 0.725 | B184: -0.995 | C184: 0 | D184: 187
A185: 0.735 | B185: -0.995 | C185: 0 | D185: 225
A186: 0.745 | B186: -0.995 | C186: 0 | D186: 184
A187: 0.755 | B187: -0.995 | C187: 0 | D187: 192
A188: 0.765 | B188: -0.995 | C188: 0 | D188: 183
A189: 0.775 | B189: -0.995 | C189: 0 | D189: 204
A190: 0.785 | B190: -0.995 | C190: 0 | D190: 180
A191: 0.795 | B191: -0.995 | C191: 0 | D191: 183
A192: 0.805 | B192: -0.995 | C192: 0 | D192: 157
A193: 0.815 | B193: -0.995 | C193: 0 | D193: 189
A194: 0.825 | B194: -0.995 | C194: 0 | D194: 195
A195: 0.835 | B195: -0.995 | C195: 0 | D195: 178
A196: 0.845 | B196: -0.995 | C196: 0 | D196: 195
A197: 0.855 | B197: -0.995 | C197: 0 | D197: 154
A198: 0.865 | B198: -0.995 | C198: 0 | D198: 122
A199: 0.875 | B199: -0.995 | C199: 0 | D199: 151
A200: 0.885 | B200: -0.995 | C200: 0 | D200: 178
... 4300 more rows

Sheet Points.1_Desv.0.7
A1: # Concentration distribution on receiver: rec_CPV_SolarX Reference Heliostat Field
A2: # ratio | B2: 1 | H2: Electric power
A3: # aiming_points | B3: 1 | H3: Cells/module | I3: 5 | J3: 10 | K3: 25 | L3: 50 | M3: 4 | N3: 5 | O3: 10 | P3: 20 | Q3: 5 | R3: 25 | S3: 2 | T3: 4 | U3: 5 | V3: 10 | W3: 20
A4: # combined std dev. | B4: 0.7 | H4: Modules/subconjunto | I4: 200 | J4: 200 | K4: 200 | L4: 200 | M4: 250 | N4: 250 | O4: 250 | P4: 250 | Q4: 400 | R4: 400 | S4: 500 | T4: 500 | U4: 500 | V4: 500 | W4: 500
A5: # optical_eff | B5: 0.4767 | H5: Subconjunto/subreceivers | I5: 10 | J5: 5 | K5: 2 | L5: 1 | M5: 10 | N5: 8 | O5: 4 | P5: 2 | Q5: 5 | R5: 1 | S5: 10 | T5: 5 | U5: 4 | V5: 2 | W5: 1
A6: # standard_deviation | B6: 0.7 | H6: Power/subreceiver 1 | I6: 176826.2663 | J6: 176538.3369 | K6: 174389.7608 | L6: 168829.7604 | M6: 178360.2764 | N6: 177186.6917 | O6: 176993.5802 | P6: 176056.1448 | Q6: 176338.3014 | R6: 168916.6267 | S6: 176046.2356 | T6: 211169.9326 | U6: 176042.4327 | V6: 174178.2143 | W6: 168876.8898
A7: # spillage | B7: 0.3901 | E7: Excel calculations | F7: Matlab calculations | H7: Power/subreceiver 2 | I7: 170115.2331 | J7: 170071.1897 | K7: 168261.7491 | L7: 162414.771 | M7: 169999.2557 | N7: 169665.5577 | O7: 168827.8692 | P7: 166004.7332 | Q7: 169881.3986 | R7: 162427.0412 | S7: 169504.1377 | T7: 169875.7113 | U7: 169444.9218 | V7: 168003.9682 | W7: 162370.5129
A8: # avg_concentration | B8: 477 | D8: Avg_concentration mesur. | E8: =MEDIAN(D12:D40011) -> 464.743 | F8: 476.6522384 | H8: Power/subreceiver 3 | I8: 173114.4992 | J8: 172924.6004 | K8: 171060.594 | L8: 165592.3797 | M8: 172959.3643 | N8: 172733.9808 | O8: 171822.1098 | P8: 169023.844 | Q8: 172715.5706 | R8: 165625.6015 | S8: 172316.9472 | T8: 172778.4272 | U8: 172505.0425 | V8: 170790.6517 | W8: 165581.9471
A9: # std_concentration | B9: 148 | D9: Std_concentration | F9: 147.8784075 | H9: Power/subreceiver 4 | I9: 179673.5352 | J9: 179498.2457 | K9: 177696.0508 | L9: 172452.5965 | M9: 180041.8925 | N9: 180074.528 | O9: 180197.9274 | P9: 179021.5549 | Q9: 179091.6767 | R9: 172432.9196 | S9: 178908.3613 | T9: 179280.1476 | U9: 178944.2575 | V9: 177447.0634 | W9: 172372.6304
A10: # sun_zen=22, sun_azm=0 | D10: Concent. Max | E10: =MAX(D12:D40011) -> 864.062 | F10: 864.062 | H10: Total recevier power | I10: 699729.5337 | J10: 699032.3726 | K10: 691408.1547 | L10: 669289.5075 | M10: 701360.7888 | N10: 699660.7583 | O10: 697841.4866 | P10: 690106.2769 | Q10: 698026.9473 | R10: 669402.189 | S10: 696775.6817 | T10: 733104.2188 | U10: 696936.6545 | V10: 690419.8975 | W10: 669201.9802
A11: x[m] | B11: y[m] | C11: z[m] | D11: concentration[-] | H11: Receiver efficiency | I11: =I10/($B$8*1000*4) -> 0.3670021526 | J11: =J10/($B$8*1000*4) -> 0.3666364975 | K11: 0.3626376605 | L11: 0.3510366193 | M11: 0.3678577319 | N11: 0.3669660804 | O11: 0.366011888 | P11: 0.3619548367 | Q11: 0.3661091606 | R11: 0.3510957198 | S11: 0.3654528825 | T11: 0.3845068893 | U11: 0.3655373113 | V11: 0.3621193281 | W11: 0.350990712
A12: -0.995 | B12: -0.995 | C12: 0 | D12: 160 | H12: Concentrated irradiance-to-electric efficiency | I12: =I10*100/($I$17) -> 22.38346129 | J12: =J10*100/($I$17) -> 22.36115998 | K12: 22.11727091 | L12: 21.40972341 | M12: 22.43564307 | N12: 22.38126125 | O12: 22.32306505 | P12: 22.07562549 | Q12: 22.3289977 | R12: 21.41332795 | S12: 22.2889713 | T12: 23.45107518 | U12: 22.29412062 | V12: 22.08565782 | W12: 21.40692352
A13: -0.985 | B13: -0.995 | C13: 0 | D13: 130 | H13: Solar field-to-electric efficiency | I13: =$B$5*I12 -> 10.67019599 | J13: =$B$5*J12 -> 10.65956496 | K13: 10.54330305 | L13: 10.20601515 | M13: 10.69507105 | N13: 10.66914724 | O13: 10.64140511 | P13: 10.52345067 | Q13: 10.64423321 | R13: 10.20773343 | S13: 10.62515262 | T13: 11.17912754 | U13: 10.6276073 | V13: 10.52823308 | W13: 10.20468044
A14: -0.975 | B14: -0.995 | C14: 0 | D14: 158 | H14: Perfil iluminación
A15: -0.965 | B15: -0.995 | C15: 0 | D15: 158 | H15: Desviacion estándar entre mòdulos [suns] | I15: 133.9932058 | J15: 133.860191 | K15: 134.2178687 | L15: 127.8587657 | M15: 133.2170726 | N15: 133.0432499 | O15: 131.8406528 | P15: 135.0608124 | Q15: 134.4824525 | R15: 134.9828968 | S15: 134.957321 | T15: 134.6791535 | U15: 134.7499274 | V15: 136.5372669 | W15: 135.8354043
A16: -0.955 | B16: -0.995 | C16: 0 | D16: 180
A17: -0.945 | B17: -0.995 | C17: 0 | D17: 166 | H17: Irradiación total | I17: =B8*4*1000/(1-B7) -> 3126100.672
A18: -0.935 | B18: -0.995 | C18: 0 | D18: 225
A19: -0.925 | B19: -0.995 | C19: 0 | D19: 210
A20: -0.915 | B20: -0.995 | C20: 0 | D20: 172
A21: -0.905 | B21: -0.995 | C21: 0 | D21: 212
A22: -0.895 | B22: -0.995 | C22: 0 | D22: 216
A23: -0.885 | B23: -0.995 | C23: 0 | D23: 203
A24: -0.875 | B24: -0.995 | C24: 0 | D24: 183
A25: -0.865 | B25: -0.995 | C25: 0 | D25: 218
A26: -0.855 | B26: -0.995 | C26: 0 | D26: 200
A27: -0.845 | B27: -0.995 | C27: 0 | D27: 200
A28: -0.835 | B28: -0.995 | C28: 0 | D28: 212
A29: -0.825 | B29: -0.995 | C29: 0 | D29: 207
A30: -0.815 | B30: -0.995 | C30: 0 | D30: 177
A31: -0.805 | B31: -0.995 | C31: 0 | D31: 200
A32: -0.795 | B32: -0.995 | C32: 0 | D32: 221
A33: -0.785 | B33: -0.995 | C33: 0 | D33: 213
A34: -0.775 | B34: -0.995 | C34: 0 | D34: 196
A35: -0.765 | B35: -0.995 | C35: 0 | D35: 209
A36: -0.755 | B36: -0.995 | C36: 0 | D36: 251
A37: -0.745 | B37: -0.995 | C37: 0 | D37: 254
A38: -0.735 | B38: -0.995 | C38: 0 | D38: 242
A39: -0.725 | B39: -0.995 | C39: 0 | D39: 216
A40: -0.715 | B40: -0.995 | C40: 0 | D40: 213
A41: -0.705 | B41: -0.995 | C41: 0 | D41: 230
A42: -0.695 | B42: -0.995 | C42: 0 | D42: 225
A43: -0.685 | B43: -0.995 | C43: 0 | D43: 219
A44: -0.675 | B44: -0.995 | C44: 0 | D44: 230
A45: -0.665 | B45: -0.995 | C45: 0 | D45: 254
A46: -0.655 | B46: -0.995 | C46: 0 | D46: 251
A47: -0.645 | B47: -0.995 | C47: 0 | D47: 244
A48: -0.635 | B48: -0.995 | C48: 0 | D48: 244
A49: -0.625 | B49: -0.995 | C49: 0 | D49: 247
A50: -0.615 | B50: -0.995 | C50: 0 | D50: 291
A51: -0.605 | B51: -0.995 | C51: 0 | D51: 247
A52: -0.595 | B52: -0.995 | C52: 0 | D52: 254
A53: -0.585 | B53: -0.995 | C53: 0 | D53: 279
A54: -0.575 | B54: -0.995 | C54: 0 | D54: 282
A55: -0.565 | B55: -0.995 | C55: 0 | D55: 251
A56: -0.555 | B56: -0.995 | C56: 0 | D56: 256
A57: -0.545 | B57: -0.995 | C57: 0 | D57: 262
A58: -0.535 | B58: -0.995 | C58: 0 | D58: 256
A59: -0.525 | B59: -0.995 | C59: 0 | D59: 277
A60: -0.515 | B60: -0.995 | C60: 0 | D60: 320
A61: -0.505 | B61: -0.995 | C61: 0 | D61: 300
A62: -0.495 | B62: -0.995 | C62: 0 | D62: 294
A63: -0.485 | B63: -0.995 | C63: 0 | D63: 288
A64: -0.475 | B64: -0.995 | C64: 0 | D64: 286
A65: -0.465 | B65: -0.995 | C65: 0 | D65: 288
A66: -0.455 | B66: -0.995 | C66: 0 | D66: 270
A67: -0.445 | B67: -0.995 | C67: 0 | D67: 299
A68: -0.435 | B68: -0.995 | C68: 0 | D68: 285
A69: -0.425 | B69: -0.995 | C69: 0 | D69: 312
A70: -0.415 | B70: -0.995 | C70: 0 | D70: 274
A71: -0.405 | B71: -0.995 | C71: 0 | D71: 329
A72: -0.395 | B72: -0.995 | C72: 0 | D72: 305
A73: -0.385 | B73: -0.995 | C73: 0 | D73: 297
A74: -0.375 | B74: -0.995 | C74: 0 | D74: 294
A75: -0.365 | B75: -0.995 | C75: 0 | D75: 320
A76: -0.355 | B76: -0.995 | C76: 0 | D76: 338
A77: -0.345 | B77: -0.995 | C77: 0 | D77: 337
A78: -0.335 | B78: -0.995 | C78: 0 | D78: 305
A79: -0.325 | B79: -0.995 | C79: 0 | D79: 262
A80: -0.315 | B80: -0.995 | C80: 0 | D80: 332
A81: -0.305 | B81: -0.995 | C81: 0 | D81: 311
A82: -0.295 | B82: -0.995 | C82: 0 | D82: 321
A83: -0.285 | B83: -0.995 | C83: 0 | D83: 325
A84: -0.275 | B84: -0.995 | C84: 0 | D84: 372
A85: -0.265 | B85: -0.995 | C85: 0 | D85: 361
A86: -0.255 | B86: -0.995 | C86: 0 | D86: 324
A87: -0.245 | B87: -0.995 | C87: 0 | D87: 317
A88: -0.235 | B88: -0.995 | C88: 0 | D88: 343
A89: -0.225 | B89: -0.995 | C89: 0 | D89: 325
A90: -0.215 | B90: -0.995 | C90: 0 | D90: 350
A91: -0.205 | B91: -0.995 | C91: 0 | D91: 343
A92: -0.195 | B92: -0.995 | C92: 0 | D92: 350
A93: -0.185 | B93: -0.995 | C93: 0 | D93: 349
A94: -0.175 | B94: -0.995 | C94: 0 | D94: 326
A95: -0.165 | B95: -0.995 | C95: 0 | D95: 329
A96: -0.155 | B96: -0.995 | C96: 0 | D96: 369
A97: -0.145 | B97: -0.995 | C97: 0 | D97: 367
A98: -0.135 | B98: -0.995 | C98: 0 | D98: 355
A99: -0.125 | B99: -0.995 | C99: 0 | D99: 320
A100: -0.115 | B100: -0.995 | C100: 0 | D100: 352
A101: -0.105 | B101: -0.995 | C101: 0 | D101: 318
A102: -0.095 | B102: -0.995 | C102: 0 | D102: 317
A103: -0.085 | B103: -0.995 | C103: 0 | D103: 354
A104: -0.075 | B104: -0.995 | C104: 0 | D104: 331
A105: -0.065 | B105: -0.995 | C105: 0 | D105: 312
A106: -0.055 | B106: -0.995 | C106: 0 | D106: 352
A107: -0.045 | B107: -0.995 | C107: 0 | D107: 311
A108: -0.035 | B108: -0.995 | C108: 0 | D108: 322
A109: -0.025 | B109: -0.995 | C109: 0 | D109: 297
A110: -0.015 | B110: -0.995 | C110: 0 | D110: 334
A111: -0.005 | B111: -0.995 | C111: 0 | D111: 370
A112: 0.005 | B112: -0.995 | C112: 0 | D112: 352
A113: 0.015 | B113: -0.995 | C113: 0 | D113: 302
A114: 0.025 | B114: -0.995 | C114: 0 | D114: 320
A115: 0.035 | B115: -0.995 | C115: 0 | D115: 320
A116: 0.045 | B116: -0.995 | C116: 0 | D116: 332
A117: 0.055 | B117: -0.995 | C117: 0 | D117: 326
A118: 0.065 | B118: -0.995 | C118: 0 | D118: 361
A119: 0.075 | B119: -0.995 | C119: 0 | D119: 315
A120: 0.085 | B120: -0.995 | C120: 0 | D120: 343
A121: 0.095 | B121: -0.995 | C121: 0 | D121: 346
A122: 0.105 | B122: -0.995 | C122: 0 | D122: 320
A123: 0.115 | B123: -0.995 | C123: 0 | D123: 331
A124: 0.125 | B124: -0.995 | C124: 0 | D124: 315
A125: 0.135 | B125: -0.995 | C125: 0 | D125: 332
A126: 0.145 | B126: -0.995 | C126: 0 | D126: 303
A127: 0.155 | B127: -0.995 | C127: 0 | D127: 352
A128: 0.165 | B128: -0.995 | C128: 0 | D128: 334
A129: 0.175 | B129: -0.995 | C129: 0 | D129: 296
A130: 0.185 | B130: -0.995 | C130: 0 | D130: 341
A131: 0.195 | B131: -0.995 | C131: 0 | D131: 332
A132: 0.205 | B132: -0.995 | C132: 0 | D132: 315
A133: 0.215 | B133: -0.995 | C133: 0 | D133: 306
A134: 0.225 | B134: -0.995 | C134: 0 | D134: 337
A135: 0.235 | B135: -0.995 | C135: 0 | D135: 309
A136: 0.245 | B136: -0.995 | C136: 0 | D136: 299
A137: 0.255 | B137: -0.995 | C137: 0 | D137: 315
A138: 0.265 | B138: -0.995 | C138: 0 | D138: 267
A139: 0.275 | B139: -0.995 | C139: 0 | D139: 314
A140: 0.285 | B140: -0.995 | C140: 0 | D140: 297
A141: 0.295 | B141: -0.995 | C141: 0 | D141: 328
A142: 0.305 | B142: -0.995 | C142: 0 | D142: 315
A143: 0.315 | B143: -0.995 | C143: 0 | D143: 328
A144: 0.325 | B144: -0.995 | C144: 0 | D144: 273
A145: 0.335 | B145: -0.995 | C145: 0 | D145: 315
A146: 0.345 | B146: -0.995 | C146: 0 | D146: 294
A147: 0.355 | B147: -0.995 | C147: 0 | D147: 238
A148: 0.365 | B148: -0.995 | C148: 0 | D148: 308
A149: 0.375 | B149: -0.995 | C149: 0 | D149: 318
A150: 0.385 | B150: -0.995 | C150: 0 | D150: 274
A151: 0.395 | B151: -0.995 | C151: 0 | D151: 254
A152: 0.405 | B152: -0.995 | C152: 0 | D152: 262
A153: 0.415 | B153: -0.995 | C153: 0 | D153: 297
A154: 0.425 | B154: -0.995 | C154: 0 | D154: 264
A155: 0.435 | B155: -0.995 | C155: 0 | D155: 270
A156: 0.445 | B156: -0.995 | C156: 0 | D156: 250
A157: 0.455 | B157: -0.995 | C157: 0 | D157: 268
A158: 0.465 | B158: -0.995 | C158: 0 | D158: 268
A159: 0.475 | B159: -0.995 | C159: 0 | D159: 296
A160: 0.485 | B160: -0.995 | C160: 0 | D160: 296
A161: 0.495 | B161: -0.995 | C161: 0 | D161: 254
A162: 0.505 | B162: -0.995 | C162: 0 | D162: 261
A163: 0.515 | B163: -0.995 | C163: 0 | D163: 263
A164: 0.525 | B164: -0.995 | C164: 0 | D164: 242
A165: 0.535 | B165: -0.995 | C165: 0 | D165: 283
A166: 0.545 | B166: -0.995 | C166: 0 | D166: 260
A167: 0.555 | B167: -0.995 | C167: 0 | D167: 259
A168: 0.565 | B168: -0.995 | C168: 0 | D168: 248
A169: 0.575 | B169: -0.995 | C169: 0 | D169: 241
A170: 0.585 | B170: -0.995 | C170: 0 | D170: 256
A171: 0.595 | B171: -0.995 | C171: 0 | D171: 257
A172: 0.605 | B172: -0.995 | C172: 0 | D172: 244
A173: 0.615 | B173: -0.995 | C173: 0 | D173: 236
A174: 0.625 | B174: -0.995 | C174: 0 | D174: 227
A175: 0.635 | B175: -0.995 | C175: 0 | D175: 256
A176: 0.645 | B176: -0.995 | C176: 0 | D176: 239
A177: 0.655 | B177: -0.995 | C177: 0 | D177: 239
A178: 0.665 | B178: -0.995 | C178: 0 | D178: 203
A179: 0.675 | B179: -0.995 | C179: 0 | D179: 216
A180: 0.685 | B180: -0.995 | C180: 0 | D180: 230
A181: 0.695 | B181: -0.995 | C181: 0 | D181: 216
A182: 0.705 | B182: -0.995 | C182: 0 | D182: 212
A183: 0.715 | B183: -0.995 | C183: 0 | D183: 203
A184: 0.725 | B184: -0.995 | C184: 0 | D184: 235
A185: 0.735 | B185: -0.995 | C185: 0 | D185: 236
A186: 0.745 | B186: -0.995 | C186: 0 | D186: 197
A187: 0.755 | B187: -0.995 | C187: 0 | D187: 184
A188: 0.765 | B188: -0.995 | C188: 0 | D188: 210
A189: 0.775 | B189: -0.995 | C189: 0 | D189: 200
A190: 0.785 | B190: -0.995 | C190: 0 | D190: 221
A191: 0.795 | B191: -0.995 | C191: 0 | D191: 216
A192: 0.805 | B192: -0.995 | C192: 0 | D192: 229
A193: 0.815 | B193: -0.995 | C193: 0 | D193: 155
A194: 0.825 | B194: -0.995 | C194: 0 | D194: 164
A195: 0.835 | B195: -0.995 | C195: 0 | D195: 206
A196: 0.845 | B196: -0.995 | C196: 0 | D196: 186
A197: 0.855 | B197: -0.995 | C197: 0 | D197: 201
A198: 0.865 | B198: -0.995 | C198: 0 | D198: 177
A199: 0.875 | B199: -0.995 | C199: 0 | D199: 193
A200: 0.885 | B200: -0.995 | C200: 0 | D200: 206
... 4300 more rows

Sheet Points.4_Desv.0.1
A1: # Concentration distribution on receiver: rec_CPV_SolarX Reference Heliostat Field
A2: # ratio | B2: 1 | H2: Electric power
A3: # aiming_points | B3: 4 | H3: Cells/module | I3: 5 | J3: 10 | K3: 25 | L3: 50 | M3: 4 | N3: 5 | O3: 10 | P3: 20 | Q3: 5 | R3: 25 | S3: 2 | T3: 4 | U3: 5 | V3: 10 | W3: 20
A4: # combined std dev. | B4: 0.1 | H4: Modules/subconjunto | I4: 200 | J4: 200 | K4: 200 | L4: 200 | M4: 250 | N4: 250 | O4: 250 | P4: 250 | Q4: 400 | R4: 400 | S4: 500 | T4: 500 | U4: 500 | V4: 500 | W4: 500
A5: # optical_eff | B5: 0.5901 | H5: Subconjunto/subreceivers | I5: 10 | J5: 5 | K5: 2 | L5: 1 | M5: 10 | N5: 8 | O5: 4 | P5: 2 | Q5: 5 | R5: 1 | S5: 10 | T5: 5 | U5: 4 | V5: 2 | W5: 1
A6: # standard_deviation | B6: 0.1 | H6: Power/subreceiver 1 | I6: 208253.6027 | J6: 207783.0122 | K6: 205292.6622 | L6: 200456.5383 | M6: 222541.6307 | N6: 212249.4985 | O6: 207925.2643 | P6: 207290.4118 | Q6: 207469.8085 | R6: 201011.2715 | S6: 207013.2546 | T6: 207269.2149 | U6: 207137.559 | V6: 205080.7187 | W6: 201151.256
A7: # spillage | B7: 0.2449 | E7: Excel calculations | F7: Matlab calculations | H7: Power/subreceiver 2 | I7: 211913.4639 | J7: 211453.2906 | K7: 209306.3116 | L7: 205489.6912 | M7: 211727.5382 | N7: 211359.9086 | O7: 210674.1854 | P7: 206756.8581 | Q7: 211139.1908 | R7: 205521.8223 | S7: 210608.997 | T7: 210976.8148 | U7: 210933.6681 | V7: 209055.9848 | W7: 205526.4997
A8: # avg_concentration | B8: 590 | D8: Avg_concentration mesur. | E8: =MEDIAN(D12:D40011) -> 606.441 | F8: 590.1446879 | H8: Power/subreceiver 3 | I8: 243954.0573 | J8: 213865.2506 | K8: 210801.9291 | L8: 206830.3333 | M8: 257822.9881 | N8: 253544.735 | O8: 212891.7087 | P8: 208011.6268 | Q8: 302839.1652 | R8: 207078.56 | S8: 213393.6706 | T8: 286733.7588 | U8: 290946.4154 | V8: 210516.6209 | W8: 207119.2229
A9: # std_concentration | B9: 158 | D9: Std_concentration | F9: 157.8052797 | H9: Power/subreceiver 4 | I9: 210544.6394 | J9: 210058.7641 | K9: 206896.5463 | L9: 202750.5402 | M9: 210739.0699 | N9: 210627.1065 | O9: 209917.2214 | P9: 208745.1706 | Q9: 209693.2649 | R9: 203701.3161 | S9: 209264.3168 | T9: 219960.6112 | U9: 235986.252 | V9: 206649.4301 | W9: 203739.8059
A10: # sun_zen=22, sun_azm=0 | D10: Concent. Max | E10: =MAX(D12:D40011) -> 916.106 | F10: 916.106 | H10: Total recevier power | I10: 874665.7633 | J10: 843160.3175 | K10: 832297.4492 | L10: 815527.103 | M10: 902831.2269 | N10: 887781.2486 | O10: 841408.3799 | P10: 830804.0673 | Q10: 931141.4293 | R10: 817312.97 | S10: 840280.2389 | T10: 924940.3998 | U10: 945003.8945 | V10: 831302.7545 | W10: 817536.7846
A11: x[m] | B11: y[m] | C11: z[m] | D11: concentration[-] | H11: Receiver efficiency | I11: =I10/($B$8*1000*4) -> 0.370530212 | J11: =J10/($B$8*1000*4) -> 0.3571837202 | K11: =K10/($B$8*1000*4) -> 0.3525819384 | L11: 0.3454776019 | M11: 0.3824618043 | N11: 0.3760862584 | O11: 0.3564415557 | P11: 0.3519493047 | Q11: 0.3944547114 | R11: 0.3462341397 | S11: 0.3559636471 | T11: 0.3918278008 | U11: 0.4003271971 | V11: 0.352160561 | W11: 0.3463289531
A12: -0.995 | B12: -0.995 | C12: 0 | D12: 189 | H12: Concentrated irradiance-to-electric efficiency | I12: =I10*100/($I$17) -> 27.97873631 | J12: =J10*100/($I$17) -> 26.97094271 | K12: 26.62346217 | L12: 26.08701372 | M12: 28.87969084 | N12: 28.39827337 | O12: 26.91490187 | P12: 26.575692 | Q12: 29.78527526 | R12: 26.14413989 | S12: 26.87881499 | T12: 29.58691724 | U12: 30.22870665 | V12: 26.59164396 | W12: 26.15129925
A13: -0.985 | B13: -0.995 | C13: 0 | D13: 171 | H13: Solar field-to-electric efficiency | I13: =$B$5*I12 -> 16.5102523 | J13: =$B$5*J12 -> 15.91555329 | K13: 15.71050503 | L13: 15.3939468 | M13: 17.04190556 | N13: 16.75782112 | O13: 15.8824836 | P13: 15.68231585 | Q13: 17.57629093 | R13: 15.42765695 | S13: 15.86118873 | T13: 17.45923986 | U13: 17.8379598 | V13: 15.6917291 | W13: 15.43188169
A14: -0.975 | B14: -0.995 | C14: 0 | D14: 218 | H14: Perfil iluminación
A15: -0.965 | B15: -0.995 | C15: 0 | D15: 190 | H15: Desviacion estándar entre mòdulos [suns] | I15: 156.1934613 | J15: 156.0430686 | K15: 155.008858 | L15: 142.4929172 | M15: 155.7559204 | N15: 155.5408055 | O15: 155.4624787 | P15: 156.362338 | Q15: 156.8125614 | R15: 155.0623377 | S15: 157.2304753 | T15: 157.0224539 | U15: 157.2722121 | V15: 158.3665833 | W15: 156.4098028
A16: -0.955 | B16: -0.995 | C16: 0 | D16: 198
A17: -0.945 | B17: -0.995 | C17: 0 | D17: 206 | H17: Irradiación total | I17: =B8*4*1000/(1-B7) -> 3126180.373
A18: -0.935 | B18: -0.995 | C18: 0 | D18: 227
A19: -0.925 | B19: -0.995 | C19: 0 | D19: 238
A20: -0.915 | B20: -0.995 | C20: 0 | D20: 250
A21: -0.905 | B21: -0.995 | C21: 0 | D21: 227
A22: -0.895 | B22: -0.995 | C22: 0 | D22: 224
A23: -0.885 | B23: -0.995 | C23: 0 | D23: 238
A24: -0.875 | B24: -0.995 | C24: 0 | D24: 207
A25: -0.865 | B25: -0.995 | C25: 0 | D25: 232
A26: -0.855 | B26: -0.995 | C26: 0 | D26: 241
A27: -0.845 | B27: -0.995 | C27: 0 | D27: 242
A28: -0.835 | B28: -0.995 | C28: 0 | D28: 233
A29: -0.825 | B29: -0.995 | C29: 0 | D29: 248
A30: -0.815 | B30: -0.995 | C30: 0 | D30: 238
A31: -0.805 | B31: -0.995 | C31: 0 | D31: 294
A32: -0.795 | B32: -0.995 | C32: 0 | D32: 277
A33: -0.785 | B33: -0.995 | C33: 0 | D33: 300
A34: -0.775 | B34: -0.995 | C34: 0 | D34: 282
A35: -0.765 | B35: -0.995 | C35: 0 | D35: 256
A36: -0.755 | B36: -0.995 | C36: 0 | D36: 305
A37: -0.745 | B37: -0.995 | C37: 0 | D37: 300
A38: -0.735 | B38: -0.995 | C38: 0 | D38: 271
A39: -0.725 | B39: -0.995 | C39: 0 | D39: 311
A40: -0.715 | B40: -0.995 | C40: 0 | D40: 308
A41: -0.705 | B41: -0.995 | C41: 0 | D41: 288
A42: -0.695 | B42: -0.995 | C42: 0 | D42: 293
A43: -0.685 | B43: -0.995 | C43: 0 | D43: 294
A44: -0.675 | B44: -0.995 | C44: 0 | D44: 288
A45: -0.665 | B45: -0.995 | C45: 0 | D45: 314
A46: -0.655 | B46: -0.995 | C46: 0 | D46: 314
A47: -0.645 | B47: -0.995 | C47: 0 | D47: 309
A48: -0.635 | B48: -0.995 | C48: 0 | D48: 318
A49: -0.625 | B49: -0.995 | C49: 0 | D49: 329
A50: -0.615 | B50: -0.995 | C50: 0 | D50: 386
A51: -0.605 | B51: -0.995 | C51: 0 | D51: 352
A52: -0.595 | B52: -0.995 | C52: 0 | D52: 340
A53: -0.585 | B53: -0.995 | C53: 0 | D53: 331
A54: -0.575 | B54: -0.995 | C54: 0 | D54: 341
A55: -0.565 | B55: -0.995 | C55: 0 | D55: 395
A56: -0.555 | B56: -0.995 | C56: 0 | D56: 369
A57: -0.545 | B57: -0.995 | C57: 0 | D57: 328
A58: -0.535 | B58: -0.995 | C58: 0 | D58: 320
A59: -0.525 | B59: -0.995 | C59: 0 | D59: 340
A60: -0.515 | B60: -0.995 | C60: 0 | D60: 329
A61: -0.505 | B61: -0.995 | C61: 0 | D61: 354
A62: -0.495 | B62: -0.995 | C62: 0 | D62: 358
A63: -0.485 | B63: -0.995 | C63: 0 | D63: 349
A64: -0.475 | B64: -0.995 | C64: 0 | D64: 375
A65: -0.465 | B65: -0.995 | C65: 0 | D65: 353
A66: -0.455 | B66: -0.995 | C66: 0 | D66: 366
A67: -0.445 | B67: -0.995 | C67: 0 | D67: 346
A68: -0.435 | B68: -0.995 | C68: 0 | D68: 383
A69: -0.425 | B69: -0.995 | C69: 0 | D69: 390
A70: -0.415 | B70: -0.995 | C70: 0 | D70: 364
A71: -0.405 | B71: -0.995 | C71: 0 | D71: 366
A72: -0.395 | B72: -0.995 | C72: 0 | D72: 360
A73: -0.385 | B73: -0.995 | C73: 0 | D73: 447
A74: -0.375 | B74: -0.995 | C74: 0 | D74: 390
A75: -0.365 | B75: -0.995 | C75: 0 | D75: 363
A76: -0.355 | B76: -0.995 | C76: 0 | D76: 405
A77: -0.345 | B77: -0.995 | C77: 0 | D77: 386
A78: -0.335 | B78: -0.995 | C78: 0 | D78: 457
A79: -0.325 | B79: -0.995 | C79: 0 | D79: 384
A80: -0.315 | B80: -0.995 | C80: 0 | D80: 398
A81: -0.305 | B81: -0.995 | C81: 0 | D81: 355
A82: -0.295 | B82: -0.995 | C82: 0 | D82: 376
A83: -0.285 | B83: -0.995 | C83: 0 | D83: 399
A84: -0.275 | B84: -0.995 | C84: 0 | D84: 346
A85: -0.265 | B85: -0.995 | C85: 0 | D85: 363
A86: -0.255 | B86: -0.995 | C86: 0 | D86: 360
A87: -0.245 | B87: -0.995 | C87: 0 | D87: 390
A88: -0.235 | B88: -0.995 | C88: 0 | D88: 416
A89: -0.225 | B89: -0.995 | C89: 0 | D89: 360
A90: -0.215 | B90: -0.995 | C90: 0 | D90: 364
A91: -0.205 | B91: -0.995 | C91: 0 | D91: 401
A92: -0.195 | B92: -0.995 | C92: 0 | D92: 410
A93: -0.185 | B93: -0.995 | C93: 0 | D93: 361
A94: -0.175 | B94: -0.995 | C94: 0 | D94: 359
A95: -0.165 | B95: -0.995 | C95: 0 | D95: 331
A96: -0.155 | B96: -0.995 | C96: 0 | D96: 408
A97: -0.145 | B97: -0.995 | C97: 0 | D97: 407
A98: -0.135 | B98: -0.995 | C98: 0 | D98: 337
A99: -0.125 | B99: -0.995 | C99: 0 | D99: 350
A100: -0.115 | B100: -0.995 | C100: 0 | D100: 375
A101: -0.105 | B101: -0.995 | C101: 0 | D101: 369
A102: -0.095 | B102: -0.995 | C102: 0 | D102: 373
A103: -0.085 | B103: -0.995 | C103: 0 | D103: 356
A104: -0.075 | B104: -0.995 | C104: 0 | D104: 393
A105: -0.065 | B105: -0.995 | C105: 0 | D105: 402
A106: -0.055 | B106: -0.995 | C106: 0 | D106: 328
A107: -0.045 | B107: -0.995 | C107: 0 | D107: 347
A108: -0.035 | B108: -0.995 | C108: 0 | D108: 391
A109: -0.025 | B109: -0.995 | C109: 0 | D109: 404
A110: -0.015 | B110: -0.995 | C110: 0 | D110: 396
A111: -0.005 | B111: -0.995 | C111: 0 | D111: 381
A112: 0.005 | B112: -0.995 | C112: 0 | D112: 407
A113: 0.015 | B113: -0.995 | C113: 0 | D113: 405
A114: 0.025 | B114: -0.995 | C114: 0 | D114: 361
A115: 0.035 | B115: -0.995 | C115: 0 | D115: 381
A116: 0.045 | B116: -0.995 | C116: 0 | D116: 390
A117: 0.055 | B117: -0.995 | C117: 0 | D117: 396
A118: 0.065 | B118: -0.995 | C118: 0 | D118: 385
A119: 0.075 | B119: -0.995 | C119: 0 | D119: 376
A120: 0.085 | B120: -0.995 | C120: 0 | D120: 401
A121: 0.095 | B121: -0.995 | C121: 0 | D121: 392
A122: 0.105 | B122: -0.995 | C122: 0 | D122: 390
A123: 0.115 | B123: -0.995 | C123: 0 | D123: 382
A124: 0.125 | B124: -0.995 | C124: 0 | D124: 369
A125: 0.135 | B125: -0.995 | C125: 0 | D125: 375
A126: 0.145 | B126: -0.995 | C126: 0 | D126: 399
A127: 0.155 | B127: -0.995 | C127: 0 | D127: 398
A128: 0.165 | B128: -0.995 | C128: 0 | D128: 416
A129: 0.175 | B129: -0.995 | C129: 0 | D129: 378
A130: 0.185 | B130: -0.995 | C130: 0 | D130: 375
A131: 0.195 | B131: -0.995 | C131: 0 | D131: 407
A132: 0.205 | B132: -0.995 | C132: 0 | D132: 404
A133: 0.215 | B133: -0.995 | C133: 0 | D133: 366
A134: 0.225 | B134: -0.995 | C134: 0 | D134: 398
A135: 0.235 | B135: -0.995 | C135: 0 | D135: 382
A136: 0.245 | B136: -0.995 | C136: 0 | D136: 382
A137: 0.255 | B137: -0.995 | C137: 0 | D137: 413
A138: 0.265 | B138: -0.995 | C138: 0 | D138: 396
A139: 0.275 | B139: -0.995 | C139: 0 | D139: 410
A140: 0.285 | B140: -0.995 | C140: 0 | D140: 413
A141: 0.295 | B141: -0.995 | C141: 0 | D141: 385
A142: 0.305 | B142: -0.995 | C142: 0 | D142: 430
A143: 0.315 | B143: -0.995 | C143: 0 | D143: 389
A144: 0.325 | B144: -0.995 | C144: 0 | D144: 411
A145: 0.335 | B145: -0.995 | C145: 0 | D145: 425
A146: 0.345 | B146: -0.995 | C146: 0 | D146: 434
A147: 0.355 | B147: -0.995 | C147: 0 | D147: 364
A148: 0.365 | B148: -0.995 | C148: 0 | D148: 363
A149: 0.375 | B149: -0.995 | C149: 0 | D149: 407
A150: 0.385 | B150: -0.995 | C150: 0 | D150: 449
A151: 0.395 | B151: -0.995 | C151: 0 | D151: 386
A152: 0.405 | B152: -0.995 | C152: 0 | D152: 379
A153: 0.415 | B153: -0.995 | C153: 0 | D153: 385
A154: 0.425 | B154: -0.995 | C154: 0 | D154: 396
A155: 0.435 | B155: -0.995 | C155: 0 | D155: 361
A156: 0.445 | B156: -0.995 | C156: 0 | D156: 410
A157: 0.455 | B157: -0.995 | C157: 0 | D157: 398
A158: 0.465 | B158: -0.995 | C158: 0 | D158: 405
A159: 0.475 | B159: -0.995 | C159: 0 | D159: 360
A160: 0.485 | B160: -0.995 | C160: 0 | D160: 425
A161: 0.495 | B161: -0.995 | C161: 0 | D161: 413
A162: 0.505 | B162: -0.995 | C162: 0 | D162: 350
A163: 0.515 | B163: -0.995 | C163: 0 | D163: 384
A164: 0.525 | B164: -0.995 | C164: 0 | D164: 370
A165: 0.535 | B165: -0.995 | C165: 0 | D165: 370
A166: 0.545 | B166: -0.995 | C166: 0 | D166: 337
A167: 0.555 | B167: -0.995 | C167: 0 | D167: 389
A168: 0.565 | B168: -0.995 | C168: 0 | D168: 372
A169: 0.575 | B169: -0.995 | C169: 0 | D169: 375
A170: 0.585 | B170: -0.995 | C170: 0 | D170: 309
A171: 0.595 | B171: -0.995 | C171: 0 | D171: 334
A172: 0.605 | B172: -0.995 | C172: 0 | D172: 332
A173: 0.615 | B173: -0.995 | C173: 0 | D173: 326
A174: 0.625 | B174: -0.995 | C174: 0 | D174: 312
A175: 0.635 | B175: -0.995 | C175: 0 | D175: 370
A176: 0.645 | B176: -0.995 | C176: 0 | D176: 323
A177: 0.655 | B177: -0.995 | C177: 0 | D177: 293
A178: 0.665 | B178: -0.995 | C178: 0 | D178: 314
A179: 0.675 | B179: -0.995 | C179: 0 | D179: 291
A180: 0.685 | B180: -0.995 | C180: 0 | D180: 320
A181: 0.695 | B181: -0.995 | C181: 0 | D181: 322
A182: 0.705 | B182: -0.995 | C182: 0 | D182: 312
A183: 0.715 | B183: -0.995 | C183: 0 | D183: 315
A184: 0.725 | B184: -0.995 | C184: 0 | D184: 286
A185: 0.735 | B185: -0.995 | C185: 0 | D185: 305
A186: 0.745 | B186: -0.995 | C186: 0 | D186: 279
A187: 0.755 | B187: -0.995 | C187: 0 | D187: 311
A188: 0.765 | B188: -0.995 | C188: 0 | D188: 332
A189: 0.775 | B189: -0.995 | C189: 0 | D189: 268
A190: 0.785 | B190: -0.995 | C190: 0 | D190: 308
A191: 0.795 | B191: -0.995 | C191: 0 | D191: 244
A192: 0.805 | B192: -0.995 | C192: 0 | D192: 259
A193: 0.815 | B193: -0.995 | C193: 0 | D193: 288
A194: 0.825 | B194: -0.995 | C194: 0 | D194: 299
A195: 0.835 | B195: -0.995 | C195: 0 | D195: 238
A196: 0.845 | B196: -0.995 | C196: 0 | D196: 236
A197: 0.855 | B197: -0.995 | C197: 0 | D197: 279
A198: 0.865 | B198: -0.995 | C198: 0 | D198: 227
A199: 0.875 | B199: -0.995 | C199: 0 | D199: 221
A200: 0.885 | B200: -0.995 | C200: 0 | D200: 283
... 4300 more rows

Sheet Points.4_Desv.0.2
A1: # Concentration distribution on receiver: rec_CPV_SolarX Reference Heliostat Field
A2: # ratio | B2: 1 | H2: Electric power
A3: # aiming_points | B3: 4 | H3: Cells/module | I3: 5 | J3: 10 | K3: 25 | L3: 50 | M3: 4 | N3: 5 | O3: 10 | P3: 20 | Q3: 5 | R3: 25 | S3: 2 | T3: 4 | U3: 5 | V3: 10 | W3: 20
A4: # combined std dev. | B4: 0.2 | H4: Modules/subconjunto | I4: 200 | J4: 200 | K4: 200 | L4: 200 | M4: 250 | N4: 250 | O4: 250 | P4: 250 | Q4: 400 | R4: 400 | S4: 500 | T4: 500 | U4: 500 | V4: 500 | W4: 500
A5: # optical_eff | B5: 0.5688 | H5: Subconjunto/subreceivers | I5: 10 | J5: 5 | K5: 2 | L5: 1 | M5: 10 | N5: 8 | O5: 4 | P5: 2 | Q5: 5 | R5: 1 | S5: 10 | T5: 5 | U5: 4 | V5: 2 | W5: 1
A6: # standard_deviation | B6: 0.2 | H6: Power/subreceiver 1 | I6: 203254.5954 | J6: 202987.3864 | K6: 201129.0879 | L6: 197062.7879 | M6: 203595.9938 | N6: 203536.4381 | O6: 203105.4808 | P6: 202247.1816 | Q6: 202719.2757 | R6: 197106.8705 | S6: 202311.4432 | T6: 202770.8211 | U6: 202232.8226 | V6: 200673.3613 | W6: 197154.1064
A7: # spillage | B7: 0.2722 | E7: Excel calculations | F7: Matlab calculations | H7: Power/subreceiver 2 | I7: 205516.6515 | J7: 205267.7501 | K7: 202949.7818 | L7: 197173.1804 | M7: 208905.7976 | N7: 205026.4082 | O7: 203876.5392 | P7: 200130.8767 | Q7: 204833.2292 | R7: 197309.2121 | S7: 204287.696 | T7: 219264.8249 | U7: 204478.5386 | V7: 202448.9318 | W7: 197327.5132
A8: # avg_concentration | B8: 569 | D8: Avg_concentration mesur. | E8: =MEDIAN(D12:D40011) -> 577.889 | F8: 568.7958399 | H8: Power/subreceiver 3 | I8: 200084.5405 | J8: 199658.6263 | K8: 197912.26 | L8: 194453.2157 | M8: 204611.2182 | N8: 199676.5369 | O8: 198812.16 | P8: 196009.4384 | Q8: 199483.5919 | R8: 194704.3089 | S8: 198954.8862 | T8: 199403.2739 | U8: 199229.9964 | V8: 197676.6621 | W8: 194751.3504
A9: # std_concentration | B9: 151 | D9: Std_concentration | F9: 151.2162411 | H9: Power/subreceiver 4 | I9: 213741.8951 | J9: 213028.5958 | K9: 210541.2572 | L9: 205718.0523 | M9: 217588.2566 | N9: 214045.2223 | O9: 213489.1282 | P9: 212346.3643 | Q9: 212987.61 | R9: 206073.1822 | S9: 212709.3125 | T9: 212879.3773 | U9: 212673.9774 | V9: 210241.4759 | W9: 206115.4894
A10: # sun_zen=22, sun_azm=0 | D10: Concent. Max | E10: =MAX(D12:D40011) -> 909.794 | F10: 909.794 | H10: Total recevier power | I10: 822597.6824 | J10: 820942.3586 | K10: 812532.3869 | L10: 794407.2363 | M10: 834701.2662 | N10: 822284.6054 | O10: 819283.3082 | P10: 810733.8611 | Q10: 820023.7067 | R10: 795193.5736 | S10: 818263.3378 | T10: 834318.2972 | U10: 818615.335 | V10: 811040.4311 | W10: 795348.4593
A11: x[m] | B11: y[m] | C11: z[m] | D11: concentration[-] | H11: Receiver efficiency | I11: =I10/($B$8*1000*4) -> 0.361552284 | J11: =J10/($B$8*1000*4) -> 0.3608247277 | K11: =K10/($B$8*1000*4) -> 0.3571283345 | L11: 0.3491618768 | M11: 0.3668721122 | N11: 0.3614146788 | O11: 0.3600955335 | P11: 0.3563378373 | Q11: 0.3604209572 | R11: 0.3495074918 | S11: 0.359647231 | T11: 0.3667037877 | U11: 0.3598019425 | V11: 0.3564725826 | W11: 0.349575568
A12: -0.995 | B12: -0.995 | C12: 0 | D12: 187 | H12: Concentrated irradiance-to-electric efficiency | I12: =I10*100/($I$17) -> 26.31377523 | J12: =J10*100/($I$17) -> 26.26082368 | K12: 25.99180019 | L12: 25.4120014 | M12: 26.70095233 | N12: 26.30376032 | O12: 26.20775293 | P12: 25.9342678 | Q12: 26.23143726 | R12: 25.43715525 | S12: 26.17512547 | T12: 26.68870167 | U12: 26.18638538 | V12: 25.94407456 | W12: 25.44210984
A13: -0.985 | B13: -0.995 | C13: 0 | D13: 152 | H13: Solar field-to-electric efficiency | I13: =$B$5*I12 -> 14.96727535 | J13: =$B$5*J12 -> 14.93715651 | K13: 14.78413595 | L13: 14.45434639 | M13: 15.18750168 | N13: 14.96157887 | O13: 14.90696986 | P13: 14.75141153 | Q13: 14.92044152 | R13: 14.46865391 | S13: 14.88841137 | T13: 15.18053351 | U13: 14.894816 | V13: 14.75698961 | W13: 14.47147207
A14: -0.975 | B14: -0.995 | C14: 0 | D14: 192 | H14: Perfil iluminación
A15: -0.965 | B15: -0.995 | C15: 0 | D15: 210 | H15: Desviacion estándar entre mòdulos [suns] | I15: 153.6664917 | J15: 153.4681637 | K15: 152.0877199 | L15: 141.5029736 | M15: 153.1095751 | N15: 152.8285821 | O15: 152.7981198 | P15: 153.0121496 | Q15: 154.2586832 | R15: 152.7580551 | S15: 154.7547396 | T15: 154.5028787 | U15: 154.7613685 | V15: 155.388087 | W15: 153.8641534
A16: -0.955 | B16: -0.995 | C16: 0 | D16: 192
A17: -0.945 | B17: -0.995 | C17: 0 | D17: 183 | H17: Irradiación total | I17: =B8*4*1000/(1-B7) -> 3126110.47
A18: -0.935 | B18: -0.995 | C18: 0 | D18: 206
A19: -0.925 | B19: -0.995 | C19: 0 | D19: 215
A20: -0.915 | B20: -0.995 | C20: 0 | D20: 203
A21: -0.905 | B21: -0.995 | C21: 0 | D21: 241
A22: -0.895 | B22: -0.995 | C22: 0 | D22: 197
A23: -0.885 | B23: -0.995 | C23: 0 | D23: 227
A24: -0.875 | B24: -0.995 | C24: 0 | D24: 261
A25: -0.865 | B25: -0.995 | C25: 0 | D25: 210
A26: -0.855 | B26: -0.995 | C26: 0 | D26: 236
A27: -0.845 | B27: -0.995 | C27: 0 | D27: 215
A28: -0.835 | B28: -0.995 | C28: 0 | D28: 235
A29: -0.825 | B29: -0.995 | C29: 0 | D29: 262
A30: -0.815 | B30: -0.995 | C30: 0 | D30: 274
A31: -0.805 | B31: -0.995 | C31: 0 | D31: 250
A32: -0.795 | B32: -0.995 | C32: 0 | D32: 265
A33: -0.785 | B33: -0.995 | C33: 0 | D33: 265
A34: -0.775 | B34: -0.995 | C34: 0 | D34: 267
A35: -0.765 | B35: -0.995 | C35: 0 | D35: 313
A36: -0.755 | B36: -0.995 | C36: 0 | D36: 280
A37: -0.745 | B37: -0.995 | C37: 0 | D37: 287
A38: -0.735 | B38: -0.995 | C38: 0 | D38: 293
A39: -0.725 | B39: -0.995 | C39: 0 | D39: 331
A40: -0.715 | B40: -0.995 | C40: 0 | D40: 323
A41: -0.705 | B41: -0.995 | C41: 0 | D41: 288
A42: -0.695 | B42: -0.995 | C42: 0 | D42: 317
A43: -0.685 | B43: -0.995 | C43: 0 | D43: 280
A44: -0.675 | B44: -0.995 | C44: 0 | D44: 294
A45: -0.665 | B45: -0.995 | C45: 0 | D45: 313
A46: -0.655 | B46: -0.995 | C46: 0 | D46: 276
A47: -0.645 | B47: -0.995 | C47: 0 | D47: 300
A48: -0.635 | B48: -0.995 | C48: 0 | D48: 311
A49: -0.625 | B49: -0.995 | C49: 0 | D49: 297
A50: -0.615 | B50: -0.995 | C50: 0 | D50: 343
A51: -0.605 | B51: -0.995 | C51: 0 | D51: 316
A52: -0.595 | B52: -0.995 | C52: 0 | D52: 386
A53: -0.585 | B53: -0.995 | C53: 0 | D53: 375
A54: -0.575 | B54: -0.995 | C54: 0 | D54: 320
A55: -0.565 | B55: -0.995 | C55: 0 | D55: 357
A56: -0.555 | B56: -0.995 | C56: 0 | D56: 372
A57: -0.545 | B57: -0.995 | C57: 0 | D57: 358
A58: -0.535 | B58: -0.995 | C58: 0 | D58: 364
A59: -0.525 | B59: -0.995 | C59: 0 | D59: 328
A60: -0.515 | B60: -0.995 | C60: 0 | D60: 355
A61: -0.505 | B61: -0.995 | C61: 0 | D61: 306
A62: -0.495 | B62: -0.995 | C62: 0 | D62: 396
A63: -0.485 | B63: -0.995 | C63: 0 | D63: 376
A64: -0.475 | B64: -0.995 | C64: 0 | D64: 334
A65: -0.465 | B65: -0.995 | C65: 0 | D65: 383
A66: -0.455 | B66: -0.995 | C66: 0 | D66: 367
A67: -0.445 | B67: -0.995 | C67: 0 | D67: 355
A68: -0.435 | B68: -0.995 | C68: 0 | D68: 444
A69: -0.425 | B69: -0.995 | C69: 0 | D69: 364
A70: -0.415 | B70: -0.995 | C70: 0 | D70: 393
A71: -0.405 | B71: -0.995 | C71: 0 | D71: 346
A72: -0.395 | B72: -0.995 | C72: 0 | D72: 389
A73: -0.385 | B73: -0.995 | C73: 0 | D73: 396
A74: -0.375 | B74: -0.995 | C74: 0 | D74: 387
A75: -0.365 | B75: -0.995 | C75: 0 | D75: 390
A76: -0.355 | B76: -0.995 | C76: 0 | D76: 380
A77: -0.345 | B77: -0.995 | C77: 0 | D77: 383
A78: -0.335 | B78: -0.995 | C78: 0 | D78: 404
A79: -0.325 | B79: -0.995 | C79: 0 | D79: 381
A80: -0.315 | B80: -0.995 | C80: 0 | D80: 363
A81: -0.305 | B81: -0.995 | C81: 0 | D81: 358
A82: -0.295 | B82: -0.995 | C82: 0 | D82: 364
A83: -0.285 | B83: -0.995 | C83: 0 | D83: 346
A84: -0.275 | B84: -0.995 | C84: 0 | D84: 413
A85: -0.265 | B85: -0.995 | C85: 0 | D85: 361
A86: -0.255 | B86: -0.995 | C86: 0 | D86: 367
A87: -0.245 | B87: -0.995 | C87: 0 | D87: 337
A88: -0.235 | B88: -0.995 | C88: 0 | D88: 383
A89: -0.225 | B89: -0.995 | C89: 0 | D89: 347
A90: -0.215 | B90: -0.995 | C90: 0 | D90: 415
A91: -0.205 | B91: -0.995 | C91: 0 | D91: 358
A92: -0.195 | B92: -0.995 | C92: 0 | D92: 386
A93: -0.185 | B93: -0.995 | C93: 0 | D93: 375
A94: -0.175 | B94: -0.995 | C94: 0 | D94: 360
A95: -0.165 | B95: -0.995 | C95: 0 | D95: 378
A96: -0.155 | B96: -0.995 | C96: 0 | D96: 350
A97: -0.145 | B97: -0.995 | C97: 0 | D97: 402
A98: -0.135 | B98: -0.995 | C98: 0 | D98: 340
A99: -0.125 | B99: -0.995 | C99: 0 | D99: 334
A100: -0.115 | B100: -0.995 | C100: 0 | D100: 357
A101: -0.105 | B101: -0.995 | C101: 0 | D101: 401
A102: -0.095 | B102: -0.995 | C102: 0 | D102: 382
A103: -0.085 | B103: -0.995 | C103: 0 | D103: 360
A104: -0.075 | B104: -0.995 | C104: 0 | D104: 387
A105: -0.065 | B105: -0.995 | C105: 0 | D105: 367
A106: -0.055 | B106: -0.995 | C106: 0 | D106: 396
A107: -0.045 | B107: -0.995 | C107: 0 | D107: 340
A108: -0.035 | B108: -0.995 | C108: 0 | D108: 364
A109: -0.025 | B109: -0.995 | C109: 0 | D109: 341
A110: -0.015 | B110: -0.995 | C110: 0 | D110: 372
A111: -0.005 | B111: -0.995 | C111: 0 | D111: 296
A112: 0.005 | B112: -0.995 | C112: 0 | D112: 326
A113: 0.015 | B113: -0.995 | C113: 0 | D113: 385
A114: 0.025 | B114: -0.995 | C114: 0 | D114: 305
A115: 0.035 | B115: -0.995 | C115: 0 | D115: 338
A116: 0.045 | B116: -0.995 | C116: 0 | D116: 321
A117: 0.055 | B117: -0.995 | C117: 0 | D117: 364
A118: 0.065 | B118: -0.995 | C118: 0 | D118: 376
A119: 0.075 | B119: -0.995 | C119: 0 | D119: 404
A120: 0.085 | B120: -0.995 | C120: 0 | D120: 375
A121: 0.095 | B121: -0.995 | C121: 0 | D121: 373
A122: 0.105 | B122: -0.995 | C122: 0 | D122: 370
A123: 0.115 | B123: -0.995 | C123: 0 | D123: 364
A124: 0.125 | B124: -0.995 | C124: 0 | D124: 404
A125: 0.135 | B125: -0.995 | C125: 0 | D125: 420
A126: 0.145 | B126: -0.995 | C126: 0 | D126: 396
A127: 0.155 | B127: -0.995 | C127: 0 | D127: 411
A128: 0.165 | B128: -0.995 | C128: 0 | D128: 379
A129: 0.175 | B129: -0.995 | C129: 0 | D129: 387
A130: 0.185 | B130: -0.995 | C130: 0 | D130: 329
A131: 0.195 | B131: -0.995 | C131: 0 | D131: 356
A132: 0.205 | B132: -0.995 | C132: 0 | D132: 367
A133: 0.215 | B133: -0.995 | C133: 0 | D133: 378
A134: 0.225 | B134: -0.995 | C134: 0 | D134: 376
A135: 0.235 | B135: -0.995 | C135: 0 | D135: 357
A136: 0.245 | B136: -0.995 | C136: 0 | D136: 343
A137: 0.255 | B137: -0.995 | C137: 0 | D137: 373
A138: 0.265 | B138: -0.995 | C138: 0 | D138: 344
A139: 0.275 | B139: -0.995 | C139: 0 | D139: 363
A140: 0.285 | B140: -0.995 | C140: 0 | D140: 385
A141: 0.295 | B141: -0.995 | C141: 0 | D141: 373
A142: 0.305 | B142: -0.995 | C142: 0 | D142: 354
A143: 0.315 | B143: -0.995 | C143: 0 | D143: 360
A144: 0.325 | B144: -0.995 | C144: 0 | D144: 331
A145: 0.335 | B145: -0.995 | C145: 0 | D145: 384
A146: 0.345 | B146: -0.995 | C146: 0 | D146: 366
A147: 0.355 | B147: -0.995 | C147: 0 | D147: 370
A148: 0.365 | B148: -0.995 | C148: 0 | D148: 340
A149: 0.375 | B149: -0.995 | C149: 0 | D149: 373
A150: 0.385 | B150: -0.995 | C150: 0 | D150: 392
A151: 0.395 | B151: -0.995 | C151: 0 | D151: 341
A152: 0.405 | B152: -0.995 | C152: 0 | D152: 334
A153: 0.415 | B153: -0.995 | C153: 0 | D153: 337
A154: 0.425 | B154: -0.995 | C154: 0 | D154: 334
A155: 0.435 | B155: -0.995 | C155: 0 | D155: 340
A156: 0.445 | B156: -0.995 | C156: 0 | D156: 331
A157: 0.455 | B157: -0.995 | C157: 0 | D157: 303
A158: 0.465 | B158: -0.995 | C158: 0 | D158: 318
A159: 0.475 | B159: -0.995 | C159: 0 | D159: 325
A160: 0.485 | B160: -0.995 | C160: 0 | D160: 334
A161: 0.495 | B161: -0.995 | C161: 0 | D161: 344
A162: 0.505 | B162: -0.995 | C162: 0 | D162: 360
A163: 0.515 | B163: -0.995 | C163: 0 | D163: 317
A164: 0.525 | B164: -0.995 | C164: 0 | D164: 309
A165: 0.535 | B165: -0.995 | C165: 0 | D165: 337
A166: 0.545 | B166: -0.995 | C166: 0 | D166: 303
A167: 0.555 | B167: -0.995 | C167: 0 | D167: 320
A168: 0.565 | B168: -0.995 | C168: 0 | D168: 349
A169: 0.575 | B169: -0.995 | C169: 0 | D169: 288
A170: 0.585 | B170: -0.995 | C170: 0 | D170: 302
A171: 0.595 | B171: -0.995 | C171: 0 | D171: 334
A172: 0.605 | B172: -0.995 | C172: 0 | D172: 287
A173: 0.615 | B173: -0.995 | C173: 0 | D173: 276
A174: 0.625 | B174: -0.995 | C174: 0 | D174: 299
A175: 0.635 | B175: -0.995 | C175: 0 | D175: 291
A176: 0.645 | B176: -0.995 | C176: 0 | D176: 305
A177: 0.655 | B177: -0.995 | C177: 0 | D177: 320
A178: 0.665 | B178: -0.995 | C178: 0 | D178: 318
A179: 0.675 | B179: -0.995 | C179: 0 | D179: 308
A180: 0.685 | B180: -0.995 | C180: 0 | D180: 254
A181: 0.695 | B181: -0.995 | C181: 0 | D181: 319
A182: 0.705 | B182: -0.995 | C182: 0 | D182: 261
A183: 0.715 | B183: -0.995 | C183: 0 | D183: 285
A184: 0.725 | B184: -0.995 | C184: 0 | D184: 250
A185: 0.735 | B185: -0.995 | C185: 0 | D185: 265
A186: 0.745 | B186: -0.995 | C186: 0 | D186: 282
A187: 0.755 | B187: -0.995 | C187: 0 | D187: 224
A188: 0.765 | B188: -0.995 | C188: 0 | D188: 258
A189: 0.775 | B189: -0.995 | C189: 0 | D189: 264
A190: 0.785 | B190: -0.995 | C190: 0 | D190: 248
A191: 0.795 | B191: -0.995 | C191: 0 | D191: 265
A192: 0.805 | B192: -0.995 | C192: 0 | D192: 242
A193: 0.815 | B193: -0.995 | C193: 0 | D193: 206
A194: 0.825 | B194: -0.995 | C194: 0 | D194: 229
A195: 0.835 | B195: -0.995 | C195: 0 | D195: 245
A196: 0.845 | B196: -0.995 | C196: 0 | D196: 207
A197: 0.855 | B197: -0.995 | C197: 0 | D197: 221
A198: 0.865 | B198: -0.995 | C198: 0 | D198: 204
A199: 0.875 | B199: -0.995 | C199: 0 | D199: 222
A200: 0.885 | B200: -0.995 | C200: 0 | D200: 203
... 4300 more rows

Sheet Points.4_Desv.0.3
A1: # Concentration distribution on receiver: rec_CPV_SolarX Reference Heliostat Field
A2: # ratio | B2: 1 | H2: Electric power
A3: # aiming_points | B3: 4 | H3: Cells/module | I3: 5 | J3: 10 | K3: 25 | L3: 50 | M3: 4 | N3: 5 | O3: 10 | P3: 20 | Q3: 5 | R3: 25 | S3: 2 | T3: 4 | U3: 5 | V3: 10 | W3: 20
A4: # combined std dev. | B4: 0.3 | H4: Modules/subconjunto | I4: 200 | J4: 200 | K4: 200 | L4: 200 | M4: 250 | N4: 250 | O4: 250 | P4: 250 | Q4: 400 | R4: 400 | S4: 500 | T4: 500 | U4: 500 | V4: 500 | W4: 500
A5: # optical_eff | B5: 0.533 | H5: Subconjunto/subreceivers | I5: 10 | J5: 5 | K5: 2 | L5: 1 | M5: 10 | N5: 8 | O5: 4 | P5: 2 | Q5: 5 | R5: 1 | S5: 10 | T5: 5 | U5: 4 | V5: 2 | W5: 1
A6: # standard_deviation | B6: 0.3 | H6: Power/subreceiver 1 | I6: 191765.2003 | J6: 191610.8959 | K6: 189723.6777 | L6: 184513.9562 | M6: 192219.8761 | N6: 192192.7381 | O6: 192077.6798 | P6: 191073.7689 | Q6: 191402.5213 | R6: 184486.9289 | S6: 190891.529 | T6: 191317.4454 | U6: 191214.5214 | V6: 189511.1506 | W6: 184510.5019
A7: # spillage | B7: 0.318 | E7: Excel calculations | F7: Matlab calculations | H7: Power/subreceiver 2 | I7: 195213.3124 | J7: 195092.3139 | K7: 193261.5261 | L7: 188892.1999 | M7: 201929.9611 | N7: 194947.5076 | O7: 194114.1382 | P7: 191092.3014 | Q7: 205532.8094 | R7: 188989.6357 | S7: 194401.8165 | T7: 213826.7079 | U7: 194642.5192 | V7: 193042.8341 | W7: 188984.2831
A8: # avg_concentration | B8: 533 | D8: Avg_concentration mesur. | E8: =MEDIAN(D12:D40011) -> 533.336 | F8: 533.044832 | H8: Power/subreceiver 3 | I8: 191762.165 | J8: 191494.6487 | K8: 189544.0447 | L8: 184786.9632 | M8: 191485.6256 | N8: 191294.0202 | O8: 190467.151 | P8: 187524.4792 | Q8: 191350.7225 | R8: 184855.3163 | S8: 190722.1452 | T8: 191267.8218 | U8: 191116.6018 | V8: 189407.3574 | W8: 184899.6948
A9: # std_concentration | B9: 141 | D9: Std_concentration | F9: 140.9489152 | H9: Power/subreceiver 4 | I9: 201405.3853 | J9: 201283.389 | K9: 199549.896 | L9: 195558.4885 | M9: 201798.5821 | N9: 201709.2157 | O9: 201594.2082 | P9: 200970.5748 | Q9: 200842.0902 | R9: 195587.3903 | S9: 212836.1615 | T9: 207576.4128 | U9: 200618.76 | V9: 199317.2794 | W9: 195639.4445
A10: # sun_zen=22, sun_azm=0 | D10: Concent. Max | E10: =MAX(D12:D40011) -> 850.483 | F10: 850.483 | H10: Total recevier power | I10: 780146.063 | J10: 779481.2475 | K10: 772079.1445 | L10: 753751.6079 | M10: 787434.0448 | N10: 780143.4816 | O10: 778253.1772 | P10: 770661.1243 | Q10: 789128.1433 | R10: 753919.2711 | S10: 788851.6523 | T10: 803988.3879 | U10: 777592.4025 | V10: 771278.6216 | W10: 754033.9243
A11: x[m] | B11: y[m] | C11: z[m] | D11: concentration[-] | H11: Receiver efficiency | I11: =I10/($B$8*1000*4) -> 0.3658914143 | J11: =J10/($B$8*1000*4) -> 0.3655796133 | K11: =K10/($B$8*1000*4) -> 0.3621079994 | L11: 0.3535123164 | M11: 0.369309505 | N11: 0.3658902036 | O11: 0.3650036438 | P11: 0.3614429427 | Q11: 0.3701040435 | R11: 0.353590951 | S11: 0.3699743681 | T11: 0.3770735536 | U11: 0.364693738 | V11: 0.3617325512 | W11: 0.3536447238
A12: -0.995 | B12: -0.995 | C12: 0 | D12: 189 | H12: Concentrated irradiance-to-electric efficiency | I12: =I10*100/($I$17) -> 24.95379445 | J12: =J10*100/($I$17) -> 24.93252963 | K12: 24.69576556 | L12: 24.10953998 | M12: 25.18690824 | N12: 24.95371188 | O12: 24.89324851 | P12: 24.65040869 | Q12: 25.24109576 | R12: 24.11490286 | S12: 25.23225191 | T12: 25.71641636 | U12: 24.87211293 | V12: 24.67015999 | W12: 24.11857016
A13: -0.985 | B13: -0.995 | C13: 0 | D13: 204 | H13: Solar field-to-electric efficiency | I13: =$B$5*I12 -> 13.30037244 | J13: =$B$5*J12 -> 13.28903829 | K13: 13.16284304 | L13: 12.85038481 | M13: 13.42462209 | N13: 13.30032843 | O13: 13.26810145 | P13: 13.13866783 | Q13: 13.45350404 | R13: 12.85324322 | S13: 13.44879027 | T13: 13.70684992 | U13: 13.25683619 | V13: 13.14919528 | W13: 12.8551979
A14: -0.975 | B14: -0.995 | C14: 0 | D14: 229 | H14: Perfil iluminación
A15: -0.965 | B15: -0.995 | C15: 0 | D15: 213 | H15: Desviacion estándar entre mòdulos [suns] | I15: 127.0131465 | J15: 126.8285772 | K15: 126.2678489 | L15: 118.2142512 | M15: 126.4557634 | N15: 126.2019928 | O15: 125.8902781 | P15: 126.9885272 | Q15: 127.5393989 | R15: 126.8930762 | S15: 128.1405836 | T15: 127.7651297 | U15: 127.9330318 | V15: 128.9425641 | W15: 127.7660819
A16: -0.955 | B16: -0.995 | C16: 0 | D16: 235
A17: -0.945 | B17: -0.995 | C17: 0 | D17: 245 | H17: Irradiación total | I17: =B8*4*1000/(1-B7) -> 3126362.463
A18: -0.935 | B18: -0.995 | C18: 0 | D18: 230
A19: -0.925 | B19: -0.995 | C19: 0 | D19: 258
A20: -0.915 | B20: -0.995 | C20: 0 | D20: 213
A21: -0.905 | B21: -0.995 | C21: 0 | D21: 258
A22: -0.895 | B22: -0.995 | C22: 0 | D22: 215
A23: -0.885 | B23: -0.995 | C23: 0 | D23: 297
A24: -0.875 | B24: -0.995 | C24: 0 | D24: 218
A25: -0.865 | B25: -0.995 | C25: 0 | D25: 247
A26: -0.855 | B26: -0.995 | C26: 0 | D26: 261
A27: -0.845 | B27: -0.995 | C27: 0 | D27: 224
A28: -0.835 | B28: -0.995 | C28: 0 | D28: 236
A29: -0.825 | B29: -0.995 | C29: 0 | D29: 279
A30: -0.815 | B30: -0.995 | C30: 0 | D30: 264
A31: -0.805 | B31: -0.995 | C31: 0 | D31: 247
A32: -0.795 | B32: -0.995 | C32: 0 | D32: 274
A33: -0.785 | B33: -0.995 | C33: 0 | D33: 253
A34: -0.775 | B34: -0.995 | C34: 0 | D34: 251
A35: -0.765 | B35: -0.995 | C35: 0 | D35: 288
A36: -0.755 | B36: -0.995 | C36: 0 | D36: 276
A37: -0.745 | B37: -0.995 | C37: 0 | D37: 276
A38: -0.735 | B38: -0.995 | C38: 0 | D38: 274
A39: -0.725 | B39: -0.995 | C39: 0 | D39: 300
A40: -0.715 | B40: -0.995 | C40: 0 | D40: 268
A41: -0.705 | B41: -0.995 | C41: 0 | D41: 303
A42: -0.695 | B42: -0.995 | C42: 0 | D42: 267
A43: -0.685 | B43: -0.995 | C43: 0 | D43: 285
A44: -0.675 | B44: -0.995 | C44: 0 | D44: 302
A45: -0.665 | B45: -0.995 | C45: 0 | D45: 267
A46: -0.655 | B46: -0.995 | C46: 0 | D46: 309
A47: -0.645 | B47: -0.995 | C47: 0 | D47: 348
A48: -0.635 | B48: -0.995 | C48: 0 | D48: 286
A49: -0.625 | B49: -0.995 | C49: 0 | D49: 280
A50: -0.615 | B50: -0.995 | C50: 0 | D50: 311
A51: -0.605 | B51: -0.995 | C51: 0 | D51: 320
A52: -0.595 | B52: -0.995 | C52: 0 | D52: 329
A53: -0.585 | B53: -0.995 | C53: 0 | D53: 302
A54: -0.575 | B54: -0.995 | C54: 0 | D54: 360
A55: -0.565 | B55: -0.995 | C55: 0 | D55: 303
A56: -0.555 | B56: -0.995 | C56: 0 | D56: 311
A57: -0.545 | B57: -0.995 | C57: 0 | D57: 294
A58: -0.535 | B58: -0.995 | C58: 0 | D58: 337
A59: -0.525 | B59: -0.995 | C59: 0 | D59: 331
A60: -0.515 | B60: -0.995 | C60: 0 | D60: 331
A61: -0.505 | B61: -0.995 | C61: 0 | D61: 352
A62: -0.495 | B62: -0.995 | C62: 0 | D62: 294
A63: -0.485 | B63: -0.995 | C63: 0 | D63: 354
A64: -0.475 | B64: -0.995 | C64: 0 | D64: 305
A65: -0.465 | B65: -0.995 | C65: 0 | D65: 338
A66: -0.455 | B66: -0.995 | C66: 0 | D66: 375
A67: -0.445 | B67: -0.995 | C67: 0 | D67: 322
A68: -0.435 | B68: -0.995 | C68: 0 | D68: 311
A69: -0.425 | B69: -0.995 | C69: 0 | D69: 319
A70: -0.415 | B70: -0.995 | C70: 0 | D70: 378
A71: -0.405 | B71: -0.995 | C71: 0 | D71: 321
A72: -0.395 | B72: -0.995 | C72: 0 | D72: 370
A73: -0.385 | B73: -0.995 | C73: 0 | D73: 360
A74: -0.375 | B74: -0.995 | C74: 0 | D74: 364
A75: -0.365 | B75: -0.995 | C75: 0 | D75: 381
A76: -0.355 | B76: -0.995 | C76: 0 | D76: 360
A77: -0.345 | B77: -0.995 | C77: 0 | D77: 340
A78: -0.335 | B78: -0.995 | C78: 0 | D78: 367
A79: -0.325 | B79: -0.995 | C79: 0 | D79: 335
A80: -0.315 | B80: -0.995 | C80: 0 | D80: 325
A81: -0.305 | B81: -0.995 | C81: 0 | D81: 340
A82: -0.295 | B82: -0.995 | C82: 0 | D82: 326
A83: -0.285 | B83: -0.995 | C83: 0 | D83: 329
A84: -0.275 | B84: -0.995 | C84: 0 | D84: 343
A85: -0.265 | B85: -0.995 | C85: 0 | D85: 306
A86: -0.255 | B86: -0.995 | C86: 0 | D86: 350
A87: -0.245 | B87: -0.995 | C87: 0 | D87: 354
A88: -0.235 | B88: -0.995 | C88: 0 | D88: 370
A89: -0.225 | B89: -0.995 | C89: 0 | D89: 358
A90: -0.215 | B90: -0.995 | C90: 0 | D90: 344
A91: -0.205 | B91: -0.995 | C91: 0 | D91: 347
A92: -0.195 | B92: -0.995 | C92: 0 | D92: 376
A93: -0.185 | B93: -0.995 | C93: 0 | D93: 366
A94: -0.175 | B94: -0.995 | C94: 0 | D94: 387
A95: -0.165 | B95: -0.995 | C95: 0 | D95: 302
A96: -0.155 | B96: -0.995 | C96: 0 | D96: 350
A97: -0.145 | B97: -0.995 | C97: 0 | D97: 410
A98: -0.135 | B98: -0.995 | C98: 0 | D98: 346
A99: -0.125 | B99: -0.995 | C99: 0 | D99: 317
A100: -0.115 | B100: -0.995 | C100: 0 | D100: 367
A101: -0.105 | B101: -0.995 | C101: 0 | D101: 335
A102: -0.095 | B102: -0.995 | C102: 0 | D102: 344
A103: -0.085 | B103: -0.995 | C103: 0 | D103: 372
A104: -0.075 | B104: -0.995 | C104: 0 | D104: 361
A105: -0.065 | B105: -0.995 | C105: 0 | D105: 366
A106: -0.055 | B106: -0.995 | C106: 0 | D106: 340
A107: -0.045 | B107: -0.995 | C107: 0 | D107: 328
A108: -0.035 | B108: -0.995 | C108: 0 | D108: 363
A109: -0.025 | B109: -0.995 | C109: 0 | D109: 332
A110: -0.015 | B110: -0.995 | C110: 0 | D110: 359
A111: -0.005 | B111: -0.995 | C111: 0 | D111: 375
A112: 0.005 | B112: -0.995 | C112: 0 | D112: 338
A113: 0.015 | B113: -0.995 | C113: 0 | D113: 404
A114: 0.025 | B114: -0.995 | C114: 0 | D114: 385
A115: 0.035 | B115: -0.995 | C115: 0 | D115: 337
A116: 0.045 | B116: -0.995 | C116: 0 | D116: 407
A117: 0.055 | B117: -0.995 | C117: 0 | D117: 372
A118: 0.065 | B118: -0.995 | C118: 0 | D118: 358
A119: 0.075 | B119: -0.995 | C119: 0 | D119: 366
A120: 0.085 | B120: -0.995 | C120: 0 | D120: 323
A121: 0.095 | B121: -0.995 | C121: 0 | D121: 369
A122: 0.105 | B122: -0.995 | C122: 0 | D122: 343
A123: 0.115 | B123: -0.995 | C123: 0 | D123: 340
A124: 0.125 | B124: -0.995 | C124: 0 | D124: 413
A125: 0.135 | B125: -0.995 | C125: 0 | D125: 427
A126: 0.145 | B126: -0.995 | C126: 0 | D126: 378
A127: 0.155 | B127: -0.995 | C127: 0 | D127: 347
A128: 0.165 | B128: -0.995 | C128: 0 | D128: 344
A129: 0.175 | B129: -0.995 | C129: 0 | D129: 389
A130: 0.185 | B130: -0.995 | C130: 0 | D130: 364
A131: 0.195 | B131: -0.995 | C131: 0 | D131: 347
A132: 0.205 | B132: -0.995 | C132: 0 | D132: 358
A133: 0.215 | B133: -0.995 | C133: 0 | D133: 393
A134: 0.225 | B134: -0.995 | C134: 0 | D134: 387
A135: 0.235 | B135: -0.995 | C135: 0 | D135: 355
A136: 0.245 | B136: -0.995 | C136: 0 | D136: 338
A137: 0.255 | B137: -0.995 | C137: 0 | D137: 355
A138: 0.265 | B138: -0.995 | C138: 0 | D138: 357
A139: 0.275 | B139: -0.995 | C139: 0 | D139: 344
A140: 0.285 | B140: -0.995 | C140: 0 | D140: 369
A141: 0.295 | B141: -0.995 | C141: 0 | D141: 337
A142: 0.305 | B142: -0.995 | C142: 0 | D142: 379
A143: 0.315 | B143: -0.995 | C143: 0 | D143: 360
A144: 0.325 | B144: -0.995 | C144: 0 | D144: 350
A145: 0.335 | B145: -0.995 | C145: 0 | D145: 370
A146: 0.345 | B146: -0.995 | C146: 0 | D146: 311
A147: 0.355 | B147: -0.995 | C147: 0 | D147: 332
A148: 0.365 | B148: -0.995 | C148: 0 | D148: 376
A149: 0.375 | B149: -0.995 | C149: 0 | D149: 357
A150: 0.385 | B150: -0.995 | C150: 0 | D150: 389
A151: 0.395 | B151: -0.995 | C151: 0 | D151: 296
A152: 0.405 | B152: -0.995 | C152: 0 | D152: 354
A153: 0.415 | B153: -0.995 | C153: 0 | D153: 354
A154: 0.425 | B154: -0.995 | C154: 0 | D154: 340
A155: 0.435 | B155: -0.995 | C155: 0 | D155: 366
A156: 0.445 | B156: -0.995 | C156: 0 | D156: 344
A157: 0.455 | B157: -0.995 | C157: 0 | D157: 288
A158: 0.465 | B158: -0.995 | C158: 0 | D158: 335
A159: 0.475 | B159: -0.995 | C159: 0 | D159: 376
A160: 0.485 | B160: -0.995 | C160: 0 | D160: 323
A161: 0.495 | B161: -0.995 | C161: 0 | D161: 350
A162: 0.505 | B162: -0.995 | C162: 0 | D162: 369
A163: 0.515 | B163: -0.995 | C163: 0 | D163: 360
A164: 0.525 | B164: -0.995 | C164: 0 | D164: 328
A165: 0.535 | B165: -0.995 | C165: 0 | D165: 315
A166: 0.545 | B166: -0.995 | C166: 0 | D166: 312
A167: 0.555 | B167: -0.995 | C167: 0 | D167: 340
A168: 0.565 | B168: -0.995 | C168: 0 | D168: 325
A169: 0.575 | B169: -0.995 | C169: 0 | D169: 285
A170: 0.585 | B170: -0.995 | C170: 0 | D170: 308
A171: 0.595 | B171: -0.995 | C171: 0 | D171: 379
A172: 0.605 | B172: -0.995 | C172: 0 | D172: 297
A173: 0.615 | B173: -0.995 | C173: 0 | D173: 305
A174: 0.625 | B174: -0.995 | C174: 0 | D174: 329
A175: 0.635 | B175: -0.995 | C175: 0 | D175: 306
A176: 0.645 | B176: -0.995 | C176: 0 | D176: 299
A177: 0.655 | B177: -0.995 | C177: 0 | D177: 308
A178: 0.665 | B178: -0.995 | C178: 0 | D178: 285
A179: 0.675 | B179: -0.995 | C179: 0 | D179: 308
A180: 0.685 | B180: -0.995 | C180: 0 | D180: 297
A181: 0.695 | B181: -0.995 | C181: 0 | D181: 282
A182: 0.705 | B182: -0.995 | C182: 0 | D182: 288
A183: 0.715 | B183: -0.995 | C183: 0 | D183: 268
A184: 0.725 | B184: -0.995 | C184: 0 | D184: 277
A185: 0.735 | B185: -0.995 | C185: 0 | D185: 303
A186: 0.745 | B186: -0.995 | C186: 0 | D186: 277
A187: 0.755 | B187: -0.995 | C187: 0 | D187: 277
A188: 0.765 | B188: -0.995 | C188: 0 | D188: 247
A189: 0.775 | B189: -0.995 | C189: 0 | D189: 271
A190: 0.785 | B190: -0.995 | C190: 0 | D190: 253
A191: 0.795 | B191: -0.995 | C191: 0 | D191: 256
A192: 0.805 | B192: -0.995 | C192: 0 | D192: 250
A193: 0.815 | B193: -0.995 | C193: 0 | D193: 251
A194: 0.825 | B194: -0.995 | C194: 0 | D194: 230
A195: 0.835 | B195: -0.995 | C195: 0 | D195: 221
A196: 0.845 | B196: -0.995 | C196: 0 | D196: 265
A197: 0.855 | B197: -0.995 | C197: 0 | D197: 265
A198: 0.865 | B198: -0.995 | C198: 0 | D198: 233
A199: 0.875 | B199: -0.995 | C199: 0 | D199: 254
A200: 0.885 | B200: -0.995 | C200: 0 | D200: 189
... 4300 more rows

Sheet Points.4_Desv.0.4
A1: # Concentration distribution on receiver: rec_CPV_SolarX Reference Heliostat Field
A2: # ratio | B2: 1 | H2: Electric power
A3: # aiming_points | B3: 4 | H3: Cells/module | I3: 5 | J3: 10 | K3: 25 | L3: 50 | M3: 4 | N3: 5 | O3: 10 | P3: 20 | Q3: 5 | R3: 25 | S3: 2 | T3: 4 | U3: 5 | V3: 10 | W3: 20
A4: # combined std dev. | B4: 0.4 | H4: Modules/subconjunto | I4: 200 | J4: 200 | K4: 200 | L4: 200 | M4: 250 | N4: 250 | O4: 250 | P4: 250 | Q4: 400 | R4: 400 | S4: 500 | T4: 500 | U4: 500 | V4: 500 | W4: 500
A5: # optical_eff | B5: 0.4909 | H5: Subconjunto/subreceivers | I5: 10 | J5: 5 | K5: 2 | L5: 1 | M5: 10 | N5: 8 | O5: 4 | P5: 2 | Q5: 5 | R5: 1 | S5: 10 | T5: 5 | U5: 4 | V5: 2 | W5: 1
A6: # standard_deviation | B6: 0.4 | H6: Power/subreceiver 1 | I6: 196251.1455 | J6: 196432.0346 | K6: 195018.1801 | L6: 191587.4333 | M6: 196527.4413 | N6: 196586.6174 | O6: 196599.6686 | P6: 195949.4427 | Q6: 195856.2501 | R6: 191623.4488 | S6: 195161.559 | T6: 196068.6927 | U6: 195710.7897 | V6: 194743.6362 | W6: 191539.4291
A7: # spillage | B7: 0.3719 | E7: Excel calculations | F7: Matlab calculations | H7: Power/subreceiver 2 | I7: 174308.1251 | J7: 174156.5933 | K7: 173020.3998 | L7: 170513.5703 | M7: 173936.3855 | N7: 173925.7662 | O7: 173643.444 | P7: 171792.4718 | Q7: 173965.3843 | R7: 170438.4435 | S7: 173173.4478 | T7: 173850.9636 | U7: 173869.5916 | V7: 172863.6681 | W7: 170392.7134
A8: # avg_concentration | B8: 491 | D8: Avg_concentration mesur. | E8: =MEDIAN(D12:D40011) -> 490.698 | F8: 490.9399274 | H8: Power/subreceiver 3 | I8: 196251.1455 | J8: 196432.0346 | K8: 195018.1801 | L8: 191587.4333 | M8: 196527.4413 | N8: 196586.6174 | O8: 196599.6686 | P8: 195949.4427 | Q8: 195856.2501 | R8: 191623.4488 | S8: 195161.559 | T8: 196068.6927 | U8: 195710.7897 | V8: 194743.6362 | W8: 191539.4291
A9: # std_concentration | B9: 123 | D9: Std_concentration | F9: 122.9750522 | H9: Power/subreceiver 4 | I9: 174308.1251 | J9: 174156.5933 | K9: 173020.3998 | L9: 170513.5703 | M9: 173936.3855 | N9: 173925.7662 | O9: 173643.444 | P9: 171792.4718 | Q9: 173965.3843 | R9: 170438.4435 | S9: 173173.4478 | T9: 173850.9636 | U9: 173869.5916 | V9: 172863.6681 | W9: 170392.7134
A10: # sun_zen=22, sun_azm=0 | D10: Concent. Max | E10: =MAX(D12:D40011) -> 796.877 | F10: 796.877 | H10: Total recevier power | I10: 741118.5414 | J10: 741177.2559 | K10: 736077.1599 | L10: 724202.0072 | M10: 740927.6536 | N10: 741024.7672 | O10: 740486.2253 | P10: 735483.8289 | Q10: 739643.2688 | R10: 724123.7845 | S10: 736670.0136 | T10: 739839.3126 | U10: 739160.7626 | V10: 735214.6085 | W10: 723864.285
A11: x[m] | B11: y[m] | C11: z[m] | D11: concentration[-] | H11: Receiver efficiency | I11: =I10/($B$8*1000*4) -> 0.3773977942 | J11: =J10/($B$8*1000*4) -> 0.3774276932 | K11: =K10/($B$8*1000*4) -> 0.3748305851 | L11: 0.3687834332 | M11: 0.3773005889 | N11: 0.3773500418 | O11: 0.3770758016 | P11: 0.3745284448 | Q11: 0.3766465451 | R11: 0.3687436 | S11: 0.3751324824 | T11: 0.376746376 | U11: 0.3764008398 | V11: 0.3743913504 | W11: 0.3686114558
A12: -0.995 | B12: -0.995 | C12: 0 | D12: 216 | H12: Concentrated irradiance-to-electric efficiency | I12: =I10*100/($I$17) -> 23.70435545 | J12: =J10*100/($I$17) -> 23.70623341 | K12: 23.54310905 | L12: 23.16328744 | M12: 23.69824999 | N12: 23.70135613 | O12: 23.6841311 | P12: 23.52413162 | Q12: 23.6571695 | R12: 23.16078552 | S12: 23.56207122 | T12: 23.66343987 | U12: 23.64173675 | V12: 23.51552072 | W12: 23.15248554
A13: -0.985 | B13: -0.995 | C13: 0 | D13: 219 | H13: Solar field-to-electric efficiency | I13: =$B$5*I12 -> 11.63646809 | J13: =$B$5*J12 -> 11.63738998 | K13: 11.55731223 | L13: 11.3708578 | M13: 11.63347092 | N13: 11.63499572 | O13: 11.62653996 | P13: 11.54799621 | Q13: 11.61330451 | R13: 11.36962961 | S13: 11.56662076 | T13: 11.61638263 | U13: 11.60572857 | V13: 11.54376912 | W13: 11.36555515
A14: -0.975 | B14: -0.995 | C14: 0 | D14: 221 | H14: Perfil iluminación
A15: -0.965 | B15: -0.995 | C15: 0 | D15: 215 | H15: Desviacion estándar entre mòdulos [suns] | I15: 114.2979398 | J15: 114.041228 | K15: 114.4333172 | L15: 108.2810781 | M15: 114.7405175 | N15: 114.6872881 | O15: 115.4137595 | P15: 115.2166114 | Q15: 114.6248003 | R15: 114.7164614 | S15: 115.3623448 | T15: 114.8436233 | U15: 114.8684936 | V15: 116.2689298 | W15: 115.4769501
A16: -0.955 | B16: -0.995 | C16: 0 | D16: 221
A17: -0.945 | B17: -0.995 | C17: 0 | D17: 223 | H17: Irradiación total | I17: =B8*4*1000/(1-B7) -> 3126507.881
A18: -0.935 | B18: -0.995 | C18: 0 | D18: 245
A19: -0.925 | B19: -0.995 | C19: 0 | D19: 232
A20: -0.915 | B20: -0.995 | C20: 0 | D20: 270
A21: -0.905 | B21: -0.995 | C21: 0 | D21: 245
A22: -0.895 | B22: -0.995 | C22: 0 | D22: 232
A23: -0.885 | B23: -0.995 | C23: 0 | D23: 280
A24: -0.875 | B24: -0.995 | C24: 0 | D24: 247
A25: -0.865 | B25: -0.995 | C25: 0 | D25: 274
A26: -0.855 | B26: -0.995 | C26: 0 | D26: 283
A27: -0.845 | B27: -0.995 | C27: 0 | D27: 241
A28: -0.835 | B28: -0.995 | C28: 0 | D28: 294
A29: -0.825 | B29: -0.995 | C29: 0 | D29: 250
A30: -0.815 | B30: -0.995 | C30: 0 | D30: 267
A31: -0.805 | B31: -0.995 | C31: 0 | D31: 238
A32: -0.795 | B32: -0.995 | C32: 0 | D32: 303
A33: -0.785 | B33: -0.995 | C33: 0 | D33: 288
A34: -0.775 | B34: -0.995 | C34: 0 | D34: 326
A35: -0.765 | B35: -0.995 | C35: 0 | D35: 282
A36: -0.755 | B36: -0.995 | C36: 0 | D36: 282
A37: -0.745 | B37: -0.995 | C37: 0 | D37: 291
A38: -0.735 | B38: -0.995 | C38: 0 | D38: 325
A39: -0.725 | B39: -0.995 | C39: 0 | D39: 325
A40: -0.715 | B40: -0.995 | C40: 0 | D40: 332
A41: -0.705 | B41: -0.995 | C41: 0 | D41: 335
A42: -0.695 | B42: -0.995 | C42: 0 | D42: 317
A43: -0.685 | B43: -0.995 | C43: 0 | D43: 317
A44: -0.675 | B44: -0.995 | C44: 0 | D44: 311
A45: -0.665 | B45: -0.995 | C45: 0 | D45: 319
A46: -0.655 | B46: -0.995 | C46: 0 | D46: 314
A47: -0.645 | B47: -0.995 | C47: 0 | D47: 317
A48: -0.635 | B48: -0.995 | C48: 0 | D48: 317
A49: -0.625 | B49: -0.995 | C49: 0 | D49: 334
A50: -0.615 | B50: -0.995 | C50: 0 | D50: 331
A51: -0.605 | B51: -0.995 | C51: 0 | D51: 329
A52: -0.595 | B52: -0.995 | C52: 0 | D52: 322
A53: -0.585 | B53: -0.995 | C53: 0 | D53: 294
A54: -0.575 | B54: -0.995 | C54: 0 | D54: 319
A55: -0.565 | B55: -0.995 | C55: 0 | D55: 322
A56: -0.555 | B56: -0.995 | C56: 0 | D56: 354
A57: -0.545 | B57: -0.995 | C57: 0 | D57: 319
A58: -0.535 | B58: -0.995 | C58: 0 | D58: 360
A59: -0.525 | B59: -0.995 | C59: 0 | D59: 348
A60: -0.515 | B60: -0.995 | C60: 0 | D60: 299
A61: -0.505 | B61: -0.995 | C61: 0 | D61: 343
A62: -0.495 | B62: -0.995 | C62: 0 | D62: 351
A63: -0.485 | B63: -0.995 | C63: 0 | D63: 360
A64: -0.475 | B64: -0.995 | C64: 0 | D64: 334
A65: -0.465 | B65: -0.995 | C65: 0 | D65: 348
A66: -0.455 | B66: -0.995 | C66: 0 | D66: 349
A67: -0.445 | B67: -0.995 | C67: 0 | D67: 343
A68: -0.435 | B68: -0.995 | C68: 0 | D68: 377
A69: -0.425 | B69: -0.995 | C69: 0 | D69: 343
A70: -0.415 | B70: -0.995 | C70: 0 | D70: 343
A71: -0.405 | B71: -0.995 | C71: 0 | D71: 405
A72: -0.395 | B72: -0.995 | C72: 0 | D72: 355
A73: -0.385 | B73: -0.995 | C73: 0 | D73: 390
A74: -0.375 | B74: -0.995 | C74: 0 | D74: 383
A75: -0.365 | B75: -0.995 | C75: 0 | D75: 364
A76: -0.355 | B76: -0.995 | C76: 0 | D76: 355
A77: -0.345 | B77: -0.995 | C77: 0 | D77: 355
A78: -0.335 | B78: -0.995 | C78: 0 | D78: 366
A79: -0.325 | B79: -0.995 | C79: 0 | D79: 373
A80: -0.315 | B80: -0.995 | C80: 0 | D80: 373
A81: -0.305 | B81: -0.995 | C81: 0 | D81: 410
A82: -0.295 | B82: -0.995 | C82: 0 | D82: 370
A83: -0.285 | B83: -0.995 | C83: 0 | D83: 343
A84: -0.275 | B84: -0.995 | C84: 0 | D84: 408
A85: -0.265 | B85: -0.995 | C85: 0 | D85: 361
A86: -0.255 | B86: -0.995 | C86: 0 | D86: 352
A87: -0.245 | B87: -0.995 | C87: 0 | D87: 386
A88: -0.235 | B88: -0.995 | C88: 0 | D88: 401
A89: -0.225 | B89: -0.995 | C89: 0 | D89: 378
A90: -0.215 | B90: -0.995 | C90: 0 | D90: 396
A91: -0.205 | B91: -0.995 | C91: 0 | D91: 393
A92: -0.195 | B92: -0.995 | C92: 0 | D92: 361
A93: -0.185 | B93: -0.995 | C93: 0 | D93: 338
A94: -0.175 | B94: -0.995 | C94: 0 | D94: 331
A95: -0.165 | B95: -0.995 | C95: 0 | D95: 411
A96: -0.155 | B96: -0.995 | C96: 0 | D96: 382
A97: -0.145 | B97: -0.995 | C97: 0 | D97: 414
A98: -0.135 | B98: -0.995 | C98: 0 | D98: 383
A99: -0.125 | B99: -0.995 | C99: 0 | D99: 355
A100: -0.115 | B100: -0.995 | C100: 0 | D100: 402
A101: -0.105 | B101: -0.995 | C101: 0 | D101: 425
A102: -0.095 | B102: -0.995 | C102: 0 | D102: 378
A103: -0.085 | B103: -0.995 | C103: 0 | D103: 411
A104: -0.075 | B104: -0.995 | C104: 0 | D104: 402
A105: -0.065 | B105: -0.995 | C105: 0 | D105: 381
A106: -0.055 | B106: -0.995 | C106: 0 | D106: 386
A107: -0.045 | B107: -0.995 | C107: 0 | D107: 393
A108: -0.035 | B108: -0.995 | C108: 0 | D108: 393
A109: -0.025 | B109: -0.995 | C109: 0 | D109: 378
A110: -0.015 | B110: -0.995 | C110: 0 | D110: 369
A111: -0.005 | B111: -0.995 | C111: 0 | D111: 358
A112: 0.005 | B112: -0.995 | C112: 0 | D112: 383
A113: 0.015 | B113: -0.995 | C113: 0 | D113: 407
A114: 0.025 | B114: -0.995 | C114: 0 | D114: 413
A115: 0.035 | B115: -0.995 | C115: 0 | D115: 419
A116: 0.045 | B116: -0.995 | C116: 0 | D116: 357
A117: 0.055 | B117: -0.995 | C117: 0 | D117: 343
A118: 0.065 | B118: -0.995 | C118: 0 | D118: 352
A119: 0.075 | B119: -0.995 | C119: 0 | D119: 340
A120: 0.085 | B120: -0.995 | C120: 0 | D120: 348
A121: 0.095 | B121: -0.995 | C121: 0 | D121: 341
A122: 0.105 | B122: -0.995 | C122: 0 | D122: 367
A123: 0.115 | B123: -0.995 | C123: 0 | D123: 364
A124: 0.125 | B124: -0.995 | C124: 0 | D124: 369
A125: 0.135 | B125: -0.995 | C125: 0 | D125: 357
A126: 0.145 | B126: -0.995 | C126: 0 | D126: 378
A127: 0.155 | B127: -0.995 | C127: 0 | D127: 341
A128: 0.165 | B128: -0.995 | C128: 0 | D128: 367
A129: 0.175 | B129: -0.995 | C129: 0 | D129: 349
A130: 0.185 | B130: -0.995 | C130: 0 | D130: 340
A131: 0.195 | B131: -0.995 | C131: 0 | D131: 328
A132: 0.205 | B132: -0.995 | C132: 0 | D132: 317
A133: 0.215 | B133: -0.995 | C133: 0 | D133: 360
A134: 0.225 | B134: -0.995 | C134: 0 | D134: 334
A135: 0.235 | B135: -0.995 | C135: 0 | D135: 360
A136: 0.245 | B136: -0.995 | C136: 0 | D136: 358
A137: 0.255 | B137: -0.995 | C137: 0 | D137: 343
A138: 0.265 | B138: -0.995 | C138: 0 | D138: 341
A139: 0.275 | B139: -0.995 | C139: 0 | D139: 346
A140: 0.285 | B140: -0.995 | C140: 0 | D140: 360
A141: 0.295 | B141: -0.995 | C141: 0 | D141: 338
A142: 0.305 | B142: -0.995 | C142: 0 | D142: 329
A143: 0.315 | B143: -0.995 | C143: 0 | D143: 332
A144: 0.325 | B144: -0.995 | C144: 0 | D144: 338
A145: 0.335 | B145: -0.995 | C145: 0 | D145: 337
A146: 0.345 | B146: -0.995 | C146: 0 | D146: 308
A147: 0.355 | B147: -0.995 | C147: 0 | D147: 355
A148: 0.365 | B148: -0.995 | C148: 0 | D148: 320
A149: 0.375 | B149: -0.995 | C149: 0 | D149: 335
A150: 0.385 | B150: -0.995 | C150: 0 | D150: 360
A151: 0.395 | B151: -0.995 | C151: 0 | D151: 317
A152: 0.405 | B152: -0.995 | C152: 0 | D152: 335
A153: 0.415 | B153: -0.995 | C153: 0 | D153: 286
A154: 0.425 | B154: -0.995 | C154: 0 | D154: 285
A155: 0.435 | B155: -0.995 | C155: 0 | D155: 318
A156: 0.445 | B156: -0.995 | C156: 0 | D156: 291
A157: 0.455 | B157: -0.995 | C157: 0 | D157: 378
A158: 0.465 | B158: -0.995 | C158: 0 | D158: 309
A159: 0.475 | B159: -0.995 | C159: 0 | D159: 309
A160: 0.485 | B160: -0.995 | C160: 0 | D160: 328
A161: 0.495 | B161: -0.995 | C161: 0 | D161: 283
A162: 0.505 | B162: -0.995 | C162: 0 | D162: 283
A163: 0.515 | B163: -0.995 | C163: 0 | D163: 294
A164: 0.525 | B164: -0.995 | C164: 0 | D164: 276
A165: 0.535 | B165: -0.995 | C165: 0 | D165: 317
A166: 0.545 | B166: -0.995 | C166: 0 | D166: 270
A167: 0.555 | B167: -0.995 | C167: 0 | D167: 273
A168: 0.565 | B168: -0.995 | C168: 0 | D168: 322
A169: 0.575 | B169: -0.995 | C169: 0 | D169: 291
A170: 0.585 | B170: -0.995 | C170: 0 | D170: 271
A171: 0.595 | B171: -0.995 | C171: 0 | D171: 329
A172: 0.605 | B172: -0.995 | C172: 0 | D172: 274
A173: 0.615 | B173: -0.995 | C173: 0 | D173: 271
A174: 0.625 | B174: -0.995 | C174: 0 | D174: 320
A175: 0.635 | B175: -0.995 | C175: 0 | D175: 290
A176: 0.645 | B176: -0.995 | C176: 0 | D176: 308
A177: 0.655 | B177: -0.995 | C177: 0 | D177: 285
A178: 0.665 | B178: -0.995 | C178: 0 | D178: 294
A179: 0.675 | B179: -0.995 | C179: 0 | D179: 254
A180: 0.685 | B180: -0.995 | C180: 0 | D180: 248
A181: 0.695 | B181: -0.995 | C181: 0 | D181: 270
A182: 0.705 | B182: -0.995 | C182: 0 | D182: 261
A183: 0.715 | B183: -0.995 | C183: 0 | D183: 279
A184: 0.725 | B184: -0.995 | C184: 0 | D184: 299
A185: 0.735 | B185: -0.995 | C185: 0 | D185: 259
A186: 0.745 | B186: -0.995 | C186: 0 | D186: 236
A187: 0.755 | B187: -0.995 | C187: 0 | D187: 267
A188: 0.765 | B188: -0.995 | C188: 0 | D188: 242
A189: 0.775 | B189: -0.995 | C189: 0 | D189: 271
A190: 0.785 | B190: -0.995 | C190: 0 | D190: 270
A191: 0.795 | B191: -0.995 | C191: 0 | D191: 229
A192: 0.805 | B192: -0.995 | C192: 0 | D192: 261
A193: 0.815 | B193: -0.995 | C193: 0 | D193: 227
A194: 0.825 | B194: -0.995 | C194: 0 | D194: 226
A195: 0.835 | B195: -0.995 | C195: 0 | D195: 271
A196: 0.845 | B196: -0.995 | C196: 0 | D196: 227
A197: 0.855 | B197: -0.995 | C197: 0 | D197: 219
A198: 0.865 | B198: -0.995 | C198: 0 | D198: 219
A199: 0.875 | B199: -0.995 | C199: 0 | D199: 230
A200: 0.885 | B200: -0.995 | C200: 0 | D200: 224
... 4300 more rows

Sheet Points.9_Desv.0.1
A1: # Concentration distribution on receiver: rec_CPV_SolarX Reference Heliostat Field
A2: # ratio | B2: 1 | H2: Electric power
A3: # aiming_points | B3: 9 | H3: Cells/module | I3: 5 | J3: 10 | K3: 25 | L3: 50 | M3: 4 | N3: 5 | O3: 10 | P3: 20 | Q3: 5 | R3: 25 | S3: 2 | T3: 4 | U3: 5 | V3: 10 | W3: 20
A4: # combined std dev. | B4: 0.1 | H4: Modules/subconjunto | I4: 200 | J4: 200 | K4: 200 | L4: 200 | M4: 250 | N4: 250 | O4: 250 | P4: 250 | Q4: 400 | R4: 400 | S4: 500 | T4: 500 | U4: 500 | V4: 500 | W4: 500
A5: # optical_eff | B5: 0.5544 | H5: Subconjunto/subreceivers | I5: 10 | J5: 5 | K5: 2 | L5: 1 | M5: 10 | N5: 8 | O5: 4 | P5: 2 | Q5: 5 | R5: 1 | S5: 10 | T5: 5 | U5: 4 | V5: 2 | W5: 1
A6: # standard_deviation | B6: 0.1 | H6: Power/subreceiver 1 | I6: 201931.8798 | J6: 201764.1735 | K6: 199996.4031 | L6: 196545.7714 | M6: 202253.0491 | N6: 202326.2742 | O6: 202243.8414 | P6: 201389.9956 | Q6: 201485.8563 | R6: 196351.5945 | S6: 201085.3913 | T6: 201633.351 | U6: 201154.8694 | V6: 199866.1885 | W6: 196301.3581
A7: # spillage | B7: 0.2907 | E7: Excel calculations | F7: Matlab calculations | H7: Power/subreceiver 2 | I7: 205968.0386 | J7: 205870.0659 | K7: 203583.9139 | L7: 199616.6564 | M7: 205780.2065 | N7: 205486.217 | O7: 204694.5988 | P7: 202101.5419 | Q7: 205530.7518 | R7: 199690.7337 | S7: 206969.902 | T7: 205580.2709 | U7: 205212.9671 | V7: 203428.1054 | W7: 199660.8507
A8: # avg_concentration | B8: 554 | D8: Avg_concentration mesur. | E8: =MEDIAN(D12:D40011) -> 562.421 | F8: 554.3577218 | H8: Power/subreceiver 3 | I8: 196539.6222 | J8: 196435.959 | K8: 194743.6858 | L8: 191648.6161 | M8: 270118.813 | N8: 196293.8947 | O8: 195462.0078 | P8: 193466.2416 | Q8: 196033.582 | R8: 191411.5784 | S8: 227336.8788 | T8: 342330.0354 | U8: 195976.3803 | V8: 194608.2568 | W8: 191343.903
A9: # std_concentration | B9: 135 | D9: Std_concentration | F9: 135.4410546 | H9: Power/subreceiver 4 | I9: 203534.0991 | J9: 203538.4844 | K9: 201160.4743 | L9: 196695.3337 | M9: 203869.8011 | N9: 204036.9585 | O9: 203951.6805 | P9: 202581.1881 | Q9: 203206.9219 | R9: 196797.1231 | S9: 202583.2782 | T9: 203299.4546 | U9: 202861.3192 | V9: 200943.1139 | W9: 196789.5068
A10: # sun_zen=22, sun_azm=0 | D10: Concent. Max | E10: =MAX(D12:D40011) -> 877.729 | F10: 877.729 | H10: Total recevier power | I10: 807973.6396 | J10: 807608.6828 | K10: 799484.4771 | L10: 784506.3776 | M10: 882021.8697 | N10: 808143.3444 | O10: 806352.1285 | P10: 799538.9671 | Q10: 806257.112 | R10: 784251.0296 | S10: 837975.4503 | T10: 952843.1118 | U10: 805205.536 | V10: 798845.6647 | W10: 784095.6185
A11: x[m] | B11: y[m] | C11: z[m] | D11: concentration[-] | H11: Receiver efficiency | I11: =I10/($B$8*1000*4) -> 0.3643737787 | J11: =J10/($B$8*1000*4) -> 0.3642091933 | K11: =K10/($B$8*1000*4) -> 0.3605454011 | L11: 0.3537906922 | M11: 0.3977674837 | N11: 0.3644503109 | O11: 0.363642522 | P11: 0.3605699746 | Q11: 0.3635996722 | R11: 0.3536755373 | S11: 0.3779037661 | T11: 0.4297059064 | U11: 0.3631254405 | V11: 0.3602573143 | W11: 0.3536054512
A12: -0.995 | B12: -0.995 | C12: 0 | D12: 203 | H12: Concentrated irradiance-to-electric efficiency | I12: =I10*100/($I$17) -> 25.84503212 | J12: =J10*100/($I$17) -> 25.83335808 | K12: 25.5734853 | L12: 25.0943738 | M12: 28.21364762 | N12: 25.85046055 | O12: 25.79316409 | P12: 25.5752283 | Q12: 25.79012475 | R12: 25.08620586 | S12: 26.80471413 | T12: 30.47903994 | U12: 25.75648749 | V12: 25.5530513 | W12: 25.08123465
A13: -0.985 | B13: -0.995 | C13: 0 | D13: 215 | H13: Solar field-to-electric efficiency | I13: =$B$5*I12 -> 14.32848581 | J13: =$B$5*J12 -> 14.32201372 | K13: 14.17794025 | L13: 13.91232083 | M13: 15.64164624 | N13: 14.33149533 | O13: 14.29973017 | P13: 14.17890657 | Q13: 14.29804516 | R13: 13.90779253 | S13: 14.86053351 | T13: 16.89757974 | U13: 14.27939667 | V13: 14.16661164 | W13: 13.90503649
A14: -0.975 | B14: -0.995 | C14: 0 | D14: 207 | H14: Perfil iluminación
A15: -0.965 | B15: -0.995 | C15: 0 | D15: 181 | H15: Desviacion estándar entre mòdulos [suns] | I15: 130.9532717 | J15: 130.8365091 | K15: 131.2907091 | L15: 121.896915 | M15: 130.3605606 | N15: 130.1736457 | O15: 129.7377112 | P15: 132.586533 | Q15: 131.5880605 | R15: 131.4333123 | S15: 132.0362385 | T15: 131.7873653 | U15: 132.1812967 | V15: 134.2880603 | W15: 132.7098553
A16: -0.955 | B16: -0.995 | C16: 0 | D16: 249
A17: -0.945 | B17: -0.995 | C17: 0 | D17: 209 | H17: Irradiación total | I17: =B8*4*1000/(1-B7) -> 3126224.165
A18: -0.935 | B18: -0.995 | C18: 0 | D18: 233
A19: -0.925 | B19: -0.995 | C19: 0 | D19: 197
A20: -0.915 | B20: -0.995 | C20: 0 | D20: 241
A21: -0.905 | B21: -0.995 | C21: 0 | D21: 235
A22: -0.895 | B22: -0.995 | C22: 0 | D22: 247
A23: -0.885 | B23: -0.995 | C23: 0 | D23: 235
A24: -0.875 | B24: -0.995 | C24: 0 | D24: 256
A25: -0.865 | B25: -0.995 | C25: 0 | D25: 230
A26: -0.855 | B26: -0.995 | C26: 0 | D26: 256
A27: -0.845 | B27: -0.995 | C27: 0 | D27: 252
A28: -0.835 | B28: -0.995 | C28: 0 | D28: 264
A29: -0.825 | B29: -0.995 | C29: 0 | D29: 255
A30: -0.815 | B30: -0.995 | C30: 0 | D30: 256
A31: -0.805 | B31: -0.995 | C31: 0 | D31: 270
A32: -0.795 | B32: -0.995 | C32: 0 | D32: 282
A33: -0.785 | B33: -0.995 | C33: 0 | D33: 294
A34: -0.775 | B34: -0.995 | C34: 0 | D34: 316
A35: -0.765 | B35: -0.995 | C35: 0 | D35: 285
A36: -0.755 | B36: -0.995 | C36: 0 | D36: 303
A37: -0.745 | B37: -0.995 | C37: 0 | D37: 311
A38: -0.735 | B38: -0.995 | C38: 0 | D38: 325
A39: -0.725 | B39: -0.995 | C39: 0 | D39: 319
A40: -0.715 | B40: -0.995 | C40: 0 | D40: 320
A41: -0.705 | B41: -0.995 | C41: 0 | D41: 329
A42: -0.695 | B42: -0.995 | C42: 0 | D42: 322
A43: -0.685 | B43: -0.995 | C43: 0 | D43: 340
A44: -0.675 | B44: -0.995 | C44: 0 | D44: 264
A45: -0.665 | B45: -0.995 | C45: 0 | D45: 305
A46: -0.655 | B46: -0.995 | C46: 0 | D46: 352
A47: -0.645 | B47: -0.995 | C47: 0 | D47: 314
A48: -0.635 | B48: -0.995 | C48: 0 | D48: 343
A49: -0.625 | B49: -0.995 | C49: 0 | D49: 308
A50: -0.615 | B50: -0.995 | C50: 0 | D50: 319
A51: -0.605 | B51: -0.995 | C51: 0 | D51: 308
A52: -0.595 | B52: -0.995 | C52: 0 | D52: 343
A53: -0.585 | B53: -0.995 | C53: 0 | D53: 325
A54: -0.575 | B54: -0.995 | C54: 0 | D54: 308
A55: -0.565 | B55: -0.995 | C55: 0 | D55: 354
A56: -0.555 | B56: -0.995 | C56: 0 | D56: 366
A57: -0.545 | B57: -0.995 | C57: 0 | D57: 337
A58: -0.535 | B58: -0.995 | C58: 0 | D58: 354
A59: -0.525 | B59: -0.995 | C59: 0 | D59: 323
A60: -0.515 | B60: -0.995 | C60: 0 | D60: 314
A61: -0.505 | B61: -0.995 | C61: 0 | D61: 325
A62: -0.495 | B62: -0.995 | C62: 0 | D62: 364
A63: -0.485 | B63: -0.995 | C63: 0 | D63: 325
A64: -0.475 | B64: -0.995 | C64: 0 | D64: 329
A65: -0.465 | B65: -0.995 | C65: 0 | D65: 354
A66: -0.455 | B66: -0.995 | C66: 0 | D66: 372
A67: -0.445 | B67: -0.995 | C67: 0 | D67: 355
A68: -0.435 | B68: -0.995 | C68: 0 | D68: 360
A69: -0.425 | B69: -0.995 | C69: 0 | D69: 373
A70: -0.415 | B70: -0.995 | C70: 0 | D70: 370
A71: -0.405 | B71: -0.995 | C71: 0 | D71: 367
A72: -0.395 | B72: -0.995 | C72: 0 | D72: 369
A73: -0.385 | B73: -0.995 | C73: 0 | D73: 366
A74: -0.375 | B74: -0.995 | C74: 0 | D74: 341
A75: -0.365 | B75: -0.995 | C75: 0 | D75: 335
A76: -0.355 | B76: -0.995 | C76: 0 | D76: 389
A77: -0.345 | B77: -0.995 | C77: 0 | D77: 337
A78: -0.335 | B78: -0.995 | C78: 0 | D78: 361
A79: -0.325 | B79: -0.995 | C79: 0 | D79: 360
A80: -0.315 | B80: -0.995 | C80: 0 | D80: 401
A81: -0.305 | B81: -0.995 | C81: 0 | D81: 372
A82: -0.295 | B82: -0.995 | C82: 0 | D82: 348
A83: -0.285 | B83: -0.995 | C83: 0 | D83: 384
A84: -0.275 | B84: -0.995 | C84: 0 | D84: 381
A85: -0.265 | B85: -0.995 | C85: 0 | D85: 348
A86: -0.255 | B86: -0.995 | C86: 0 | D86: 384
A87: -0.245 | B87: -0.995 | C87: 0 | D87: 396
A88: -0.235 | B88: -0.995 | C88: 0 | D88: 392
A89: -0.225 | B89: -0.995 | C89: 0 | D89: 383
A90: -0.215 | B90: -0.995 | C90: 0 | D90: 364
A91: -0.205 | B91: -0.995 | C91: 0 | D91: 393
A92: -0.195 | B92: -0.995 | C92: 0 | D92: 411
A93: -0.185 | B93: -0.995 | C93: 0 | D93: 390
A94: -0.175 | B94: -0.995 | C94: 0 | D94: 363
A95: -0.165 | B95: -0.995 | C95: 0 | D95: 441
A96: -0.155 | B96: -0.995 | C96: 0 | D96: 355
A97: -0.145 | B97: -0.995 | C97: 0 | D97: 396
A98: -0.135 | B98: -0.995 | C98: 0 | D98: 385
A99: -0.125 | B99: -0.995 | C99: 0 | D99: 383
A100: -0.115 | B100: -0.995 | C100: 0 | D100: 398
A101: -0.105 | B101: -0.995 | C101: 0 | D101: 413
A102: -0.095 | B102: -0.995 | C102: 0 | D102: 376
A103: -0.085 | B103: -0.995 | C103: 0 | D103: 447
A104: -0.075 | B104: -0.995 | C104: 0 | D104: 428
A105: -0.065 | B105: -0.995 | C105: 0 | D105: 404
A106: -0.055 | B106: -0.995 | C106: 0 | D106: 381
A107: -0.045 | B107: -0.995 | C107: 0 | D107: 457
A108: -0.035 | B108: -0.995 | C108: 0 | D108: 382
A109: -0.025 | B109: -0.995 | C109: 0 | D109: 396
A110: -0.015 | B110: -0.995 | C110: 0 | D110: 361
A111: -0.005 | B111: -0.995 | C111: 0 | D111: 393
A112: 0.005 | B112: -0.995 | C112: 0 | D112: 434
A113: 0.015 | B113: -0.995 | C113: 0 | D113: 398
A114: 0.025 | B114: -0.995 | C114: 0 | D114: 373
A115: 0.035 | B115: -0.995 | C115: 0 | D115: 375
A116: 0.045 | B116: -0.995 | C116: 0 | D116: 413
A117: 0.055 | B117: -0.995 | C117: 0 | D117: 396
A118: 0.065 | B118: -0.995 | C118: 0 | D118: 412
A119: 0.075 | B119: -0.995 | C119: 0 | D119: 407
A120: 0.085 | B120: -0.995 | C120: 0 | D120: 407
A121: 0.095 | B121: -0.995 | C121: 0 | D121: 395
A122: 0.105 | B122: -0.995 | C122: 0 | D122: 447
A123: 0.115 | B123: -0.995 | C123: 0 | D123: 390
A124: 0.125 | B124: -0.995 | C124: 0 | D124: 424
A125: 0.135 | B125: -0.995 | C125: 0 | D125: 375
A126: 0.145 | B126: -0.995 | C126: 0 | D126: 410
A127: 0.155 | B127: -0.995 | C127: 0 | D127: 402
A128: 0.165 | B128: -0.995 | C128: 0 | D128: 428
A129: 0.175 | B129: -0.995 | C129: 0 | D129: 396
A130: 0.185 | B130: -0.995 | C130: 0 | D130: 415
A131: 0.195 | B131: -0.995 | C131: 0 | D131: 405
A132: 0.205 | B132: -0.995 | C132: 0 | D132: 398
A133: 0.215 | B133: -0.995 | C133: 0 | D133: 393
A134: 0.225 | B134: -0.995 | C134: 0 | D134: 384
A135: 0.235 | B135: -0.995 | C135: 0 | D135: 363
A136: 0.245 | B136: -0.995 | C136: 0 | D136: 408
A137: 0.255 | B137: -0.995 | C137: 0 | D137: 381
A138: 0.265 | B138: -0.995 | C138: 0 | D138: 376
A139: 0.275 | B139: -0.995 | C139: 0 | D139: 416
A140: 0.285 | B140: -0.995 | C140: 0 | D140: 386
A141: 0.295 | B141: -0.995 | C141: 0 | D141: 376
A142: 0.305 | B142: -0.995 | C142: 0 | D142: 410
A143: 0.315 | B143: -0.995 | C143: 0 | D143: 393
A144: 0.325 | B144: -0.995 | C144: 0 | D144: 349
A145: 0.335 | B145: -0.995 | C145: 0 | D145: 401
A146: 0.345 | B146: -0.995 | C146: 0 | D146: 361
A147: 0.355 | B147: -0.995 | C147: 0 | D147: 378
A148: 0.365 | B148: -0.995 | C148: 0 | D148: 376
A149: 0.375 | B149: -0.995 | C149: 0 | D149: 389
A150: 0.385 | B150: -0.995 | C150: 0 | D150: 415
A151: 0.395 | B151: -0.995 | C151: 0 | D151: 363
A152: 0.405 | B152: -0.995 | C152: 0 | D152: 425
A153: 0.415 | B153: -0.995 | C153: 0 | D153: 392
A154: 0.425 | B154: -0.995 | C154: 0 | D154: 392
A155: 0.435 | B155: -0.995 | C155: 0 | D155: 322
A156: 0.445 | B156: -0.995 | C156: 0 | D156: 358
A157: 0.455 | B157: -0.995 | C157: 0 | D157: 354
A158: 0.465 | B158: -0.995 | C158: 0 | D158: 332
A159: 0.475 | B159: -0.995 | C159: 0 | D159: 331
A160: 0.485 | B160: -0.995 | C160: 0 | D160: 325
A161: 0.495 | B161: -0.995 | C161: 0 | D161: 346
A162: 0.505 | B162: -0.995 | C162: 0 | D162: 381
A163: 0.515 | B163: -0.995 | C163: 0 | D163: 346
A164: 0.525 | B164: -0.995 | C164: 0 | D164: 390
A165: 0.535 | B165: -0.995 | C165: 0 | D165: 308
A166: 0.545 | B166: -0.995 | C166: 0 | D166: 355
A167: 0.555 | B167: -0.995 | C167: 0 | D167: 366
A168: 0.565 | B168: -0.995 | C168: 0 | D168: 308
A169: 0.575 | B169: -0.995 | C169: 0 | D169: 378
A170: 0.585 | B170: -0.995 | C170: 0 | D170: 334
A171: 0.595 | B171: -0.995 | C171: 0 | D171: 367
A172: 0.605 | B172: -0.995 | C172: 0 | D172: 386
A173: 0.615 | B173: -0.995 | C173: 0 | D173: 308
A174: 0.625 | B174: -0.995 | C174: 0 | D174: 306
A175: 0.635 | B175: -0.995 | C175: 0 | D175: 347
A176: 0.645 | B176: -0.995 | C176: 0 | D176: 328
A177: 0.655 | B177: -0.995 | C177: 0 | D177: 343
A178: 0.665 | B178: -0.995 | C178: 0 | D178: 314
A179: 0.675 | B179: -0.995 | C179: 0 | D179: 288
A180: 0.685 | B180: -0.995 | C180: 0 | D180: 312
A181: 0.695 | B181: -0.995 | C181: 0 | D181: 303
A182: 0.705 | B182: -0.995 | C182: 0 | D182: 323
A183: 0.715 | B183: -0.995 | C183: 0 | D183: 286
A184: 0.725 | B184: -0.995 | C184: 0 | D184: 285
A185: 0.735 | B185: -0.995 | C185: 0 | D185: 323
A186: 0.745 | B186: -0.995 | C186: 0 | D186: 347
A187: 0.755 | B187: -0.995 | C187: 0 | D187: 291
A188: 0.765 | B188: -0.995 | C188: 0 | D188: 297
A189: 0.775 | B189: -0.995 | C189: 0 | D189: 281
A190: 0.785 | B190: -0.995 | C190: 0 | D190: 306
A191: 0.795 | B191: -0.995 | C191: 0 | D191: 242
A192: 0.805 | B192: -0.995 | C192: 0 | D192: 280
A193: 0.815 | B193: -0.995 | C193: 0 | D193: 282
A194: 0.825 | B194: -0.995 | C194: 0 | D194: 265
A195: 0.835 | B195: -0.995 | C195: 0 | D195: 283
A196: 0.845 | B196: -0.995 | C196: 0 | D196: 297
A197: 0.855 | B197: -0.995 | C197: 0 | D197: 288
A198: 0.865 | B198: -0.995 | C198: 0 | D198: 264
A199: 0.875 | B199: -0.995 | C199: 0 | D199: 258
A200: 0.885 | B200: -0.995 | C200: 0 | D200: 233
... 4300 more rows

Sheet Points.9_Desv.0.2
A1: # Concentration distribution on receiver: rec_CPV_SolarX Reference Heliostat Field
A2: # ratio | B2: 1 | H2: Electric power
A3: # aiming_points | B3: 9 | H3: Cells/module | I3: 5 | J3: 10 | K3: 25 | L3: 50 | M3: 4 | N3: 5 | O3: 10 | P3: 20 | Q3: 5 | R3: 25 | S3: 2 | T3: 4 | U3: 5 | V3: 10 | W3: 20
A4: # combined std dev. | B4: 0.2 | H4: Modules/subconjunto | I4: 200 | J4: 200 | K4: 200 | L4: 200 | M4: 250 | N4: 250 | O4: 250 | P4: 250 | Q4: 400 | R4: 400 | S4: 500 | T4: 500 | U4: 500 | V4: 500 | W4: 500
A5: # optical_eff | B5: 0.5351 | H5: Subconjunto/subreceivers | I5: 10 | J5: 5 | K5: 2 | L5: 1 | M5: 10 | N5: 8 | O5: 4 | P5: 2 | Q5: 5 | R5: 1 | S5: 10 | T5: 5 | U5: 4 | V5: 2 | W5: 1
A6: # standard_deviation | B6: 0.2 | H6: Power/subreceiver 1 | I6: 193465.3571 | J6: 193312.3924 | K6: 191576.1781 | L6: 186652.7202 | M6: 193917.231 | N6: 193947.7334 | O6: 193827.6254 | P6: 192642.759 | Q6: 193131.7985 | R6: 186488.12 | S6: 192547.2838 | T6: 192876.2478 | U6: 192831.6971 | V6: 191298.2051 | W6: 186453.291
A7: # spillage | B7: 0.3154 | E7: Excel calculations | F7: Matlab calculations | H7: Power/subreceiver 2 | I7: 193514.7877 | J7: 193419.8824 | K7: 191475.8182 | L7: 186306.9862 | M7: 193236.0749 | N7: 193168.0304 | O7: 192056.7528 | P7: 189312.1881 | Q7: 193199.4916 | R7: 186050.7544 | S7: 192514.1578 | T7: 192942.1347 | U7: 192895.5709 | V7: 191252.0998 | W7: 186017.2874
A8: # avg_concentration | B8: 535 | D8: Avg_concentration mesur. | E8: =MEDIAN(D12:D40011) -> 534.806 | F8: 535.0523019 | H8: Power/subreceiver 3 | I8: 195067.5152 | J8: 194829.8492 | K8: 193317.2091 | L8: 188686.1409 | M8: 219204.0312 | N8: 194551.5325 | O8: 193938.4835 | P8: 191451.3587 | Q8: 194645.5626 | R8: 188540.8192 | S8: 194165.9319 | T8: 205901.2261 | U8: 194343.3305 | V8: 193071.7735 | W8: 188605.0594
A9: # std_concentration | B9: 140 | D9: Std_concentration | F9: 140.1129372 | H9: Power/subreceiver 4 | I9: 198567.8788 | J9: 198478.6014 | K9: 196153.1581 | L9: 191743.8879 | M9: 198887.7734 | N9: 198956.5961 | O9: 199044.6914 | P9: 198020.7518 | Q9: 198229.523 | R9: 191916.5754 | S9: 197552.1029 | T9: 198179.9662 | U9: 197921.1097 | V9: 195986.6602 | W9: 191936.842
A10: # sun_zen=22, sun_azm=0 | D10: Concent. Max | E10: =MAX(D12:D40011) -> 899.176 | F10: 899.176 | H10: Total recevier power | I10: 780615.5388 | J10: 780040.7254 | K10: 772522.3635 | L10: 753389.7351 | M10: 805245.1105 | N10: 780623.8925 | O10: 778867.5531 | P10: 771427.0576 | Q10: 779206.3757 | R10: 752996.269 | S10: 776779.4764 | T10: 789899.5747 | U10: 777991.7082 | V10: 771608.7386 | W10: 753012.4798
A11: x[m] | B11: y[m] | C11: z[m] | D11: concentration[-] | H11: Receiver efficiency | I11: =I10/($B$8*1000*4) -> 0.3647379606 | J11: =J10/($B$8*1000*4) -> 0.3644693824 | K11: =K10/($B$8*1000*4) -> 0.3609564726 | L11: 0.352016866 | M11: 0.3762459812 | N11: 0.3647418638 | O11: 0.3639212247 | P11: 0.3604446975 | Q11: 0.3640795375 | R11: 0.3518330213 | S11: 0.3629455832 | T11: 0.369075871 | U11: 0.3635119913 | V11: 0.3605295868 | W11: 0.3518405957
A12: -0.995 | B12: -0.995 | C12: 0 | D12: 233 | H12: Concentrated irradiance-to-electric efficiency | I12: =I10*100/($I$17) -> 24.96996078 | J12: =J10*100/($I$17) -> 24.95157392 | K12: 24.71108012 | L12: 24.09907464 | M12: 25.75779987 | N12: 24.97022799 | O12: 24.91404704 | P12: 24.67604399 | Q12: 24.92488514 | R12: 24.08648864 | S12: 24.84725463 | T12: 25.26693413 | U12: 24.88603093 | V12: 24.68185551 | W12: 24.08700718
A13: -0.985 | B13: -0.995 | C13: 0 | D13: 200 | H13: Solar field-to-electric efficiency | I13: =$B$5*I12 -> 13.36142601 | J13: =$B$5*J12 -> 13.35158721 | K13: 13.22289897 | L13: 12.89541484 | M13: 13.78299871 | N13: 13.361569 | O13: 13.33150657 | P13: 13.20415114 | Q13: 13.33730604 | R13: 12.88868007 | S13: 13.29576595 | T13: 13.52033645 | U13: 13.31651515 | V13: 13.20726089 | W13: 12.88895754
A14: -0.975 | B14: -0.995 | C14: 0 | D14: 218 | H14: Perfil iluminación
A15: -0.965 | B15: -0.995 | C15: 0 | D15: 236 | H15: Desviacion estándar entre mòdulos [suns] | I15: 141.178996 | J15: 140.9508549 | K15: 140.280837 | L15: 131.8704379 | M15: 140.4891694 | N15: 140.3557847 | O15: 139.6340361 | P15: 141.2206841 | Q15: 141.6690672 | R15: 140.632689 | S15: 142.1750483 | T15: 141.8510878 | U15: 142.0290143 | V15: 142.9774531 | W15: 141.6653938
A16: -0.955 | B16: -0.995 | C16: 0 | D16: 216
A17: -0.945 | B17: -0.995 | C17: 0 | D17: 221 | H17: Irradiación total | I17: =B8*4*1000/(1-B7) -> 3126218.522
A18: -0.935 | B18: -0.995 | C18: 0 | D18: 220
A19: -0.925 | B19: -0.995 | C19: 0 | D19: 207
A20: -0.915 | B20: -0.995 | C20: 0 | D20: 248
A21: -0.905 | B21: -0.995 | C21: 0 | D21: 215
A22: -0.895 | B22: -0.995 | C22: 0 | D22: 227
A23: -0.885 | B23: -0.995 | C23: 0 | D23: 261
A24: -0.875 | B24: -0.995 | C24: 0 | D24: 262
A25: -0.865 | B25: -0.995 | C25: 0 | D25: 245
A26: -0.855 | B26: -0.995 | C26: 0 | D26: 222
A27: -0.845 | B27: -0.995 | C27: 0 | D27: 258
A28: -0.835 | B28: -0.995 | C28: 0 | D28: 277
A29: -0.825 | B29: -0.995 | C29: 0 | D29: 222
A30: -0.815 | B30: -0.995 | C30: 0 | D30: 277
A31: -0.805 | B31: -0.995 | C31: 0 | D31: 262
A32: -0.795 | B32: -0.995 | C32: 0 | D32: 282
A33: -0.785 | B33: -0.995 | C33: 0 | D33: 238
A34: -0.775 | B34: -0.995 | C34: 0 | D34: 265
A35: -0.765 | B35: -0.995 | C35: 0 | D35: 290
A36: -0.755 | B36: -0.995 | C36: 0 | D36: 311
A37: -0.745 | B37: -0.995 | C37: 0 | D37: 268
A38: -0.735 | B38: -0.995 | C38: 0 | D38: 250
A39: -0.725 | B39: -0.995 | C39: 0 | D39: 325
A40: -0.715 | B40: -0.995 | C40: 0 | D40: 314
A41: -0.705 | B41: -0.995 | C41: 0 | D41: 305
A42: -0.695 | B42: -0.995 | C42: 0 | D42: 273
A43: -0.685 | B43: -0.995 | C43: 0 | D43: 285
A44: -0.675 | B44: -0.995 | C44: 0 | D44: 296
A45: -0.665 | B45: -0.995 | C45: 0 | D45: 288
A46: -0.655 | B46: -0.995 | C46: 0 | D46: 328
A47: -0.645 | B47: -0.995 | C47: 0 | D47: 343
A48: -0.635 | B48: -0.995 | C48: 0 | D48: 279
A49: -0.625 | B49: -0.995 | C49: 0 | D49: 328
A50: -0.615 | B50: -0.995 | C50: 0 | D50: 283
A51: -0.605 | B51: -0.995 | C51: 0 | D51: 317
A52: -0.595 | B52: -0.995 | C52: 0 | D52: 323
A53: -0.585 | B53: -0.995 | C53: 0 | D53: 332
A54: -0.575 | B54: -0.995 | C54: 0 | D54: 314
A55: -0.565 | B55: -0.995 | C55: 0 | D55: 361
A56: -0.555 | B56: -0.995 | C56: 0 | D56: 351
A57: -0.545 | B57: -0.995 | C57: 0 | D57: 351
A58: -0.535 | B58: -0.995 | C58: 0 | D58: 300
A59: -0.525 | B59: -0.995 | C59: 0 | D59: 317
A60: -0.515 | B60: -0.995 | C60: 0 | D60: 317
A61: -0.505 | B61: -0.995 | C61: 0 | D61: 329
A62: -0.495 | B62: -0.995 | C62: 0 | D62: 326
A63: -0.485 | B63: -0.995 | C63: 0 | D63: 347
A64: -0.475 | B64: -0.995 | C64: 0 | D64: 357
A65: -0.465 | B65: -0.995 | C65: 0 | D65: 332
A66: -0.455 | B66: -0.995 | C66: 0 | D66: 341
A67: -0.445 | B67: -0.995 | C67: 0 | D67: 340
A68: -0.435 | B68: -0.995 | C68: 0 | D68: 302
A69: -0.425 | B69: -0.995 | C69: 0 | D69: 318
A70: -0.415 | B70: -0.995 | C70: 0 | D70: 353
A71: -0.405 | B71: -0.995 | C71: 0 | D71: 378
A72: -0.395 | B72: -0.995 | C72: 0 | D72: 378
A73: -0.385 | B73: -0.995 | C73: 0 | D73: 340
A74: -0.375 | B74: -0.995 | C74: 0 | D74: 372
A75: -0.365 | B75: -0.995 | C75: 0 | D75: 326
A76: -0.355 | B76: -0.995 | C76: 0 | D76: 408
A77: -0.345 | B77: -0.995 | C77: 0 | D77: 347
A78: -0.335 | B78: -0.995 | C78: 0 | D78: 381
A79: -0.325 | B79: -0.995 | C79: 0 | D79: 346
A80: -0.315 | B80: -0.995 | C80: 0 | D80: 350
A81: -0.305 | B81: -0.995 | C81: 0 | D81: 358
A82: -0.295 | B82: -0.995 | C82: 0 | D82: 299
A83: -0.285 | B83: -0.995 | C83: 0 | D83: 350
A84: -0.275 | B84: -0.995 | C84: 0 | D84: 375
A85: -0.265 | B85: -0.995 | C85: 0 | D85: 405
A86: -0.255 | B86: -0.995 | C86: 0 | D86: 364
A87: -0.245 | B87: -0.995 | C87: 0 | D87: 375
A88: -0.235 | B88: -0.995 | C88: 0 | D88: 385
A89: -0.225 | B89: -0.995 | C89: 0 | D89: 386
A90: -0.215 | B90: -0.995 | C90: 0 | D90: 314
A91: -0.205 | B91: -0.995 | C91: 0 | D91: 382
A92: -0.195 | B92: -0.995 | C92: 0 | D92: 382
A93: -0.185 | B93: -0.995 | C93: 0 | D93: 364
A94: -0.175 | B94: -0.995 | C94: 0 | D94: 404
A95: -0.165 | B95: -0.995 | C95: 0 | D95: 390
A96: -0.155 | B96: -0.995 | C96: 0 | D96: 349
A97: -0.145 | B97: -0.995 | C97: 0 | D97: 364
A98: -0.135 | B98: -0.995 | C98: 0 | D98: 392
A99: -0.125 | B99: -0.995 | C99: 0 | D99: 370
A100: -0.115 | B100: -0.995 | C100: 0 | D100: 373
A101: -0.105 | B101: -0.995 | C101: 0 | D101: 341
A102: -0.095 | B102: -0.995 | C102: 0 | D102: 358
A103: -0.085 | B103: -0.995 | C103: 0 | D103: 309
A104: -0.075 | B104: -0.995 | C104: 0 | D104: 372
A105: -0.065 | B105: -0.995 | C105: 0 | D105: 364
A106: -0.055 | B106: -0.995 | C106: 0 | D106: 375
A107: -0.045 | B107: -0.995 | C107: 0 | D107: 372
A108: -0.035 | B108: -0.995 | C108: 0 | D108: 401
A109: -0.025 | B109: -0.995 | C109: 0 | D109: 385
A110: -0.015 | B110: -0.995 | C110: 0 | D110: 373
A111: -0.005 | B111: -0.995 | C111: 0 | D111: 363
A112: 0.005 | B112: -0.995 | C112: 0 | D112: 366
A113: 0.015 | B113: -0.995 | C113: 0 | D113: 394
A114: 0.025 | B114: -0.995 | C114: 0 | D114: 360
A115: 0.035 | B115: -0.995 | C115: 0 | D115: 402
A116: 0.045 | B116: -0.995 | C116: 0 | D116: 334
A117: 0.055 | B117: -0.995 | C117: 0 | D117: 328
A118: 0.065 | B118: -0.995 | C118: 0 | D118: 344
A119: 0.075 | B119: -0.995 | C119: 0 | D119: 390
A120: 0.085 | B120: -0.995 | C120: 0 | D120: 393
A121: 0.095 | B121: -0.995 | C121: 0 | D121: 379
A122: 0.105 | B122: -0.995 | C122: 0 | D122: 358
A123: 0.115 | B123: -0.995 | C123: 0 | D123: 347
A124: 0.125 | B124: -0.995 | C124: 0 | D124: 363
A125: 0.135 | B125: -0.995 | C125: 0 | D125: 392
A126: 0.145 | B126: -0.995 | C126: 0 | D126: 395
A127: 0.155 | B127: -0.995 | C127: 0 | D127: 343
A128: 0.165 | B128: -0.995 | C128: 0 | D128: 361
A129: 0.175 | B129: -0.995 | C129: 0 | D129: 367
A130: 0.185 | B130: -0.995 | C130: 0 | D130: 434
A131: 0.195 | B131: -0.995 | C131: 0 | D131: 395
A132: 0.205 | B132: -0.995 | C132: 0 | D132: 353
A133: 0.215 | B133: -0.995 | C133: 0 | D133: 320
A134: 0.225 | B134: -0.995 | C134: 0 | D134: 327
A135: 0.235 | B135: -0.995 | C135: 0 | D135: 346
A136: 0.245 | B136: -0.995 | C136: 0 | D136: 390
A137: 0.255 | B137: -0.995 | C137: 0 | D137: 373
A138: 0.265 | B138: -0.995 | C138: 0 | D138: 387
A139: 0.275 | B139: -0.995 | C139: 0 | D139: 352
A140: 0.285 | B140: -0.995 | C140: 0 | D140: 388
A141: 0.295 | B141: -0.995 | C141: 0 | D141: 353
A142: 0.305 | B142: -0.995 | C142: 0 | D142: 332
A143: 0.315 | B143: -0.995 | C143: 0 | D143: 367
A144: 0.325 | B144: -0.995 | C144: 0 | D144: 314
A145: 0.335 | B145: -0.995 | C145: 0 | D145: 370
A146: 0.345 | B146: -0.995 | C146: 0 | D146: 358
A147: 0.355 | B147: -0.995 | C147: 0 | D147: 357
A148: 0.365 | B148: -0.995 | C148: 0 | D148: 364
A149: 0.375 | B149: -0.995 | C149: 0 | D149: 361
A150: 0.385 | B150: -0.995 | C150: 0 | D150: 328
A151: 0.395 | B151: -0.995 | C151: 0 | D151: 366
A152: 0.405 | B152: -0.995 | C152: 0 | D152: 352
A153: 0.415 | B153: -0.995 | C153: 0 | D153: 317
A154: 0.425 | B154: -0.995 | C154: 0 | D154: 367
A155: 0.435 | B155: -0.995 | C155: 0 | D155: 317
A156: 0.445 | B156: -0.995 | C156: 0 | D156: 328
A157: 0.455 | B157: -0.995 | C157: 0 | D157: 312
A158: 0.465 | B158: -0.995 | C158: 0 | D158: 355
A159: 0.475 | B159: -0.995 | C159: 0 | D159: 352
A160: 0.485 | B160: -0.995 | C160: 0 | D160: 350
A161: 0.495 | B161: -0.995 | C161: 0 | D161: 332
A162: 0.505 | B162: -0.995 | C162: 0 | D162: 315
A163: 0.515 | B163: -0.995 | C163: 0 | D163: 302
A164: 0.525 | B164: -0.995 | C164: 0 | D164: 303
A165: 0.535 | B165: -0.995 | C165: 0 | D165: 309
A166: 0.545 | B166: -0.995 | C166: 0 | D166: 291
A167: 0.555 | B167: -0.995 | C167: 0 | D167: 335
A168: 0.565 | B168: -0.995 | C168: 0 | D168: 328
A169: 0.575 | B169: -0.995 | C169: 0 | D169: 312
A170: 0.585 | B170: -0.995 | C170: 0 | D170: 341
A171: 0.595 | B171: -0.995 | C171: 0 | D171: 331
A172: 0.605 | B172: -0.995 | C172: 0 | D172: 314
A173: 0.615 | B173: -0.995 | C173: 0 | D173: 286
A174: 0.625 | B174: -0.995 | C174: 0 | D174: 312
A175: 0.635 | B175: -0.995 | C175: 0 | D175: 288
A176: 0.645 | B176: -0.995 | C176: 0 | D176: 334
A177: 0.655 | B177: -0.995 | C177: 0 | D177: 315
A178: 0.665 | B178: -0.995 | C178: 0 | D178: 300
A179: 0.675 | B179: -0.995 | C179: 0 | D179: 311
A180: 0.685 | B180: -0.995 | C180: 0 | D180: 279
A181: 0.695 | B181: -0.995 | C181: 0 | D181: 291
A182: 0.705 | B182: -0.995 | C182: 0 | D182: 325
A183: 0.715 | B183: -0.995 | C183: 0 | D183: 271
A184: 0.725 | B184: -0.995 | C184: 0 | D184: 268
A185: 0.735 | B185: -0.995 | C185: 0 | D185: 303
A186: 0.745 | B186: -0.995 | C186: 0 | D186: 311
A187: 0.755 | B187: -0.995 | C187: 0 | D187: 305
A188: 0.765 | B188: -0.995 | C188: 0 | D188: 283
A189: 0.775 | B189: -0.995 | C189: 0 | D189: 274
A190: 0.785 | B190: -0.995 | C190: 0 | D190: 274
A191: 0.795 | B191: -0.995 | C191: 0 | D191: 235
A192: 0.805 | B192: -0.995 | C192: 0 | D192: 244
A193: 0.815 | B193: -0.995 | C193: 0 | D193: 250
A194: 0.825 | B194: -0.995 | C194: 0 | D194: 244
A195: 0.835 | B195: -0.995 | C195: 0 | D195: 256
A196: 0.845 | B196: -0.995 | C196: 0 | D196: 294
A197: 0.855 | B197: -0.995 | C197: 0 | D197: 251
A198: 0.865 | B198: -0.995 | C198: 0 | D198: 264
A199: 0.875 | B199: -0.995 | C199: 0 | D199: 221
A200: 0.885 | B200: -0.995 | C200: 0 | D200: 242
... 4300 more rows

Sheet Points.9_Desv.0.3
A1: # Concentration distribution on receiver: rec_CPV_SolarX Reference Heliostat Field
A2: # ratio | B2: 1 | H2: Electric power
A3: # aiming_points | B3: 9 | H3: Cells/module | I3: 5 | J3: 10 | K3: 25 | L3: 50 | M3: 4 | N3: 5 | O3: 10 | P3: 20 | Q3: 5 | R3: 25 | S3: 2 | T3: 4 | U3: 5 | V3: 10 | W3: 20
A4: # combined std dev. | B4: 0.3 | H4: Modules/subconjunto | I4: 200 | J4: 200 | K4: 200 | L4: 200 | M4: 250 | N4: 250 | O4: 250 | P4: 250 | Q4: 400 | R4: 400 | S4: 500 | T4: 500 | U4: 500 | V4: 500 | W4: 500
A5: # optical_eff | B5: 0.5057 | H5: Subconjunto/subreceivers | I5: 10 | J5: 5 | K5: 2 | L5: 1 | M5: 10 | N5: 8 | O5: 4 | P5: 2 | Q5: 5 | R5: 1 | S5: 10 | T5: 5 | U5: 4 | V5: 2 | W5: 1
A6: # standard_deviation | B6: 0.3 | H6: Power/subreceiver 1 | I6: 183381.0082 | J6: 183348.5451 | K6: 181808.7423 | L6: 178342.3272 | M6: 183610.4007 | N6: 183676.4653 | O6: 183791.0952 | P6: 183096.1339 | Q6: 183164.0707 | R6: 178332.55 | S6: 182395.3747 | T6: 183172.3716 | U6: 182911.141 | V6: 181606.4862 | W6: 178273.5814
A7: # spillage | B7: 0.3529 | E7: Excel calculations | F7: Matlab calculations | H7: Power/subreceiver 2 | I7: 185616.5383 | J7: 185818.001 | K7: 184301.9965 | L7: 181041.0052 | M7: 185711.6737 | N7: 185458.11 | O7: 184933.1513 | P7: 182922.2535 | Q7: 185507.9854 | R7: 180963.5706 | S7: 184741.7203 | T7: 185556.4499 | U7: 185074.0122 | V7: 184148.2191 | W7: 180916.3843
A8: # avg_concentration | B8: 506 | D8: Avg_concentration mesur. | E8: =MEDIAN(D12:D40011) -> 506.090 | F8: 505.7485381 | H8: Power/subreceiver 3 | I8: 190084.1508 | J8: 189963.7713 | K8: 188612.5506 | L8: 184819.9924 | M8: 189827.407 | N8: 189685.5238 | O8: 189002.361 | P8: 186815.5051 | Q8: 189741.017 | R8: 184722.7248 | S8: 189227.0333 | T8: 189502.438 | U8: 189483.6053 | V8: 188355.3819 | W8: 184759.1429
A9: # std_concentration | B9: 130 | D9: Std_concentration | F9: 130.1892712 | H9: Power/subreceiver 4 | I9: 189067.111 | J9: 189158.4916 | K9: 187822.209 | L9: 183828.1812 | M9: 189415.8535 | N9: 189571.1137 | O9: 189474.4921 | P9: 188946.7427 | Q9: 188891.4963 | R9: 183697.9536 | S9: 188240.2894 | T9: 188920.3933 | U9: 188457.5055 | V9: 187493.9256 | W9: 183661.4463
A10: # sun_zen=22, sun_azm=0 | D10: Concent. Max | E10: =MAX(D12:D40011) -> 830.583 | F10: 830.583 | H10: Total recevier power | I10: 748148.8084 | J10: 748288.8089 | K10: 742545.4984 | L10: 728031.506 | M10: 748565.3349 | N10: 748391.2129 | O10: 747201.0995 | P10: 741780.6352 | Q10: 747304.5693 | R10: 727716.7991 | S10: 744604.4178 | T10: 747151.6528 | U10: 745926.264 | V10: 741604.0128 | W10: 727610.5548
A11: x[m] | B11: y[m] | C11: z[m] | D11: concentration[-] | H11: Receiver efficiency | I11: =I10/($B$8*1000*4) -> 0.3698225543 | J11: =J10/($B$8*1000*4) -> 0.3698917589 | K11: =K10/($B$8*1000*4) -> 0.3670527438 | L11: 0.359878233 | M11: 0.3700284504 | N11: 0.3699423789 | O11: 0.3693540858 | P11: 0.3666746591 | Q11: 0.3694052327 | R11: 0.359722668 | S11: 0.3680705023 | T11: 0.3693296435 | U11: 0.3687239132 | V11: 0.3665873516 | W11: 0.3596701497
A12: -0.995 | B12: -0.995 | C12: 0 | D12: 201 | H12: Concentrated irradiance-to-electric efficiency | I12: =I10*100/($I$17) -> 23.93121749 | J12: =J10*100/($I$17) -> 23.93569572 | K12: 23.75198305 | L12: 23.28772045 | M12: 23.94454102 | N12: 23.93897134 | O12: 23.90090289 | P12: 23.72751719 | Q12: 23.90421261 | R12: 23.27765385 | S12: 23.8178422 | T12: 23.89932123 | U12: 23.86012442 | V12: 23.72186752 | W12: 23.27425539
A13: -0.985 | B13: -0.995 | C13: 0 | D13: 180 | H13: Solar field-to-electric efficiency | I13: =$B$5*I12 -> 12.10201668 | J13: =$B$5*J12 -> 12.10428133 | K13: 12.01137783 | L13: 11.77660023 | M13: 12.1087544 | N13: 12.10593781 | O13: 12.08668659 | P13: 11.99900544 | Q13: 12.08836032 | R13: 11.77150955 | S13: 12.0446828 | T13: 12.08588675 | U13: 12.06606492 | V13: 11.99614841 | W13: 11.76979095
A14: -0.975 | B14: -0.995 | C14: 0 | D14: 212 | H14: Perfil iluminación
A15: -0.965 | B15: -0.995 | C15: 0 | D15: 195 | H15: Desviacion estándar entre mòdulos [suns] | I15: 126.7642437 | J15: 126.5870324 | K15: 126.8982298 | L15: 119.0917136 | M15: 126.0982638 | N15: 125.9229338 | O15: 124.8720864 | P15: 127.9719142 | Q15: 127.241551 | R15: 126.9147931 | S15: 127.7865224 | T15: 127.4221962 | U15: 127.5336271 | V15: 129.3852099 | W15: 127.9944093
A16: -0.955 | B16: -0.995 | C16: 0 | D16: 194
A17: -0.945 | B17: -0.995 | C17: 0 | D17: 206 | H17: Irradiación total | I17: =B8*4*1000/(1-B7) -> 3126246.33
A18: -0.935 | B18: -0.995 | C18: 0 | D18: 206
A19: -0.925 | B19: -0.995 | C19: 0 | D19: 204
A20: -0.915 | B20: -0.995 | C20: 0 | D20: 207
A21: -0.905 | B21: -0.995 | C21: 0 | D21: 227
A22: -0.895 | B22: -0.995 | C22: 0 | D22: 241
A23: -0.885 | B23: -0.995 | C23: 0 | D23: 233
A24: -0.875 | B24: -0.995 | C24: 0 | D24: 219
A25: -0.865 | B25: -0.995 | C25: 0 | D25: 229
A26: -0.855 | B26: -0.995 | C26: 0 | D26: 256
A27: -0.845 | B27: -0.995 | C27: 0 | D27: 229
A28: -0.835 | B28: -0.995 | C28: 0 | D28: 220
A29: -0.825 | B29: -0.995 | C29: 0 | D29: 268
A30: -0.815 | B30: -0.995 | C30: 0 | D30: 282
A31: -0.805 | B31: -0.995 | C31: 0 | D31: 222
A32: -0.795 | B32: -0.995 | C32: 0 | D32: 224
A33: -0.785 | B33: -0.995 | C33: 0 | D33: 229
A34: -0.775 | B34: -0.995 | C34: 0 | D34: 253
A35: -0.765 | B35: -0.995 | C35: 0 | D35: 265
A36: -0.755 | B36: -0.995 | C36: 0 | D36: 255
A37: -0.745 | B37: -0.995 | C37: 0 | D37: 236
A38: -0.735 | B38: -0.995 | C38: 0 | D38: 250
A39: -0.725 | B39: -0.995 | C39: 0 | D39: 258
A40: -0.715 | B40: -0.995 | C40: 0 | D40: 306
A41: -0.705 | B41: -0.995 | C41: 0 | D41: 255
A42: -0.695 | B42: -0.995 | C42: 0 | D42: 293
A43: -0.685 | B43: -0.995 | C43: 0 | D43: 280
A44: -0.675 | B44: -0.995 | C44: 0 | D44: 302
A45: -0.665 | B45: -0.995 | C45: 0 | D45: 294
A46: -0.655 | B46: -0.995 | C46: 0 | D46: 285
A47: -0.645 | B47: -0.995 | C47: 0 | D47: 277
A48: -0.635 | B48: -0.995 | C48: 0 | D48: 293
A49: -0.625 | B49: -0.995 | C49: 0 | D49: 291
A50: -0.615 | B50: -0.995 | C50: 0 | D50: 299
A51: -0.605 | B51: -0.995 | C51: 0 | D51: 328
A52: -0.595 | B52: -0.995 | C52: 0 | D52: 309
A53: -0.585 | B53: -0.995 | C53: 0 | D53: 288
A54: -0.575 | B54: -0.995 | C54: 0 | D54: 277
A55: -0.565 | B55: -0.995 | C55: 0 | D55: 319
A56: -0.555 | B56: -0.995 | C56: 0 | D56: 323
A57: -0.545 | B57: -0.995 | C57: 0 | D57: 261
A58: -0.535 | B58: -0.995 | C58: 0 | D58: 279
A59: -0.525 | B59: -0.995 | C59: 0 | D59: 299
A60: -0.515 | B60: -0.995 | C60: 0 | D60: 293
A61: -0.505 | B61: -0.995 | C61: 0 | D61: 311
A62: -0.495 | B62: -0.995 | C62: 0 | D62: 349
A63: -0.485 | B63: -0.995 | C63: 0 | D63: 308
A64: -0.475 | B64: -0.995 | C64: 0 | D64: 308
A65: -0.465 | B65: -0.995 | C65: 0 | D65: 308
A66: -0.455 | B66: -0.995 | C66: 0 | D66: 340
A67: -0.445 | B67: -0.995 | C67: 0 | D67: 314
A68: -0.435 | B68: -0.995 | C68: 0 | D68: 367
A69: -0.425 | B69: -0.995 | C69: 0 | D69: 344
A70: -0.415 | B70: -0.995 | C70: 0 | D70: 323
A71: -0.405 | B71: -0.995 | C71: 0 | D71: 329
A72: -0.395 | B72: -0.995 | C72: 0 | D72: 351
A73: -0.385 | B73: -0.995 | C73: 0 | D73: 357
A74: -0.375 | B74: -0.995 | C74: 0 | D74: 328
A75: -0.365 | B75: -0.995 | C75: 0 | D75: 338
A76: -0.355 | B76: -0.995 | C76: 0 | D76: 346
A77: -0.345 | B77: -0.995 | C77: 0 | D77: 355
A78: -0.335 | B78: -0.995 | C78: 0 | D78: 328
A79: -0.325 | B79: -0.995 | C79: 0 | D79: 331
A80: -0.315 | B80: -0.995 | C80: 0 | D80: 370
A81: -0.305 | B81: -0.995 | C81: 0 | D81: 375
A82: -0.295 | B82: -0.995 | C82: 0 | D82: 392
A83: -0.285 | B83: -0.995 | C83: 0 | D83: 319
A84: -0.275 | B84: -0.995 | C84: 0 | D84: 360
A85: -0.265 | B85: -0.995 | C85: 0 | D85: 360
A86: -0.255 | B86: -0.995 | C86: 0 | D86: 338
A87: -0.245 | B87: -0.995 | C87: 0 | D87: 407
A88: -0.235 | B88: -0.995 | C88: 0 | D88: 412
A89: -0.225 | B89: -0.995 | C89: 0 | D89: 357
A90: -0.215 | B90: -0.995 | C90: 0 | D90: 361
A91: -0.205 | B91: -0.995 | C91: 0 | D91: 358
A92: -0.195 | B92: -0.995 | C92: 0 | D92: 387
A93: -0.185 | B93: -0.995 | C93: 0 | D93: 404
A94: -0.175 | B94: -0.995 | C94: 0 | D94: 355
A95: -0.165 | B95: -0.995 | C95: 0 | D95: 351
A96: -0.155 | B96: -0.995 | C96: 0 | D96: 418
A97: -0.145 | B97: -0.995 | C97: 0 | D97: 366
A98: -0.135 | B98: -0.995 | C98: 0 | D98: 319
A99: -0.125 | B99: -0.995 | C99: 0 | D99: 361
A100: -0.115 | B100: -0.995 | C100: 0 | D100: 381
A101: -0.105 | B101: -0.995 | C101: 0 | D101: 360
A102: -0.095 | B102: -0.995 | C102: 0 | D102: 367
A103: -0.085 | B103: -0.995 | C103: 0 | D103: 408
A104: -0.075 | B104: -0.995 | C104: 0 | D104: 351
A105: -0.065 | B105: -0.995 | C105: 0 | D105: 351
A106: -0.055 | B106: -0.995 | C106: 0 | D106: 434
A107: -0.045 | B107: -0.995 | C107: 0 | D107: 379
A108: -0.035 | B108: -0.995 | C108: 0 | D108: 415
A109: -0.025 | B109: -0.995 | C109: 0 | D109: 380
A110: -0.015 | B110: -0.995 | C110: 0 | D110: 408
A111: -0.005 | B111: -0.995 | C111: 0 | D111: 338
A112: 0.005 | B112: -0.995 | C112: 0 | D112: 418
A113: 0.015 | B113: -0.995 | C113: 0 | D113: 402
A114: 0.025 | B114: -0.995 | C114: 0 | D114: 422
A115: 0.035 | B115: -0.995 | C115: 0 | D115: 387
A116: 0.045 | B116: -0.995 | C116: 0 | D116: 407
A117: 0.055 | B117: -0.995 | C117: 0 | D117: 395
A118: 0.065 | B118: -0.995 | C118: 0 | D118: 393
A119: 0.075 | B119: -0.995 | C119: 0 | D119: 421
A120: 0.085 | B120: -0.995 | C120: 0 | D120: 393
A121: 0.095 | B121: -0.995 | C121: 0 | D121: 398
A122: 0.105 | B122: -0.995 | C122: 0 | D122: 393
A123: 0.115 | B123: -0.995 | C123: 0 | D123: 340
A124: 0.125 | B124: -0.995 | C124: 0 | D124: 370
A125: 0.135 | B125: -0.995 | C125: 0 | D125: 396
A126: 0.145 | B126: -0.995 | C126: 0 | D126: 332
A127: 0.155 | B127: -0.995 | C127: 0 | D127: 360
A128: 0.165 | B128: -0.995 | C128: 0 | D128: 363
A129: 0.175 | B129: -0.995 | C129: 0 | D129: 381
A130: 0.185 | B130: -0.995 | C130: 0 | D130: 453
A131: 0.195 | B131: -0.995 | C131: 0 | D131: 378
A132: 0.205 | B132: -0.995 | C132: 0 | D132: 382
A133: 0.215 | B133: -0.995 | C133: 0 | D133: 369
A134: 0.225 | B134: -0.995 | C134: 0 | D134: 376
A135: 0.235 | B135: -0.995 | C135: 0 | D135: 419
A136: 0.245 | B136: -0.995 | C136: 0 | D136: 373
A137: 0.255 | B137: -0.995 | C137: 0 | D137: 379
A138: 0.265 | B138: -0.995 | C138: 0 | D138: 376
A139: 0.275 | B139: -0.995 | C139: 0 | D139: 386
A140: 0.285 | B140: -0.995 | C140: 0 | D140: 396
A141: 0.295 | B141: -0.995 | C141: 0 | D141: 367
A142: 0.305 | B142: -0.995 | C142: 0 | D142: 386
A143: 0.315 | B143: -0.995 | C143: 0 | D143: 373
A144: 0.325 | B144: -0.995 | C144: 0 | D144: 306
A145: 0.335 | B145: -0.995 | C145: 0 | D145: 349
A146: 0.345 | B146: -0.995 | C146: 0 | D146: 399
A147: 0.355 | B147: -0.995 | C147: 0 | D147: 357
A148: 0.365 | B148: -0.995 | C148: 0 | D148: 402
A149: 0.375 | B149: -0.995 | C149: 0 | D149: 390
A150: 0.385 | B150: -0.995 | C150: 0 | D150: 355
A151: 0.395 | B151: -0.995 | C151: 0 | D151: 338
A152: 0.405 | B152: -0.995 | C152: 0 | D152: 363
A153: 0.415 | B153: -0.995 | C153: 0 | D153: 340
A154: 0.425 | B154: -0.995 | C154: 0 | D154: 373
A155: 0.435 | B155: -0.995 | C155: 0 | D155: 355
A156: 0.445 | B156: -0.995 | C156: 0 | D156: 300
A157: 0.455 | B157: -0.995 | C157: 0 | D157: 341
A158: 0.465 | B158: -0.995 | C158: 0 | D158: 355
A159: 0.475 | B159: -0.995 | C159: 0 | D159: 352
A160: 0.485 | B160: -0.995 | C160: 0 | D160: 338
A161: 0.495 | B161: -0.995 | C161: 0 | D161: 309
A162: 0.505 | B162: -0.995 | C162: 0 | D162: 312
A163: 0.515 | B163: -0.995 | C163: 0 | D163: 338
A164: 0.525 | B164: -0.995 | C164: 0 | D164: 340
A165: 0.535 | B165: -0.995 | C165: 0 | D165: 329
A166: 0.545 | B166: -0.995 | C166: 0 | D166: 308
A167: 0.555 | B167: -0.995 | C167: 0 | D167: 308
A168: 0.565 | B168: -0.995 | C168: 0 | D168: 318
A169: 0.575 | B169: -0.995 | C169: 0 | D169: 280
A170: 0.585 | B170: -0.995 | C170: 0 | D170: 271
A171: 0.595 | B171: -0.995 | C171: 0 | D171: 280
A172: 0.605 | B172: -0.995 | C172: 0 | D172: 314
A173: 0.615 | B173: -0.995 | C173: 0 | D173: 267
A174: 0.625 | B174: -0.995 | C174: 0 | D174: 311
A175: 0.635 | B175: -0.995 | C175: 0 | D175: 300
A176: 0.645 | B176: -0.995 | C176: 0 | D176: 306
A177: 0.655 | B177: -0.995 | C177: 0 | D177: 300
A178: 0.665 | B178: -0.995 | C178: 0 | D178: 296
A179: 0.675 | B179: -0.995 | C179: 0 | D179: 315
A180: 0.685 | B180: -0.995 | C180: 0 | D180: 244
A181: 0.695 | B181: -0.995 | C181: 0 | D181: 248
A182: 0.705 | B182: -0.995 | C182: 0 | D182: 264
A183: 0.715 | B183: -0.995 | C183: 0 | D183: 267
A184: 0.725 | B184: -0.995 | C184: 0 | D184: 239
A185: 0.735 | B185: -0.995 | C185: 0 | D185: 250
A186: 0.745 | B186: -0.995 | C186: 0 | D186: 277
A187: 0.755 | B187: -0.995 | C187: 0 | D187: 286
A188: 0.765 | B188: -0.995 | C188: 0 | D188: 285
A189: 0.775 | B189: -0.995 | C189: 0 | D189: 264
A190: 0.785 | B190: -0.995 | C190: 0 | D190: 241
A191: 0.795 | B191: -0.995 | C191: 0 | D191: 262
A192: 0.805 | B192: -0.995 | C192: 0 | D192: 288
A193: 0.815 | B193: -0.995 | C193: 0 | D193: 268
A194: 0.825 | B194: -0.995 | C194: 0 | D194: 245
A195: 0.835 | B195: -0.995 | C195: 0 | D195: 262
A196: 0.845 | B196: -0.995 | C196: 0 | D196: 238
A197: 0.855 | B197: -0.995 | C197: 0 | D197: 207
A198: 0.865 | B198: -0.995 | C198: 0 | D198: 193
A199: 0.875 | B199: -0.995 | C199: 0 | D199: 259
A200: 0.885 | B200: -0.995 | C200: 0 | D200: 207
... 4300 more rows

Sheet Points.16_Desv.0.1
A1: # Concentration distribution on receiver: rec_CPV_SolarX Reference Heliostat Field
A2: # ratio | B2: 1 | H2: Electric power
A3: # aiming_points | B3: 16 | H3: Cells/module | I3: 5 | J3: 10 | K3: 25 | L3: 50 | M3: 4 | N3: 5 | O3: 10 | P3: 20 | Q3: 5 | R3: 25 | S3: 2 | T3: 4 | U3: 5 | V3: 10 | W3: 20
A4: # combined std dev. | B4: 0.1 | H4: Modules/subconjunto | I4: 200 | J4: 200 | K4: 200 | L4: 200 | M4: 250 | N4: 250 | O4: 250 | P4: 250 | Q4: 400 | R4: 400 | S4: 500 | T4: 500 | U4: 500 | V4: 500 | W4: 500
A5: # optical_eff | B5: 0.5473 | H5: Subconjunto/subreceivers | I5: 10 | J5: 5 | K5: 2 | L5: 1 | M5: 10 | N5: 8 | O5: 4 | P5: 2 | Q5: 5 | R5: 1 | S5: 10 | T5: 5 | U5: 4 | V5: 2 | W5: 1
A6: # standard_deviation | B6: 0.1 | H6: Power/subreceiver 1 | I6: 199863.9661 | J6: 199623.149 | K6: 197214.5296 | L6: 192777.6438 | M6: 200229.9276 | N6: 200202.7392 | O6: 200167.0693 | P6: 199013.2767 | Q6: 199355.9559 | R6: 192825.3044 | S6: 198756.7553 | T6: 199348.8278 | U6: 199156.234 | V6: 197078.2984 | W6: 192868.1908
A7: # spillage | B7: 0.2998 | E7: Excel calculations | F7: Matlab calculations | H7: Power/subreceiver 2 | I7: 198776.4347 | J7: 198685.9623 | K7: 196143.6143 | L7: 191696.7962 | M7: 198558.6735 | N7: 198309.9474 | O7: 197488.2285 | P7: 194168.5839 | Q7: 198346.7999 | R7: 191669.7708 | S7: 197767.8242 | T7: 198342.4535 | U7: 198106.8363 | V7: 195989.3713 | W7: 191669.8593
A8: # avg_concentration | B8: 547 | D8: Avg_concentration mesur. | E8: =MEDIAN(D12:D40011) -> 548.859 | F8: 547.2513948 | H8: Power/subreceiver 3 | I8: 197588.2644 | J8: 197455.637 | K8: 195012.2945 | L8: 189879.9516 | M8: 197377.9993 | N8: 197234.1137 | O8: 196075.421 | P8: 193024.7805 | Q8: 197043.1659 | R8: 189955.3326 | S8: 196457.249 | T8: 196980.4894 | U8: 196730.3675 | V8: 194729.3361 | W8: 189963.2949
A9: # std_concentration | B9: 145 | D9: Std_concentration | F9: 144.9495811 | H9: Power/subreceiver 4 | I9: 198876.5075 | J9: 198775.3285 | K9: 196100.4129 | L9: 191368.9759 | M9: 199255.4599 | N9: 199219.0482 | O9: 199306.1483 | P9: 197740.0973 | Q9: 198364.1829 | R9: 191422.5444 | S9: 197799.561 | T9: 198432.6757 | U9: 198124.3236 | V9: 195877.5818 | W9: 191451.8931
A10: # sun_zen=22, sun_azm=0 | D10: Concent. Max | E10: =MAX(D12:D40011) -> 903.713 | F10: 903.713 | H10: Total recevier power | I10: 795105.1727 | J10: 794540.0768 | K10: 784470.8514 | L10: 765723.3675 | M10: 795422.0603 | N10: 794965.8485 | O10: 793036.867 | P10: 783946.7384 | Q10: 793110.1046 | R10: 765872.9522 | S10: 790781.3895 | T10: 793104.4464 | U10: 792117.7613 | V10: 783674.5877 | W10: 765953.238
A11: x[m] | B11: y[m] | C11: z[m] | D11: concentration[-] | H11: Receiver efficiency | I11: =I10/($B$8*1000*4) -> 0.3632266508 | J11: =J10/($B$8*1000*4) -> 0.3629684989 | K11: =K10/($B$8*1000*4) -> 0.3583685905 | L11: 0.3498042068 | M11: 0.3633714141 | N11: 0.3631630036 | O11: 0.36228179 | P11: 0.3581291607 | Q11: 0.362315247 | R11: 0.3498725413 | S11: 0.3612514237 | T11: 0.3623126622 | U11: 0.3618619164 | V11: 0.3580048346 | W11: 0.3499092182
A12: -0.995 | B12: -0.995 | C12: 0 | D12: 195 | H12: Concentrated irradiance-to-electric efficiency | I12: =I10*100/($I$17) -> 25.43313009 | J12: =J10*100/($I$17) -> 25.4150543 | K12: 25.09296871 | L12: 24.49329056 | M12: 25.44326641 | N12: 25.42867351 | O12: 25.36697093 | P12: 25.07620383 | Q12: 25.36931359 | R12: 24.49807534 | S12: 25.29482469 | T12: 25.3691326 | U12: 25.33757138 | V12: 25.06749852 | W12: 24.50064346
A13: -0.985 | B13: -0.995 | C13: 0 | D13: 210 | H13: Solar field-to-electric efficiency | I13: =$B$5*I12 -> 13.9195521 | J13: =$B$5*J12 -> 13.90965922 | K13: 13.73338177 | L13: 13.40517792 | M13: 13.92509971 | N13: 13.91711301 | O13: 13.88334319 | P13: 13.72420636 | Q13: 13.88462533 | R13: 13.40779663 | S13: 13.84385755 | T13: 13.88452627 | U13: 13.86725282 | V13: 13.71944194 | W13: 13.40920216
A14: -0.975 | B14: -0.995 | C14: 0 | D14: 186 | H14: Perfil iluminación
A15: -0.965 | B15: -0.995 | C15: 0 | D15: 209 | H15: Desviacion estándar entre mòdulos [suns] | I15: 137.8316037 | J15: 137.6679711 | K15: 138.1972114 | L15: 128.6160931 | M15: 137.2274227 | N15: 137.100614 | O15: 136.2276761 | P15: 139.1165916 | Q15: 138.3659936 | R15: 138.2903728 | S15: 138.8522076 | T15: 138.5577504 | U15: 138.7105149 | V15: 140.7109388 | W15: 139.1922833
A16: -0.955 | B16: -0.995 | C16: 0 | D16: 219
A17: -0.945 | B17: -0.995 | C17: 0 | D17: 213 | H17: Irradiación total | I17: =B8*4*1000/(1-B7) -> 3126257.641
A18: -0.935 | B18: -0.995 | C18: 0 | D18: 201
A19: -0.925 | B19: -0.995 | C19: 0 | D19: 213
A20: -0.915 | B20: -0.995 | C20: 0 | D20: 222
A21: -0.905 | B21: -0.995 | C21: 0 | D21: 193
A22: -0.895 | B22: -0.995 | C22: 0 | D22: 228
A23: -0.885 | B23: -0.995 | C23: 0 | D23: 224
A24: -0.875 | B24: -0.995 | C24: 0 | D24: 245
A25: -0.865 | B25: -0.995 | C25: 0 | D25: 233
A26: -0.855 | B26: -0.995 | C26: 0 | D26: 238
A27: -0.845 | B27: -0.995 | C27: 0 | D27: 233
A28: -0.835 | B28: -0.995 | C28: 0 | D28: 245
A29: -0.825 | B29: -0.995 | C29: 0 | D29: 248
A30: -0.815 | B30: -0.995 | C30: 0 | D30: 238
A31: -0.805 | B31: -0.995 | C31: 0 | D31: 262
A32: -0.795 | B32: -0.995 | C32: 0 | D32: 290
A33: -0.785 | B33: -0.995 | C33: 0 | D33: 271
A34: -0.775 | B34: -0.995 | C34: 0 | D34: 274
A35: -0.765 | B35: -0.995 | C35: 0 | D35: 271
A36: -0.755 | B36: -0.995 | C36: 0 | D36: 292
A37: -0.745 | B37: -0.995 | C37: 0 | D37: 265
A38: -0.735 | B38: -0.995 | C38: 0 | D38: 270
A39: -0.725 | B39: -0.995 | C39: 0 | D39: 271
A40: -0.715 | B40: -0.995 | C40: 0 | D40: 291
A41: -0.705 | B41: -0.995 | C41: 0 | D41: 271
A42: -0.695 | B42: -0.995 | C42: 0 | D42: 295
A43: -0.685 | B43: -0.995 | C43: 0 | D43: 320
A44: -0.675 | B44: -0.995 | C44: 0 | D44: 340
A45: -0.665 | B45: -0.995 | C45: 0 | D45: 334
A46: -0.655 | B46: -0.995 | C46: 0 | D46: 315
A47: -0.645 | B47: -0.995 | C47: 0 | D47: 294
A48: -0.635 | B48: -0.995 | C48: 0 | D48: 331
A49: -0.625 | B49: -0.995 | C49: 0 | D49: 334
A50: -0.615 | B50: -0.995 | C50: 0 | D50: 346
A51: -0.605 | B51: -0.995 | C51: 0 | D51: 346
A52: -0.595 | B52: -0.995 | C52: 0 | D52: 282
A53: -0.585 | B53: -0.995 | C53: 0 | D53: 321
A54: -0.575 | B54: -0.995 | C54: 0 | D54: 355
A55: -0.565 | B55: -0.995 | C55: 0 | D55: 341
A56: -0.555 | B56: -0.995 | C56: 0 | D56: 341
A57: -0.545 | B57: -0.995 | C57: 0 | D57: 358
A58: -0.535 | B58: -0.995 | C58: 0 | D58: 329
A59: -0.525 | B59: -0.995 | C59: 0 | D59: 356
A60: -0.515 | B60: -0.995 | C60: 0 | D60: 350
A61: -0.505 | B61: -0.995 | C61: 0 | D61: 344
A62: -0.495 | B62: -0.995 | C62: 0 | D62: 363
A63: -0.485 | B63: -0.995 | C63: 0 | D63: 321
A64: -0.475 | B64: -0.995 | C64: 0 | D64: 325
A65: -0.465 | B65: -0.995 | C65: 0 | D65: 369
A66: -0.455 | B66: -0.995 | C66: 0 | D66: 382
A67: -0.445 | B67: -0.995 | C67: 0 | D67: 347
A68: -0.435 | B68: -0.995 | C68: 0 | D68: 317
A69: -0.425 | B69: -0.995 | C69: 0 | D69: 353
A70: -0.415 | B70: -0.995 | C70: 0 | D70: 324
A71: -0.405 | B71: -0.995 | C71: 0 | D71: 335
A72: -0.395 | B72: -0.995 | C72: 0 | D72: 326
A73: -0.385 | B73: -0.995 | C73: 0 | D73: 355
A74: -0.375 | B74: -0.995 | C74: 0 | D74: 359
A75: -0.365 | B75: -0.995 | C75: 0 | D75: 355
A76: -0.355 | B76: -0.995 | C76: 0 | D76: 382
A77: -0.345 | B77: -0.995 | C77: 0 | D77: 390
A78: -0.335 | B78: -0.995 | C78: 0 | D78: 341
A79: -0.325 | B79: -0.995 | C79: 0 | D79: 353
A80: -0.315 | B80: -0.995 | C80: 0 | D80: 358
A81: -0.305 | B81: -0.995 | C81: 0 | D81: 347
A82: -0.295 | B82: -0.995 | C82: 0 | D82: 360
A83: -0.285 | B83: -0.995 | C83: 0 | D83: 378
A84: -0.275 | B84: -0.995 | C84: 0 | D84: 359
A85: -0.265 | B85: -0.995 | C85: 0 | D85: 331
A86: -0.255 | B86: -0.995 | C86: 0 | D86: 376
A87: -0.245 | B87: -0.995 | C87: 0 | D87: 347
A88: -0.235 | B88: -0.995 | C88: 0 | D88: 366
A89: -0.225 | B89: -0.995 | C89: 0 | D89: 358
A90: -0.215 | B90: -0.995 | C90: 0 | D90: 332
A91: -0.205 | B91: -0.995 | C91: 0 | D91: 347
A92: -0.195 | B92: -0.995 | C92: 0 | D92: 379
A93: -0.185 | B93: -0.995 | C93: 0 | D93: 375
A94: -0.175 | B94: -0.995 | C94: 0 | D94: 395
A95: -0.165 | B95: -0.995 | C95: 0 | D95: 382
A96: -0.155 | B96: -0.995 | C96: 0 | D96: 421
A97: -0.145 | B97: -0.995 | C97: 0 | D97: 367
A98: -0.135 | B98: -0.995 | C98: 0 | D98: 459
A99: -0.125 | B99: -0.995 | C99: 0 | D99: 395
A100: -0.115 | B100: -0.995 | C100: 0 | D100: 378
A101: -0.105 | B101: -0.995 | C101: 0 | D101: 390
A102: -0.095 | B102: -0.995 | C102: 0 | D102: 382
A103: -0.085 | B103: -0.995 | C103: 0 | D103: 402
A104: -0.075 | B104: -0.995 | C104: 0 | D104: 407
A105: -0.065 | B105: -0.995 | C105: 0 | D105: 382
A106: -0.055 | B106: -0.995 | C106: 0 | D106: 420
A107: -0.045 | B107: -0.995 | C107: 0 | D107: 354
A108: -0.035 | B108: -0.995 | C108: 0 | D108: 390
A109: -0.025 | B109: -0.995 | C109: 0 | D109: 384
A110: -0.015 | B110: -0.995 | C110: 0 | D110: 398
A111: -0.005 | B111: -0.995 | C111: 0 | D111: 384
A112: 0.005 | B112: -0.995 | C112: 0 | D112: 379
A113: 0.015 | B113: -0.995 | C113: 0 | D113: 404
A114: 0.025 | B114: -0.995 | C114: 0 | D114: 369
A115: 0.035 | B115: -0.995 | C115: 0 | D115: 396
A116: 0.045 | B116: -0.995 | C116: 0 | D116: 399
A117: 0.055 | B117: -0.995 | C117: 0 | D117: 337
A118: 0.065 | B118: -0.995 | C118: 0 | D118: 378
A119: 0.075 | B119: -0.995 | C119: 0 | D119: 376
A120: 0.085 | B120: -0.995 | C120: 0 | D120: 366
A121: 0.095 | B121: -0.995 | C121: 0 | D121: 343
A122: 0.105 | B122: -0.995 | C122: 0 | D122: 384
A123: 0.115 | B123: -0.995 | C123: 0 | D123: 358
A124: 0.125 | B124: -0.995 | C124: 0 | D124: 381
A125: 0.135 | B125: -0.995 | C125: 0 | D125: 373
A126: 0.145 | B126: -0.995 | C126: 0 | D126: 381
A127: 0.155 | B127: -0.995 | C127: 0 | D127: 392
A128: 0.165 | B128: -0.995 | C128: 0 | D128: 369
A129: 0.175 | B129: -0.995 | C129: 0 | D129: 366
A130: 0.185 | B130: -0.995 | C130: 0 | D130: 401
A131: 0.195 | B131: -0.995 | C131: 0 | D131: 378
A132: 0.205 | B132: -0.995 | C132: 0 | D132: 456
A133: 0.215 | B133: -0.995 | C133: 0 | D133: 390
A134: 0.225 | B134: -0.995 | C134: 0 | D134: 334
A135: 0.235 | B135: -0.995 | C135: 0 | D135: 405
A136: 0.245 | B136: -0.995 | C136: 0 | D136: 354
A137: 0.255 | B137: -0.995 | C137: 0 | D137: 389
A138: 0.265 | B138: -0.995 | C138: 0 | D138: 372
A139: 0.275 | B139: -0.995 | C139: 0 | D139: 399
A140: 0.285 | B140: -0.995 | C140: 0 | D140: 308
A141: 0.295 | B141: -0.995 | C141: 0 | D141: 370
A142: 0.305 | B142: -0.995 | C142: 0 | D142: 378
A143: 0.315 | B143: -0.995 | C143: 0 | D143: 396
A144: 0.325 | B144: -0.995 | C144: 0 | D144: 341
A145: 0.335 | B145: -0.995 | C145: 0 | D145: 364
A146: 0.345 | B146: -0.995 | C146: 0 | D146: 372
A147: 0.355 | B147: -0.995 | C147: 0 | D147: 360
A148: 0.365 | B148: -0.995 | C148: 0 | D148: 366
A149: 0.375 | B149: -0.995 | C149: 0 | D149: 325
A150: 0.385 | B150: -0.995 | C150: 0 | D150: 351
A151: 0.395 | B151: -0.995 | C151: 0 | D151: 369
A152: 0.405 | B152: -0.995 | C152: 0 | D152: 323
A153: 0.415 | B153: -0.995 | C153: 0 | D153: 303
A154: 0.425 | B154: -0.995 | C154: 0 | D154: 346
A155: 0.435 | B155: -0.995 | C155: 0 | D155: 334
A156: 0.445 | B156: -0.995 | C156: 0 | D156: 279
A157: 0.455 | B157: -0.995 | C157: 0 | D157: 374
A158: 0.465 | B158: -0.995 | C158: 0 | D158: 351
A159: 0.475 | B159: -0.995 | C159: 0 | D159: 369
A160: 0.485 | B160: -0.995 | C160: 0 | D160: 305
A161: 0.495 | B161: -0.995 | C161: 0 | D161: 335
A162: 0.505 | B162: -0.995 | C162: 0 | D162: 357
A163: 0.515 | B163: -0.995 | C163: 0 | D163: 349
A164: 0.525 | B164: -0.995 | C164: 0 | D164: 314
A165: 0.535 | B165: -0.995 | C165: 0 | D165: 343
A166: 0.545 | B166: -0.995 | C166: 0 | D166: 328
A167: 0.555 | B167: -0.995 | C167: 0 | D167: 329
A168: 0.565 | B168: -0.995 | C168: 0 | D168: 319
A169: 0.575 | B169: -0.995 | C169: 0 | D169: 329
A170: 0.585 | B170: -0.995 | C170: 0 | D170: 328
A171: 0.595 | B171: -0.995 | C171: 0 | D171: 355
A172: 0.605 | B172: -0.995 | C172: 0 | D172: 332
A173: 0.615 | B173: -0.995 | C173: 0 | D173: 322
A174: 0.625 | B174: -0.995 | C174: 0 | D174: 285
A175: 0.635 | B175: -0.995 | C175: 0 | D175: 290
A176: 0.645 | B176: -0.995 | C176: 0 | D176: 277
A177: 0.655 | B177: -0.995 | C177: 0 | D177: 338
A178: 0.665 | B178: -0.995 | C178: 0 | D178: 277
A179: 0.675 | B179: -0.995 | C179: 0 | D179: 311
A180: 0.685 | B180: -0.995 | C180: 0 | D180: 328
A181: 0.695 | B181: -0.995 | C181: 0 | D181: 299
A182: 0.705 | B182: -0.995 | C182: 0 | D182: 337
A183: 0.715 | B183: -0.995 | C183: 0 | D183: 284
A184: 0.725 | B184: -0.995 | C184: 0 | D184: 322
A185: 0.735 | B185: -0.995 | C185: 0 | D185: 284
A186: 0.745 | B186: -0.995 | C186: 0 | D186: 297
A187: 0.755 | B187: -0.995 | C187: 0 | D187: 251
A188: 0.765 | B188: -0.995 | C188: 0 | D188: 261
A189: 0.775 | B189: -0.995 | C189: 0 | D189: 262
A190: 0.785 | B190: -0.995 | C190: 0 | D190: 253
A191: 0.795 | B191: -0.995 | C191: 0 | D191: 276
A192: 0.805 | B192: -0.995 | C192: 0 | D192: 281
A193: 0.815 | B193: -0.995 | C193: 0 | D193: 267
A194: 0.825 | B194: -0.995 | C194: 0 | D194: 235
A195: 0.835 | B195: -0.995 | C195: 0 | D195: 226
A196: 0.845 | B196: -0.995 | C196: 0 | D196: 227
A197: 0.855 | B197: -0.995 | C197: 0 | D197: 251
A198: 0.865 | B198: -0.995 | C198: 0 | D198: 217
A199: 0.875 | B199: -0.995 | C199: 0 | D199: 232
A200: 0.885 | B200: -0.995 | C200: 0 | D200: 226
... 4300 more rows

Sheet Points.16_Desv.0.2
A1: # Concentration distribution on receiver: rec_CPV_SolarX Reference Heliostat Field
A2: # ratio | B2: 1 | H2: Electric power
A3: # aiming_points | B3: 16 | H3: Cells/module | I3: 5 | J3: 10 | K3: 25 | L3: 50 | M3: 4 | N3: 5 | O3: 10 | P3: 20 | Q3: 5 | R3: 25 | S3: 2 | T3: 4 | U3: 5 | V3: 10 | W3: 20
A4: # combined std dev. | B4: 0.2 | H4: Modules/subconjunto | I4: 200 | J4: 200 | K4: 200 | L4: 200 | M4: 250 | N4: 250 | O4: 250 | P4: 250 | Q4: 400 | R4: 400 | S4: 500 | T4: 500 | U4: 500 | V4: 500 | W4: 500
A5: # optical_eff | B5: 0.5344 | H5: Subconjunto/subreceivers | I5: 10 | J5: 5 | K5: 2 | L5: 1 | M5: 10 | N5: 8 | O5: 4 | P5: 2 | Q5: 5 | R5: 1 | S5: 10 | T5: 5 | U5: 4 | V5: 2 | W5: 1
A6: # standard_deviation | B6: 0.2 | H6: Power/subreceiver 1 | I6: 196419.3628 | J6: 196259.0549 | K6: 194243.0778 | L6: 188832.8987 | M6: 196811.0161 | N6: 196606.6053 | O6: 196800.665 | P6: 195669.671 | Q6: 195843.0561 | R6: 189011.4577 | S6: 195321.7864 | T6: 212900.6065 | U6: 195606.061 | V6: 193970.3246 | W6: 189036.8774
A7: # spillage | B7: 0.3163 | E7: Excel calculations | F7: Matlab calculations | H7: Power/subreceiver 2 | I7: 191872.8217 | J7: 191763.9995 | K7: 189794.3663 | L7: 184147.5295 | M7: 191697.9037 | N7: 191496.3347 | O7: 190485.245 | P7: 187628.5112 | Q7: 191323.8009 | R7: 184338.5139 | S7: 190765.2136 | T7: 191394.3983 | U7: 191053.6284 | V7: 189527.5681 | W7: 184370.7973
A8: # avg_concentration | B8: 534 | D8: Avg_concentration mesur. | E8: 531.903 | F8: 534.3730289 | H8: Power/subreceiver 3 | I8: 194467.3332 | J8: 194323.9727 | K8: 192384.6424 | L8: 186870.2471 | M8: 194279.7601 | N8: 194188.8097 | O8: 192984.0678 | P8: 190075.8658 | Q8: 193890.6232 | R8: 186722.9916 | S8: 204601.1868 | T8: 193904.626 | U8: 193739.9973 | V8: 192066.2312 | W8: 186713.0554
A9: # std_concentration | B9: 145 | D9: Std_concentration | F9: 145.2609028 | H9: Power/subreceiver 4 | I9: 195430.0057 | J9: 195234.5983 | K9: 193131.9161 | L9: 187633.881 | M9: 195692.718 | N9: 195664.3187 | O9: 195669.0939 | P9: 194535.4266 | Q9: 194855.0086 | R9: 187870.6492 | S9: 198586.1168 | T9: 194810.4561 | U9: 194520.4032 | V9: 192755.2883 | W9: 187899.8932
A10: # sun_zen=22, sun_azm=0 | D10: Concent. Max | E10: 889.938 | F10: 889.938 | H10: Total recevier power | I10: 778189.5234 | J10: 777581.6253 | K10: 769554.0026 | L10: 747484.5563 | M10: 778481.3979 | N10: 777956.0685 | O10: 775939.0717 | P10: 767909.4746 | Q10: 775912.4888 | R10: 747943.6124 | S10: 789274.3036 | T10: 793010.0869 | U10: 774920.0899 | V10: 768319.4122 | W10: 748020.6234
A11: x[m] | B11: y[m] | C11: z[m] | D11: concentration[-] | H11: Receiver efficiency | I11: =I10/($B$8*1000*4) -> 0.3640666367 | J11: =J10/($B$8*1000*4) -> 0.3637822389 | K11: =K10/($B$8*1000*4) -> 0.3600266118 | L11: 0.349701686 | M11: 0.3642031867 | N11: 0.3639574176 | O11: 0.3630137898 | P11: 0.3592572391 | Q11: 0.3630013534 | R11: 0.3499164499 | S11: 0.3692525182 | T11: 0.3710002596 | U11: 0.3625370714 | V11: 0.3594490235 | W11: 0.3499524786
A12: -0.995 | B12: -0.995 | C12: 0 | D12: 201 | H12: Concentrated irradiance-to-electric efficiency | I12: =I10*100/($I$17) -> 24.89123595 | J12: =J10*100/($I$17) -> 24.87179167 | K12: 24.61501945 | L12: 23.90910427 | M12: 24.90057187 | N12: 24.88376864 | O12: 24.81925281 | P12: 24.56241744 | Q12: 24.81840253 | R12: 23.92378768 | S12: 25.24579467 | T12: 25.36528775 | U12: 24.78665957 | V12: 24.57552974 | W12: 23.92625096
A13: -0.985 | B13: -0.995 | C13: 0 | D13: 216 | H13: Solar field-to-electric efficiency | I13: =$B$5*I12 -> 13.30187649 | J13: =$B$5*J12 -> 13.29148547 | K13: 13.15426639 | L13: 12.77702532 | M13: 13.30686561 | N13: 13.29788596 | O13: 13.2634087 | P13: 13.12615588 | Q13: 13.26295431 | R13: 12.78487214 | S13: 13.49135267 | T13: 13.55520977 | U13: 13.24599088 | V13: 13.13316309 | W13: 12.78618851
A14: -0.975 | B14: -0.995 | C14: 0 | D14: 180 | H14: Perfil iluminación
A15: -0.965 | B15: -0.995 | C15: 0 | D15: 190 | H15: Desviacion estándar entre mòdulos [suns] | I15: 140.9817051 | J15: 140.8382124 | K15: 140.7920517 | L15: 132.6610178 | M15: 140.3985454 | N15: 140.2377392 | O15: 139.3871055 | P15: 141.8142201 | Q15: 141.5377297 | R15: 141.1529751 | S15: 142.0026937 | T15: 141.7485433 | U15: 141.8780853 | V15: 143.395922 | W15: 142.1211993
A16: -0.955 | B16: -0.995 | C16: 0 | D16: 232
A17: -0.945 | B17: -0.995 | C17: 0 | D17: 203 | H17: Irradiación total | I17: =B8*4*1000/(1-B7) -> 3126359.514
A18: -0.935 | B18: -0.995 | C18: 0 | D18: 218
A19: -0.925 | B19: -0.995 | C19: 0 | D19: 192
A20: -0.915 | B20: -0.995 | C20: 0 | D20: 216
A21: -0.905 | B21: -0.995 | C21: 0 | D21: 227
A22: -0.895 | B22: -0.995 | C22: 0 | D22: 209
A23: -0.885 | B23: -0.995 | C23: 0 | D23: 229
A24: -0.875 | B24: -0.995 | C24: 0 | D24: 251
A25: -0.865 | B25: -0.995 | C25: 0 | D25: 250
A26: -0.855 | B26: -0.995 | C26: 0 | D26: 253
A27: -0.845 | B27: -0.995 | C27: 0 | D27: 236
A28: -0.835 | B28: -0.995 | C28: 0 | D28: 213
A29: -0.825 | B29: -0.995 | C29: 0 | D29: 230
A30: -0.815 | B30: -0.995 | C30: 0 | D30: 207
A31: -0.805 | B31: -0.995 | C31: 0 | D31: 274
A32: -0.795 | B32: -0.995 | C32: 0 | D32: 262
A33: -0.785 | B33: -0.995 | C33: 0 | D33: 247
A34: -0.775 | B34: -0.995 | C34: 0 | D34: 293
A35: -0.765 | B35: -0.995 | C35: 0 | D35: 279
A36: -0.755 | B36: -0.995 | C36: 0 | D36: 293
A37: -0.745 | B37: -0.995 | C37: 0 | D37: 271
A38: -0.735 | B38: -0.995 | C38: 0 | D38: 257
A39: -0.725 | B39: -0.995 | C39: 0 | D39: 305
A40: -0.715 | B40: -0.995 | C40: 0 | D40: 297
A41: -0.705 | B41: -0.995 | C41: 0 | D41: 285
A42: -0.695 | B42: -0.995 | C42: 0 | D42: 261
A43: -0.685 | B43: -0.995 | C43: 0 | D43: 299
A44: -0.675 | B44: -0.995 | C44: 0 | D44: 279
A45: -0.665 | B45: -0.995 | C45: 0 | D45: 311
A46: -0.655 | B46: -0.995 | C46: 0 | D46: 276
A47: -0.645 | B47: -0.995 | C47: 0 | D47: 315
A48: -0.635 | B48: -0.995 | C48: 0 | D48: 276
A49: -0.625 | B49: -0.995 | C49: 0 | D49: 329
A50: -0.615 | B50: -0.995 | C50: 0 | D50: 312
A51: -0.605 | B51: -0.995 | C51: 0 | D51: 300
A52: -0.595 | B52: -0.995 | C52: 0 | D52: 293
A53: -0.585 | B53: -0.995 | C53: 0 | D53: 314
A54: -0.575 | B54: -0.995 | C54: 0 | D54: 337
A55: -0.565 | B55: -0.995 | C55: 0 | D55: 337
A56: -0.555 | B56: -0.995 | C56: 0 | D56: 305
A57: -0.545 | B57: -0.995 | C57: 0 | D57: 319
A58: -0.535 | B58: -0.995 | C58: 0 | D58: 335
A59: -0.525 | B59: -0.995 | C59: 0 | D59: 376
A60: -0.515 | B60: -0.995 | C60: 0 | D60: 303
A61: -0.505 | B61: -0.995 | C61: 0 | D61: 331
A62: -0.495 | B62: -0.995 | C62: 0 | D62: 294
A63: -0.485 | B63: -0.995 | C63: 0 | D63: 329
A64: -0.475 | B64: -0.995 | C64: 0 | D64: 312
A65: -0.465 | B65: -0.995 | C65: 0 | D65: 340
A66: -0.455 | B66: -0.995 | C66: 0 | D66: 297
A67: -0.445 | B67: -0.995 | C67: 0 | D67: 357
A68: -0.435 | B68: -0.995 | C68: 0 | D68: 309
A69: -0.425 | B69: -0.995 | C69: 0 | D69: 334
A70: -0.415 | B70: -0.995 | C70: 0 | D70: 352
A71: -0.405 | B71: -0.995 | C71: 0 | D71: 340
A72: -0.395 | B72: -0.995 | C72: 0 | D72: 370
A73: -0.385 | B73: -0.995 | C73: 0 | D73: 370
A74: -0.375 | B74: -0.995 | C74: 0 | D74: 341
A75: -0.365 | B75: -0.995 | C75: 0 | D75: 353
A76: -0.355 | B76: -0.995 | C76: 0 | D76: 378
A77: -0.345 | B77: -0.995 | C77: 0 | D77: 373
A78: -0.335 | B78: -0.995 | C78: 0 | D78: 334
A79: -0.325 | B79: -0.995 | C79: 0 | D79: 343
A80: -0.315 | B80: -0.995 | C80: 0 | D80: 352
A81: -0.305 | B81: -0.995 | C81: 0 | D81: 372
A82: -0.295 | B82: -0.995 | C82: 0 | D82: 363
A83: -0.285 | B83: -0.995 | C83: 0 | D83: 361
A84: -0.275 | B84: -0.995 | C84: 0 | D84: 358
A85: -0.265 | B85: -0.995 | C85: 0 | D85: 375
A86: -0.255 | B86: -0.995 | C86: 0 | D86: 364
A87: -0.245 | B87: -0.995 | C87: 0 | D87: 363
A88: -0.235 | B88: -0.995 | C88: 0 | D88: 347
A89: -0.225 | B89: -0.995 | C89: 0 | D89: 384
A90: -0.215 | B90: -0.995 | C90: 0 | D90: 375
A91: -0.205 | B91: -0.995 | C91: 0 | D91: 422
A92: -0.195 | B92: -0.995 | C92: 0 | D92: 393
A93: -0.185 | B93: -0.995 | C93: 0 | D93: 384
A94: -0.175 | B94: -0.995 | C94: 0 | D94: 399
A95: -0.165 | B95: -0.995 | C95: 0 | D95: 355
A96: -0.155 | B96: -0.995 | C96: 0 | D96: 364
A97: -0.145 | B97: -0.995 | C97: 0 | D97: 361
A98: -0.135 | B98: -0.995 | C98: 0 | D98: 405
A99: -0.125 | B99: -0.995 | C99: 0 | D99: 408
A100: -0.115 | B100: -0.995 | C100: 0 | D100: 373
A101: -0.105 | B101: -0.995 | C101: 0 | D101: 388
A102: -0.095 | B102: -0.995 | C102: 0 | D102: 428
A103: -0.085 | B103: -0.995 | C103: 0 | D103: 375
A104: -0.075 | B104: -0.995 | C104: 0 | D104: 399
A105: -0.065 | B105: -0.995 | C105: 0 | D105: 395
A106: -0.055 | B106: -0.995 | C106: 0 | D106: 414
A107: -0.045 | B107: -0.995 | C107: 0 | D107: 407
A108: -0.035 | B108: -0.995 | C108: 0 | D108: 422
A109: -0.025 | B109: -0.995 | C109: 0 | D109: 343
A110: -0.015 | B110: -0.995 | C110: 0 | D110: 393
A111: -0.005 | B111: -0.995 | C111: 0 | D111: 378
A112: 0.005 | B112: -0.995 | C112: 0 | D112: 425
A113: 0.015 | B113: -0.995 | C113: 0 | D113: 405
A114: 0.025 | B114: -0.995 | C114: 0 | D114: 370
A115: 0.035 | B115: -0.995 | C115: 0 | D115: 423
A116: 0.045 | B116: -0.995 | C116: 0 | D116: 430
A117: 0.055 | B117: -0.995 | C117: 0 | D117: 407
A118: 0.065 | B118: -0.995 | C118: 0 | D118: 353
A119: 0.075 | B119: -0.995 | C119: 0 | D119: 443
A120: 0.085 | B120: -0.995 | C120: 0 | D120: 338
A121: 0.095 | B121: -0.995 | C121: 0 | D121: 390
A122: 0.105 | B122: -0.995 | C122: 0 | D122: 402
A123: 0.115 | B123: -0.995 | C123: 0 | D123: 353
A124: 0.125 | B124: -0.995 | C124: 0 | D124: 407
A125: 0.135 | B125: -0.995 | C125: 0 | D125: 393
A126: 0.145 | B126: -0.995 | C126: 0 | D126: 414
A127: 0.155 | B127: -0.995 | C127: 0 | D127: 332
A128: 0.165 | B128: -0.995 | C128: 0 | D128: 366
A129: 0.175 | B129: -0.995 | C129: 0 | D129: 360
A130: 0.185 | B130: -0.995 | C130: 0 | D130: 392
A131: 0.195 | B131: -0.995 | C131: 0 | D131: 373
A132: 0.205 | B132: -0.995 | C132: 0 | D132: 405
A133: 0.215 | B133: -0.995 | C133: 0 | D133: 370
A134: 0.225 | B134: -0.995 | C134: 0 | D134: 384
A135: 0.235 | B135: -0.995 | C135: 0 | D135: 334
A136: 0.245 | B136: -0.995 | C136: 0 | D136: 376
A137: 0.255 | B137: -0.995 | C137: 0 | D137: 344
A138: 0.265 | B138: -0.995 | C138: 0 | D138: 375
A139: 0.275 | B139: -0.995 | C139: 0 | D139: 347
A140: 0.285 | B140: -0.995 | C140: 0 | D140: 381
A141: 0.295 | B141: -0.995 | C141: 0 | D141: 388
A142: 0.305 | B142: -0.995 | C142: 0 | D142: 387
A143: 0.315 | B143: -0.995 | C143: 0 | D143: 337
A144: 0.325 | B144: -0.995 | C144: 0 | D144: 349
A145: 0.335 | B145: -0.995 | C145: 0 | D145: 359
A146: 0.345 | B146: -0.995 | C146: 0 | D146: 353
A147: 0.355 | B147: -0.995 | C147: 0 | D147: 343
A148: 0.365 | B148: -0.995 | C148: 0 | D148: 382
A149: 0.375 | B149: -0.995 | C149: 0 | D149: 334
A150: 0.385 | B150: -0.995 | C150: 0 | D150: 393
A151: 0.395 | B151: -0.995 | C151: 0 | D151: 327
A152: 0.405 | B152: -0.995 | C152: 0 | D152: 296
A153: 0.415 | B153: -0.995 | C153: 0 | D153: 323
A154: 0.425 | B154: -0.995 | C154: 0 | D154: 317
A155: 0.435 | B155: -0.995 | C155: 0 | D155: 375
A156: 0.445 | B156: -0.995 | C156: 0 | D156: 375
A157: 0.455 | B157: -0.995 | C157: 0 | D157: 399
A158: 0.465 | B158: -0.995 | C158: 0 | D158: 344
A159: 0.475 | B159: -0.995 | C159: 0 | D159: 326
A160: 0.485 | B160: -0.995 | C160: 0 | D160: 355
A161: 0.495 | B161: -0.995 | C161: 0 | D161: 343
A162: 0.505 | B162: -0.995 | C162: 0 | D162: 355
A163: 0.515 | B163: -0.995 | C163: 0 | D163: 344
A164: 0.525 | B164: -0.995 | C164: 0 | D164: 326
A165: 0.535 | B165: -0.995 | C165: 0 | D165: 321
A166: 0.545 | B166: -0.995 | C166: 0 | D166: 349
A167: 0.555 | B167: -0.995 | C167: 0 | D167: 324
A168: 0.565 | B168: -0.995 | C168: 0 | D168: 312
A169: 0.575 | B169: -0.995 | C169: 0 | D169: 312
A170: 0.585 | B170: -0.995 | C170: 0 | D170: 349
A171: 0.595 | B171: -0.995 | C171: 0 | D171: 293
A172: 0.605 | B172: -0.995 | C172: 0 | D172: 300
A173: 0.615 | B173: -0.995 | C173: 0 | D173: 283
A174: 0.625 | B174: -0.995 | C174: 0 | D174: 300
A175: 0.635 | B175: -0.995 | C175: 0 | D175: 294
A176: 0.645 | B176: -0.995 | C176: 0 | D176: 288
A177: 0.655 | B177: -0.995 | C177: 0 | D177: 285
A178: 0.665 | B178: -0.995 | C178: 0 | D178: 315
A179: 0.675 | B179: -0.995 | C179: 0 | D179: 257
A180: 0.685 | B180: -0.995 | C180: 0 | D180: 289
A181: 0.695 | B181: -0.995 | C181: 0 | D181: 286
A182: 0.705 | B182: -0.995 | C182: 0 | D182: 350
A183: 0.715 | B183: -0.995 | C183: 0 | D183: 286
A184: 0.725 | B184: -0.995 | C184: 0 | D184: 296
A185: 0.735 | B185: -0.995 | C185: 0 | D185: 256
A186: 0.745 | B186: -0.995 | C186: 0 | D186: 265
A187: 0.755 | B187: -0.995 | C187: 0 | D187: 270
A188: 0.765 | B188: -0.995 | C188: 0 | D188: 291
A189: 0.775 | B189: -0.995 | C189: 0 | D189: 254
A190: 0.785 | B190: -0.995 | C190: 0 | D190: 286
A191: 0.795 | B191: -0.995 | C191: 0 | D191: 253
A192: 0.805 | B192: -0.995 | C192: 0 | D192: 267
A193: 0.815 | B193: -0.995 | C193: 0 | D193: 277
A194: 0.825 | B194: -0.995 | C194: 0 | D194: 209
A195: 0.835 | B195: -0.995 | C195: 0 | D195: 274
A196: 0.845 | B196: -0.995 | C196: 0 | D196: 250
A197: 0.855 | B197: -0.995 | C197: 0 | D197: 270
A198: 0.865 | B198: -0.995 | C198: 0 | D198: 253
A199: 0.875 | B199: -0.995 | C199: 0 | D199: 215
A200: 0.885 | B200: -0.995 | C200: 0 | D200: 201
... 4300 more rows

Sheet Points.16_Desv.0.3
A1: # Concentration distribution on receiver: rec_CPV_SolarX Reference Heliostat Field
A2: # ratio | B2: 1 | H2: Electric power
A3: # aiming_points | B3: 16 | H3: Cells/module | I3: 5 | J3: 10 | K3: 25 | L3: 50 | M3: 4 | N3: 5 | O3: 10 | P3: 20 | Q3: 5 | R3: 25 | S3: 2 | T3: 4 | U3: 5 | V3: 10 | W3: 20
A4: # combined std dev. | B4: 0.3 | H4: Modules/subconjunto | I4: 200 | J4: 200 | K4: 200 | L4: 200 | M4: 250 | N4: 250 | O4: 250 | P4: 250 | Q4: 400 | R4: 400 | S4: 500 | T4: 500 | U4: 500 | V4: 500 | W4: 500
A5: # optical_eff | B5: 0.5024 | H5: Subconjunto/subreceivers | I5: 10 | J5: 5 | K5: 2 | L5: 1 | M5: 10 | N5: 8 | O5: 4 | P5: 2 | Q5: 5 | R5: 1 | S5: 10 | T5: 5 | U5: 4 | V5: 2 | W5: 1
A6: # standard_deviation | B6: 0.3 | H6: Power/subreceiver 1 | I6: 188989.1313 | J6: 188817.2471 | K6: 187549.9907 | L6: 184702.8825 | M6: 189178.2704 | N6: 189182.4754 | O6: 189191.2505 | P6: 188808.2569 | Q6: 188601.0863 | R6: 184670.8772 | S6: 188012.5097 | T6: 188360.2368 | U6: 188374.6529 | V6: 187360.2417 | W6: 184686.1613
A7: # spillage | B7: 0.3572 | E7: Excel calculations | F7: Matlab calculations | H7: Power/subreceiver 2 | I7: 191470.336 | J7: 191275.7881 | K7: 190043.1674 | L7: 186382.1951 | M7: 192968.3413 | N7: 191158.1689 | O7: 190488.1155 | P7: 188302.0049 | Q7: 190994.9969 | R7: 186517.1932 | S7: 190667.0233 | T7: 191924.9374 | U7: 190895.1103 | V7: 189900.9408 | W7: 186575.0782
A8: # avg_concentration | B8: 502 | D8: Avg_concentration mesur. | E8: 501.451 | F8: 502.40315 | H8: Power/subreceiver 3 | I8: 176787.5042 | J8: 176636.6666 | K8: 175004.2448 | L8: 171620.8902 | M8: 176466.73 | N8: 176405.7945 | O8: 175787.495 | P8: 173466.0857 | Q8: 176352.8952 | R8: 171629.8309 | S8: 175819.6653 | T8: 176327.5324 | U8: 176294.8197 | V8: 174830.9655 | W8: 171600.7097
A9: # std_concentration | B9: 128 | D9: Std_concentration | F9: 128.3166303 | H9: Power/subreceiver 4 | I9: 186595.326 | J9: 186469.3746 | K9: 184868.675 | L9: 181497.3833 | M9: 186763.5871 | N9: 186717.8071 | O9: 186847.7164 | P9: 185813.7005 | Q9: 186276.9085 | R9: 181495.1083 | S9: 185418.8767 | T9: 186271.9854 | U9: 185943.75 | V9: 184676.2821 | W9: 181448.9646
A10: # sun_zen=22, sun_azm=0 | D10: Concent. Max | E10: 818.227 | F10: 818.227 | H10: Total recevier power | I10: 743842.2976 | J10: 743199.0764 | K10: 737466.0779 | L10: 724203.351 | M10: 745376.9288 | N10: 743464.2459 | O10: 742314.5774 | P10: 736390.0479 | Q10: 742225.887 | R10: 724313.0096 | S10: 739918.075 | T10: 742884.692 | U10: 741508.333 | V10: 736768.4302 | W10: 724310.9139
A11: x[m] | B11: y[m] | C11: z[m] | D11: concentration[-] | H11: Receiver efficiency | I11: =I10/($B$8*1000*4) -> 0.3701420978 | J11: =J10/($B$8*1000*4) -> 0.3698220256 | K11: =K10/($B$8*1000*4) -> 0.366969238 | L11: 0.3603695951 | M11: 0.370905743 | N11: 0.3699539762 | O11: 0.3693818916 | P11: 0.3664337966 | Q11: 0.3693377585 | R11: 0.3604241621 | S11: 0.3681893721 | T11: 0.3696655853 | U11: 0.3689806977 | V11: 0.3666220827 | W11: 0.3604231193
A12: -0.995 | B12: -0.995 | C12: 0 | D12: 188 | H12: Concentrated irradiance-to-electric efficiency | I12: =I10*100/($I$17) -> 23.79273405 | J12: =J10*100/($I$17) -> 23.77215981 | K12: 23.58878262 | L12: 23.16455757 | M12: 23.84182116 | N12: 23.78064159 | O12: 23.74386799 | P12: 23.55436444 | Q12: 23.74103112 | R12: 23.16806514 | S12: 23.66721284 | T12: 23.76210383 | U12: 23.71807925 | V12: 23.56646748 | W12: 23.16799811
A13: -0.985 | B13: -0.995 | C13: 0 | D13: 191 | H13: Solar field-to-electric efficiency | I13: =$B$5*I12 -> 11.95346959 | J13: =$B$5*J12 -> 11.94313309 | K13: 11.85100439 | L13: 11.63787372 | M13: 11.97813095 | N13: 11.94739433 | O13: 11.92891928 | P13: 11.8337127 | Q13: 11.92749403 | R13: 11.63963593 | S13: 11.89040773 | T13: 11.93808096 | U13: 11.91596301 | V13: 11.83979326 | W13: 11.63960225
A14: -0.975 | B14: -0.995 | C14: 0 | D14: 221 | H14: Perfil iluminación
A15: -0.965 | B15: -0.995 | C15: 0 | D15: 181 | H15: Desviacion estándar entre mòdulos [suns] | I15: 114.6826914 | J15: 114.5815657 | K15: 115.6325124 | L15: 107.8826157 | M15: 114.101267 | N15: 113.8853768 | O15: 112.9649702 | P15: 116.6375719 | Q15: 115.2462449 | R15: 115.6417025 | S15: 115.8051984 | T15: 115.4825634 | U15: 115.5565018 | V15: 118.0317924 | W15: 116.6401089
A16: -0.955 | B16: -0.995 | C16: 0 | D16: 189
A17: -0.945 | B17: -0.995 | C17: 0 | D17: 226 | H17: Irradiación total | I17: =B8*4*1000/(1-B7) -> 3126342.253
A18: -0.935 | B18: -0.995 | C18: 0 | D18: 163
A19: -0.925 | B19: -0.995 | C19: 0 | D19: 233
A20: -0.915 | B20: -0.995 | C20: 0 | D20: 247
A21: -0.905 | B21: -0.995 | C21: 0 | D21: 236
A22: -0.895 | B22: -0.995 | C22: 0 | D22: 224
A23: -0.885 | B23: -0.995 | C23: 0 | D23: 258
A24: -0.875 | B24: -0.995 | C24: 0 | D24: 241
A25: -0.865 | B25: -0.995 | C25: 0 | D25: 204
A26: -0.855 | B26: -0.995 | C26: 0 | D26: 247
A27: -0.845 | B27: -0.995 | C27: 0 | D27: 236
A28: -0.835 | B28: -0.995 | C28: 0 | D28: 251
A29: -0.825 | B29: -0.995 | C29: 0 | D29: 256
A30: -0.815 | B30: -0.995 | C30: 0 | D30: 256
A31: -0.805 | B31: -0.995 | C31: 0 | D31: 254
A32: -0.795 | B32: -0.995 | C32: 0 | D32: 268
A33: -0.785 | B33: -0.995 | C33: 0 | D33: 282
A34: -0.775 | B34: -0.995 | C34: 0 | D34: 247
A35: -0.765 | B35: -0.995 | C35: 0 | D35: 258
A36: -0.755 | B36: -0.995 | C36: 0 | D36: 311
A37: -0.745 | B37: -0.995 | C37: 0 | D37: 290
A38: -0.735 | B38: -0.995 | C38: 0 | D38: 255
A39: -0.725 | B39: -0.995 | C39: 0 | D39: 290
A40: -0.715 | B40: -0.995 | C40: 0 | D40: 264
A41: -0.705 | B41: -0.995 | C41: 0 | D41: 241
A42: -0.695 | B42: -0.995 | C42: 0 | D42: 267
A43: -0.685 | B43: -0.995 | C43: 0 | D43: 297
A44: -0.675 | B44: -0.995 | C44: 0 | D44: 311
A45: -0.665 | B45: -0.995 | C45: 0 | D45: 352
A46: -0.655 | B46: -0.995 | C46: 0 | D46: 290
A47: -0.645 | B47: -0.995 | C47: 0 | D47: 285
A48: -0.635 | B48: -0.995 | C48: 0 | D48: 303
A49: -0.625 | B49: -0.995 | C49: 0 | D49: 340
A50: -0.615 | B50: -0.995 | C50: 0 | D50: 296
A51: -0.605 | B51: -0.995 | C51: 0 | D51: 326
A52: -0.595 | B52: -0.995 | C52: 0 | D52: 309
A53: -0.585 | B53: -0.995 | C53: 0 | D53: 331
A54: -0.575 | B54: -0.995 | C54: 0 | D54: 282
A55: -0.565 | B55: -0.995 | C55: 0 | D55: 323
A56: -0.555 | B56: -0.995 | C56: 0 | D56: 322
A57: -0.545 | B57: -0.995 | C57: 0 | D57: 325
A58: -0.535 | B58: -0.995 | C58: 0 | D58: 337
A59: -0.525 | B59: -0.995 | C59: 0 | D59: 323
A60: -0.515 | B60: -0.995 | C60: 0 | D60: 323
A61: -0.505 | B61: -0.995 | C61: 0 | D61: 320
A62: -0.495 | B62: -0.995 | C62: 0 | D62: 346
A63: -0.485 | B63: -0.995 | C63: 0 | D63: 384
A64: -0.475 | B64: -0.995 | C64: 0 | D64: 314
A65: -0.465 | B65: -0.995 | C65: 0 | D65: 351
A66: -0.455 | B66: -0.995 | C66: 0 | D66: 363
A67: -0.445 | B67: -0.995 | C67: 0 | D67: 357
A68: -0.435 | B68: -0.995 | C68: 0 | D68: 369
A69: -0.425 | B69: -0.995 | C69: 0 | D69: 373
A70: -0.415 | B70: -0.995 | C70: 0 | D70: 323
A71: -0.405 | B71: -0.995 | C71: 0 | D71: 390
A72: -0.395 | B72: -0.995 | C72: 0 | D72: 326
A73: -0.385 | B73: -0.995 | C73: 0 | D73: 364
A74: -0.375 | B74: -0.995 | C74: 0 | D74: 346
A75: -0.365 | B75: -0.995 | C75: 0 | D75: 358
A76: -0.355 | B76: -0.995 | C76: 0 | D76: 340
A77: -0.345 | B77: -0.995 | C77: 0 | D77: 381
A78: -0.335 | B78: -0.995 | C78: 0 | D78: 404
A79: -0.325 | B79: -0.995 | C79: 0 | D79: 349
A80: -0.315 | B80: -0.995 | C80: 0 | D80: 389
A81: -0.305 | B81: -0.995 | C81: 0 | D81: 384
A82: -0.295 | B82: -0.995 | C82: 0 | D82: 392
A83: -0.285 | B83: -0.995 | C83: 0 | D83: 404
A84: -0.275 | B84: -0.995 | C84: 0 | D84: 392
A85: -0.265 | B85: -0.995 | C85: 0 | D85: 355
A86: -0.255 | B86: -0.995 | C86: 0 | D86: 357
A87: -0.245 | B87: -0.995 | C87: 0 | D87: 349
A88: -0.235 | B88: -0.995 | C88: 0 | D88: 402
A89: -0.225 | B89: -0.995 | C89: 0 | D89: 374
A90: -0.215 | B90: -0.995 | C90: 0 | D90: 383
A91: -0.205 | B91: -0.995 | C91: 0 | D91: 386
A92: -0.195 | B92: -0.995 | C92: 0 | D92: 416
A93: -0.185 | B93: -0.995 | C93: 0 | D93: 402
A94: -0.175 | B94: -0.995 | C94: 0 | D94: 361
A95: -0.165 | B95: -0.995 | C95: 0 | D95: 393
A96: -0.155 | B96: -0.995 | C96: 0 | D96: 427
A97: -0.145 | B97: -0.995 | C97: 0 | D97: 398
A98: -0.135 | B98: -0.995 | C98: 0 | D98: 380
A99: -0.125 | B99: -0.995 | C99: 0 | D99: 349
A100: -0.115 | B100: -0.995 | C100: 0 | D100: 354
A101: -0.105 | B101: -0.995 | C101: 0 | D101: 390
A102: -0.095 | B102: -0.995 | C102: 0 | D102: 443
A103: -0.085 | B103: -0.995 | C103: 0 | D103: 422
A104: -0.075 | B104: -0.995 | C104: 0 | D104: 381
A105: -0.065 | B105: -0.995 | C105: 0 | D105: 408
A106: -0.055 | B106: -0.995 | C106: 0 | D106: 367
A107: -0.045 | B107: -0.995 | C107: 0 | D107: 416
A108: -0.035 | B108: -0.995 | C108: 0 | D108: 418
A109: -0.025 | B109: -0.995 | C109: 0 | D109: 469
A110: -0.015 | B110: -0.995 | C110: 0 | D110: 393
A111: -0.005 | B111: -0.995 | C111: 0 | D111: 389
A112: 0.005 | B112: -0.995 | C112: 0 | D112: 372
A113: 0.015 | B113: -0.995 | C113: 0 | D113: 354
A114: 0.025 | B114: -0.995 | C114: 0 | D114: 427
A115: 0.035 | B115: -0.995 | C115: 0 | D115: 389
A116: 0.045 | B116: -0.995 | C116: 0 | D116: 401
A117: 0.055 | B117: -0.995 | C117: 0 | D117: 389
A118: 0.065 | B118: -0.995 | C118: 0 | D118: 402
A119: 0.075 | B119: -0.995 | C119: 0 | D119: 416
A120: 0.085 | B120: -0.995 | C120: 0 | D120: 460
A121: 0.095 | B121: -0.995 | C121: 0 | D121: 416
A122: 0.105 | B122: -0.995 | C122: 0 | D122: 410
A123: 0.115 | B123: -0.995 | C123: 0 | D123: 405
A124: 0.125 | B124: -0.995 | C124: 0 | D124: 451
A125: 0.135 | B125: -0.995 | C125: 0 | D125: 413
A126: 0.145 | B126: -0.995 | C126: 0 | D126: 405
A127: 0.155 | B127: -0.995 | C127: 0 | D127: 398
A128: 0.165 | B128: -0.995 | C128: 0 | D128: 384
A129: 0.175 | B129: -0.995 | C129: 0 | D129: 392
A130: 0.185 | B130: -0.995 | C130: 0 | D130: 367
A131: 0.195 | B131: -0.995 | C131: 0 | D131: 392
A132: 0.205 | B132: -0.995 | C132: 0 | D132: 415
A133: 0.215 | B133: -0.995 | C133: 0 | D133: 383
A134: 0.225 | B134: -0.995 | C134: 0 | D134: 361
A135: 0.235 | B135: -0.995 | C135: 0 | D135: 404
A136: 0.245 | B136: -0.995 | C136: 0 | D136: 344
A137: 0.255 | B137: -0.995 | C137: 0 | D137: 411
A138: 0.265 | B138: -0.995 | C138: 0 | D138: 395
A139: 0.275 | B139: -0.995 | C139: 0 | D139: 393
A140: 0.285 | B140: -0.995 | C140: 0 | D140: 367
A141: 0.295 | B141: -0.995 | C141: 0 | D141: 393
A142: 0.305 | B142: -0.995 | C142: 0 | D142: 370
A143: 0.315 | B143: -0.995 | C143: 0 | D143: 364
A144: 0.325 | B144: -0.995 | C144: 0 | D144: 380
A145: 0.335 | B145: -0.995 | C145: 0 | D145: 354
A146: 0.345 | B146: -0.995 | C146: 0 | D146: 382
A147: 0.355 | B147: -0.995 | C147: 0 | D147: 369
A148: 0.365 | B148: -0.995 | C148: 0 | D148: 390
A149: 0.375 | B149: -0.995 | C149: 0 | D149: 346
A150: 0.385 | B150: -0.995 | C150: 0 | D150: 355
A151: 0.395 | B151: -0.995 | C151: 0 | D151: 367
A152: 0.405 | B152: -0.995 | C152: 0 | D152: 418
A153: 0.415 | B153: -0.995 | C153: 0 | D153: 413
A154: 0.425 | B154: -0.995 | C154: 0 | D154: 338
A155: 0.435 | B155: -0.995 | C155: 0 | D155: 366
A156: 0.445 | B156: -0.995 | C156: 0 | D156: 334
A157: 0.455 | B157: -0.995 | C157: 0 | D157: 373
A158: 0.465 | B158: -0.995 | C158: 0 | D158: 349
A159: 0.475 | B159: -0.995 | C159: 0 | D159: 367
A160: 0.485 | B160: -0.995 | C160: 0 | D160: 372
A161: 0.495 | B161: -0.995 | C161: 0 | D161: 366
A162: 0.505 | B162: -0.995 | C162: 0 | D162: 407
A163: 0.515 | B163: -0.995 | C163: 0 | D163: 343
A164: 0.525 | B164: -0.995 | C164: 0 | D164: 366
A165: 0.535 | B165: -0.995 | C165: 0 | D165: 358
A166: 0.545 | B166: -0.995 | C166: 0 | D166: 369
A167: 0.555 | B167: -0.995 | C167: 0 | D167: 358
A168: 0.565 | B168: -0.995 | C168: 0 | D168: 326
A169: 0.575 | B169: -0.995 | C169: 0 | D169: 381
A170: 0.585 | B170: -0.995 | C170: 0 | D170: 303
A171: 0.595 | B171: -0.995 | C171: 0 | D171: 296
A172: 0.605 | B172: -0.995 | C172: 0 | D172: 344
A173: 0.615 | B173: -0.995 | C173: 0 | D173: 306
A174: 0.625 | B174: -0.995 | C174: 0 | D174: 335
A175: 0.635 | B175: -0.995 | C175: 0 | D175: 309
A176: 0.645 | B176: -0.995 | C176: 0 | D176: 280
A177: 0.655 | B177: -0.995 | C177: 0 | D177: 332
A178: 0.665 | B178: -0.995 | C178: 0 | D178: 299
A179: 0.675 | B179: -0.995 | C179: 0 | D179: 245
A180: 0.685 | B180: -0.995 | C180: 0 | D180: 276
A181: 0.695 | B181: -0.995 | C181: 0 | D181: 289
A182: 0.705 | B182: -0.995 | C182: 0 | D182: 325
A183: 0.715 | B183: -0.995 | C183: 0 | D183: 302
A184: 0.725 | B184: -0.995 | C184: 0 | D184: 296
A185: 0.735 | B185: -0.995 | C185: 0 | D185: 317
A186: 0.745 | B186: -0.995 | C186: 0 | D186: 299
A187: 0.755 | B187: -0.995 | C187: 0 | D187: 341
A188: 0.765 | B188: -0.995 | C188: 0 | D188: 294
A189: 0.775 | B189: -0.995 | C189: 0 | D189: 300
A190: 0.785 | B190: -0.995 | C190: 0 | D190: 305
A191: 0.795 | B191: -0.995 | C191: 0 | D191: 309
A192: 0.805 | B192: -0.995 | C192: 0 | D192: 239
A193: 0.815 | B193: -0.995 | C193: 0 | D193: 288
A194: 0.825 | B194: -0.995 | C194: 0 | D194: 251
A195: 0.835 | B195: -0.995 | C195: 0 | D195: 279
A196: 0.845 | B196: -0.995 | C196: 0 | D196: 253
A197: 0.855 | B197: -0.995 | C197: 0 | D197: 248
A198: 0.865 | B198: -0.995 | C198: 0 | D198: 265
A199: 0.875 | B199: -0.995 | C199: 0 | D199: 241
A200: 0.885 | B200: -0.995 | C200: 0 | D200: 245
... 4300 more rows
